﻿FIN.POSTING DATE,FIN.ACCOUNTING CODE 02 VALUE,FIN.ACCOUNTING CODE 02 DESCRIPTION,MCH.MERCHANT CATEGORY CODE (MCC),MCH.MERCHANT NAME - ORIGINAL,MCH.MCC DESCRIPTION,FIN.TRANSACTION AMOUNT
23/09/2022,11932,LAC THROUGHCARE TEAM,5999,AMZNMKTPLACE,MISCELLANEOUS AND SPECIALTY RETAIL STORES,33.87
23/09/2022,11932,LAC THROUGHCARE TEAM,5999,AMZNMKTPLACE,MISCELLANEOUS AND SPECIALTY RETAIL STORES,5.99
23/09/2022,11932,LAC THROUGHCARE TEAM,5999,AMZNMKTPLACE,MISCELLANEOUS AND SPECIALTY RETAIL STORES,9.99
23/09/2022,11932,LAC THROUGHCARE TEAM,5999,AMZNMKTPLACE,MISCELLANEOUS AND SPECIALTY RETAIL STORES,10.49
23/09/2022,11932,LAC THROUGHCARE TEAM,5999,AMZNMKTPLACE,MISCELLANEOUS AND SPECIALTY RETAIL STORES,14.99
23/09/2022,11932,LAC THROUGHCARE TEAM,5999,AMZNMKTPLACE,MISCELLANEOUS AND SPECIALTY RETAIL STORES,9.89
23/09/2022,11932,LAC THROUGHCARE TEAM,5999,AMZNMKTPLACE,MISCELLANEOUS AND SPECIALTY RETAIL STORES,4.49
23/09/2022,11932,LAC THROUGHCARE TEAM,5999,AMZNMKTPLACE,MISCELLANEOUS AND SPECIALTY RETAIL STORES,9.92
23/09/2022,11507,CARE LEAVERS,5411,ADSA STORES LTD 4231,"GROCERY STORES, SUPERMARKETS",63.15
23/09/2022,10676,HOUSING AND HOMELESSNESS,7999,WWW.COVENTRY.GOV.UK,RECREATION SERVICES (NOT ELSEWHERE CLASSIFIED),35.00
23/09/2022,11735,CUSTOMER SERVICES & TRANSFORMATI,7011,HOTEL ON BOOKING.COM,"LODGING-HOTELS,MOTELS,RESORTS-NOT CLASSIFIED",80.00
23/09/2022,11021,LAC & CARE LEAVERS,5065,COVENTRY MOBILE HUB,ELECTRICAL PARTS AND EQUIPMENT,10.00
23/09/2022,11307,IPS MH THE POD,5411,SAINSBURYS S/MKTS,"GROCERY STORES, SUPERMARKETS",9.90
23/09/2022,11307,IPS MH THE POD,5411,SAINSBURYS S/MKTS,"GROCERY STORES, SUPERMARKETS",6.26
23/09/2022,11507,CARE LEAVERS,5813,THE OLD CROWN,"BAR,LOUNGE,DISCO,NIGHTCLUB,TAVERN-ALCOHOLIC DRINKS",2.80
23/09/2022,11398,REFUGEE TRANSITIONS OUTCOME FUND (RTOF),5499,M&S SIMPLY FOOD SSP,"MISC FOOD STORE-CONVENIENCE,MRKT,SPLTY,VENDNG MACS",4.60
23/09/2022,10469,RESIDENTIAL - JOBS LANE,5699,ETSY.COM - ASERIESPRIN,ACCESSORY AND APPAREL STORES-MISCELLANEOUS,15.97
23/09/2022,10469,RESIDENTIAL - JOBS LANE,5999,AMZNBUSINESS VR7VR45H5,MISCELLANEOUS AND SPECIALTY RETAIL STORES,5.00
23/09/2022,10225,HOUSING - B&B ACCOMMODATION,7999,WWW.COVENTRY.GOV.UK,RECREATION SERVICES (NOT ELSEWHERE CLASSIFIED),95.37
23/09/2022,11928,COMMUNITY SUPPORT GRANTS,5999,AMZNMKTPLACE,MISCELLANEOUS AND SPECIALTY RETAIL STORES,10.99
23/09/2022,11928,COMMUNITY SUPPORT GRANTS,5999,AMZNMKTPLACE,MISCELLANEOUS AND SPECIALTY RETAIL STORES,132.98
23/09/2022,11928,COMMUNITY SUPPORT GRANTS,5999,AMZNMKTPLACE,MISCELLANEOUS AND SPECIALTY RETAIL STORES,6.98
23/09/2022,11928,COMMUNITY SUPPORT GRANTS,5999,AMZNMKTPLACE,MISCELLANEOUS AND SPECIALTY RETAIL STORES,79.99
23/09/2022,11928,COMMUNITY SUPPORT GRANTS,5999,AMZNMKTPLACE,MISCELLANEOUS AND SPECIALTY RETAIL STORES,14.50
23/09/2022,11928,COMMUNITY SUPPORT GRANTS,5999,AMZNMKTPLACE,MISCELLANEOUS AND SPECIALTY RETAIL STORES,10.99
23/09/2022,11928,COMMUNITY SUPPORT GRANTS,5999,AMZNMKTPLACE,MISCELLANEOUS AND SPECIALTY RETAIL STORES,6.98
23/09/2022,11928,COMMUNITY SUPPORT GRANTS,5999,AMZNMKTPLACE,MISCELLANEOUS AND SPECIALTY RETAIL STORES,14.50
23/09/2022,11928,COMMUNITY SUPPORT GRANTS,5999,AMZNMKTPLACE,MISCELLANEOUS AND SPECIALTY RETAIL STORES,6.98
23/09/2022,11928,COMMUNITY SUPPORT GRANTS,5999,AMZNMKTPLACE,MISCELLANEOUS AND SPECIALTY RETAIL STORES,14.50
23/09/2022,11928,COMMUNITY SUPPORT GRANTS,5999,AMZNMKTPLACE,MISCELLANEOUS AND SPECIALTY RETAIL STORES,6.98
23/09/2022,11928,COMMUNITY SUPPORT GRANTS,5999,AMZNMKTPLACE,MISCELLANEOUS AND SPECIALTY RETAIL STORES,8.99
23/09/2022,11928,COMMUNITY SUPPORT GRANTS,5999,AMZNMKTPLACE,MISCELLANEOUS AND SPECIALTY RETAIL STORES,269.64
23/09/2022,11928,COMMUNITY SUPPORT GRANTS,5999,AMZNMKTPLACE,MISCELLANEOUS AND SPECIALTY RETAIL STORES,10.99
23/09/2022,11928,COMMUNITY SUPPORT GRANTS,5999,AMZNMKTPLACE,MISCELLANEOUS AND SPECIALTY RETAIL STORES,10.94
23/09/2022,11928,COMMUNITY SUPPORT GRANTS,5999,AMZNMKTPLACE,MISCELLANEOUS AND SPECIALTY RETAIL STORES,21.88
23/09/2022,11928,COMMUNITY SUPPORT GRANTS,5999,AMZNMKTPLACE,MISCELLANEOUS AND SPECIALTY RETAIL STORES,42.90
23/09/2022,11928,COMMUNITY SUPPORT GRANTS,5999,AMZNMKTPLACE,MISCELLANEOUS AND SPECIALTY RETAIL STORES,132.98
23/09/2022,11928,COMMUNITY SUPPORT GRANTS,5999,AMZNMKTPLACE,MISCELLANEOUS AND SPECIALTY RETAIL STORES,10.94
23/09/2022,11928,COMMUNITY SUPPORT GRANTS,5999,AMZNMKTPLACE,MISCELLANEOUS AND SPECIALTY RETAIL STORES,42.90
23/09/2022,11928,COMMUNITY SUPPORT GRANTS,5999,AMZNMKTPLACE,MISCELLANEOUS AND SPECIALTY RETAIL STORES,42.90
23/09/2022,11928,COMMUNITY SUPPORT GRANTS,5999,AMZNMKTPLACE,MISCELLANEOUS AND SPECIALTY RETAIL STORES,24.95
23/09/2022,11928,COMMUNITY SUPPORT GRANTS,5999,AMZNMKTPLACE,MISCELLANEOUS AND SPECIALTY RETAIL STORES,42.90
23/09/2022,11928,COMMUNITY SUPPORT GRANTS,5999,AMZNMKTPLACE,MISCELLANEOUS AND SPECIALTY RETAIL STORES,44.44
23/09/2022,11928,COMMUNITY SUPPORT GRANTS,5999,AMZNMKTPLACE AMAZON.CO,MISCELLANEOUS AND SPECIALTY RETAIL STORES,44.44
23/09/2022,11928,COMMUNITY SUPPORT GRANTS,5999,AMZNMKTPLACE AMAZON.CO,MISCELLANEOUS AND SPECIALTY RETAIL STORES,44.44
23/09/2022,11928,COMMUNITY SUPPORT GRANTS,5999,AMZNMKTPLACE,MISCELLANEOUS AND SPECIALTY RETAIL STORES,7.44
23/09/2022,11928,COMMUNITY SUPPORT GRANTS,5999,AMZNMKTPLACE AMAZON.CO,MISCELLANEOUS AND SPECIALTY RETAIL STORES,44.44
23/09/2022,11928,COMMUNITY SUPPORT GRANTS,5999,AMZNMKTPLACE AMAZON.CO,MISCELLANEOUS AND SPECIALTY RETAIL STORES,88.88
23/09/2022,11928,COMMUNITY SUPPORT GRANTS,5999,AMZNMKTPLACE AMAZON.CO,MISCELLANEOUS AND SPECIALTY RETAIL STORES,47.00
23/09/2022,11928,COMMUNITY SUPPORT GRANTS,5999,AMZNMKTPLACE,MISCELLANEOUS AND SPECIALTY RETAIL STORES,7.44
23/09/2022,11928,COMMUNITY SUPPORT GRANTS,5999,AMZNMKTPLACE,MISCELLANEOUS AND SPECIALTY RETAIL STORES,14.88
23/09/2022,11928,COMMUNITY SUPPORT GRANTS,5999,AMZNMKTPLACE,MISCELLANEOUS AND SPECIALTY RETAIL STORES,7.44
23/09/2022,11928,COMMUNITY SUPPORT GRANTS,5999,AMZNMKTPLACE,MISCELLANEOUS AND SPECIALTY RETAIL STORES,140.97
23/09/2022,11928,COMMUNITY SUPPORT GRANTS,5999,AMZNMKTPLACE,MISCELLANEOUS AND SPECIALTY RETAIL STORES,46.99
23/09/2022,11928,COMMUNITY SUPPORT GRANTS,5999,AMZNMKTPLACE,MISCELLANEOUS AND SPECIALTY RETAIL STORES,93.98
23/09/2022,11197,WEST FAMILY HUB,5999,AMZNMKTPLACE AMAZON.CO,MISCELLANEOUS AND SPECIALTY RETAIL STORES,8.99
23/09/2022,11928,COMMUNITY SUPPORT GRANTS,5999,AMZNMKTPLACE,MISCELLANEOUS AND SPECIALTY RETAIL STORES,46.99
23/09/2022,10291,SECTION17 PAYMENTS CENTRAL,7278,COOLERAID LTD,"BUYING/SHOPPING CLUBS, SERVICES",69.60
23/09/2022,11197,WEST FAMILY HUB,5999,AMZNMKTPLACE AMAZON.CO,MISCELLANEOUS AND SPECIALTY RETAIL STORES,29.23
23/09/2022,11197,WEST FAMILY HUB,5999,AMZNMKTPLACE AMAZON.CO,MISCELLANEOUS AND SPECIALTY RETAIL STORES,4.73
23/09/2022,11197,WEST FAMILY HUB,5999,AMZNMKTPLACE AMAZON.CO,MISCELLANEOUS AND SPECIALTY RETAIL STORES,13.98
23/09/2022,11197,WEST FAMILY HUB,8641,HIGHSTREETVOUCHERS,"ASSOCIATIONS-CIVIC, SOCIAL, AND FRATERNAL",11.00
23/09/2022,11197,WEST FAMILY HUB,5814,43026655 COSTA COFFEE,FAST FOOD RESTAURANTS,12.75
23/09/2022,11879,IPS LD MAURICE EDELMAN HOUSE,5811,BRAKES (STORED CARDS),CATERERS,191.94
23/09/2022,11507,CARE LEAVERS,7523,COMMUNITY HEALTH PARTN,AUTOMOBILE PARKING LOTS AND GARAGES,1.50
23/09/2022,10317,MH COMMUNITY MENTAL HEALTH TEAM,9222,DERBYSHIRE010OFFIC,FINES,81.00
23/09/2022,11932,LAC THROUGHCARE TEAM,4112,THETRAINLINE.COM,PASSENGER RAILWAYS,20.06
23/09/2022,11704,COVENTRY MUSIC,2741,CM  MUSICROOM.COM,MISCELLANEOUS PUBLISHING AND PRINTING,62.49
23/09/2022,11179,PASSENGER TRANSPORT,5999,AMZNMKTPLACE,MISCELLANEOUS AND SPECIALTY RETAIL STORES,39.28
23/09/2022,11746,RESIDENTIAL - GRAYSWOOD,5999,AMZNMKTPLACE AMAZON.CO,MISCELLANEOUS AND SPECIALTY RETAIL STORES,11.98
23/09/2022,11746,RESIDENTIAL - GRAYSWOOD,4131,WEST MIDLANDS TRAV,BUS LINES,206.35
23/09/2022,11932,LAC THROUGHCARE TEAM,5943,RYMAN,"OFFICE, SCHOOL SUPPLY, AND STATIONERY STORES",9.99
23/09/2022,11027,CCTV & COMMUNITY SAFETY,8699,WWW.OFCOM.ORG.UK,"ORGANIZATIONS, MEMBERSHIP-NOT ELSEWHERE CLASSIFIED",50.00
23/09/2022,11932,LAC THROUGHCARE TEAM,7011,HOTEL AT BOOKING.COM,"LODGING-HOTELS,MOTELS,RESORTS-NOT CLASSIFIED",964.25
23/09/2022,10104,E & TS DISABLED FACILITY GRANT TEAM,5310,ARGOS LTD,DISCOUNT STORES,222.48
23/09/2022,11932,LAC THROUGHCARE TEAM,7997,PUREGYM LIMITED,"CLUBS-CNTRY,MBRSHIP(ATHLET,REC,SPRTS,PRIVATE GOLF",29.99
23/09/2022,11870,IPS LD WILFRED SPENCER CENTRE,5310,ARGOS LTD,DISCOUNT STORES,-30.00
23/09/2022,11932,LAC THROUGHCARE TEAM,4112,TRAINLINE.COM,PASSENGER RAILWAYS,13.44
23/09/2022,11870,IPS LD WILFRED SPENCER CENTRE,5310,ARGOS LTD,DISCOUNT STORES,30.00
23/09/2022,11932,LAC THROUGHCARE TEAM,5999,AMZNMKTPLACE,MISCELLANEOUS AND SPECIALTY RETAIL STORES,15.98
23/09/2022,11932,LAC THROUGHCARE TEAM,5999,AMZNMKTPLACE,MISCELLANEOUS AND SPECIALTY RETAIL STORES,12.99
23/09/2022,11932,LAC THROUGHCARE TEAM,5999,AMZNMKTPLACE,MISCELLANEOUS AND SPECIALTY RETAIL STORES,37.98
23/09/2022,11932,LAC THROUGHCARE TEAM,5999,AMZNMKTPLACE,MISCELLANEOUS AND SPECIALTY RETAIL STORES,11.89
23/09/2022,10453,SEXUAL HEALTH,5999,AMZNMKTPLACE,MISCELLANEOUS AND SPECIALTY RETAIL STORES,18.99
23/09/2022,11021,LAC & CARE LEAVERS,5411,MARKS&SPENCER PLC,"GROCERY STORES, SUPERMARKETS",23.54
23/09/2022,11307,IPS MH THE POD,5411,SUMUP   PETER MAC,"GROCERY STORES, SUPERMARKETS",19.50
23/09/2022,11027,CCTV & COMMUNITY SAFETY,9399,SECURITY INDUSTRY AUTH,GOVERNMENT SERVICES-NOT ELSEWHERE CLASSIFIED,95.00
23/09/2022,11932,LAC THROUGHCARE TEAM,7523,SOLIHULL METROPOLITAN,AUTOMOBILE PARKING LOTS AND GARAGES,2.70
23/09/2022,10300,INTERNAL FOSTERING TEAM,5411,MARKS&SPENCER PLC,"GROCERY STORES, SUPERMARKETS",8.00
23/09/2022,11826,REPAIR & MAINTENANCE,5732,PAYPAL  BUYABATTERY,ELECTRONIC SALES,51.09
23/09/2022,11826,REPAIR & MAINTENANCE,5732,PAYPAL  BUYABATTERY,ELECTRONIC SALES,195.92
23/09/2022,11826,REPAIR & MAINTENANCE,5732,PAYPAL  BUYABATTERY,ELECTRONIC SALES,87.85
23/09/2022,11826,REPAIR & MAINTENANCE,5732,PAYPAL  BUYABATTERY,ELECTRONIC SALES,-3.06
23/09/2022,11640,CPR5666 COMMERCIAL PROPERTY ,5399,WILKO RETAIL LIMITED,MISCELLANEOUS GENERAL MERCHANDISE,21.25
23/09/2022,11826,REPAIR & MAINTENANCE,5732,PAYPAL  BUYABATTERY,ELECTRONIC SALES,-7.98
23/09/2022,11932,LAC THROUGHCARE TEAM,5999,AMZNMKTPLACE,MISCELLANEOUS AND SPECIALTY RETAIL STORES,177.95
23/09/2022,11746,RESIDENTIAL - GRAYSWOOD,5999,AMZNMKTPLACE AMAZON.CO,MISCELLANEOUS AND SPECIALTY RETAIL STORES,24.98
23/09/2022,11107,CENTRAL FAMILY HUB,5411,TESCO STORES 2328,"GROCERY STORES, SUPERMARKETS",7.00
23/09/2022,11277,FLEET SERVICES,7011,HOTEL AT BOOKING.COM,"LODGING-HOTELS,MOTELS,RESORTS-NOT CLASSIFIED",163.80
23/09/2022,10247,ALL AGE DISABILITY TEAM 15-26+,4131,WEST MIDLANDS TRAV,BUS LINES,600.00
23/09/2022,11107,CENTRAL FAMILY HUB,7011,VILLAGE HOTELS VCO_SB,"LODGING-HOTELS,MOTELS,RESORTS-NOT CLASSIFIED",9.54
23/09/2022,10382,CHILDREN�S SENSORY SUPPORT SERVICE,5999,AMZNMKTPLACE,MISCELLANEOUS AND SPECIALTY RETAIL STORES,21.80
23/09/2022,11464,DSG - FAMILY HUB BUDGET,7523,COVENTRY CITY COUNCIL,AUTOMOBILE PARKING LOTS AND GARAGES,3.00
23/09/2022,10541,COVENTRY EXTENDED LEARNING CENTRE,5411,ASDA STORES LTD,"GROCERY STORES, SUPERMARKETS",10.00
23/09/2022,10951,IPS HWC SHORT TERM TENANCIES,4900,BRITISH GAS ONLINE,"UTLTS-ELCTRC, GAS, HEATING OIL, SANITARY, WATER",97.89
23/09/2022,10951,IPS HWC SHORT TERM TENANCIES,4900,BRITISH GAS ONLINE,"UTLTS-ELCTRC, GAS, HEATING OIL, SANITARY, WATER",171.15
23/09/2022,10951,IPS HWC SHORT TERM TENANCIES,4900,SOUTHERN ELECTRIC,"UTLTS-ELCTRC, GAS, HEATING OIL, SANITARY, WATER",111.09
23/09/2022,11354,IPS DAY OPPS GILBERT RICHARDS CENTRE,5811,BRAKES (STORED CARDS),CATERERS,341.68
23/09/2022,10211,MIGRATION PROJECT B,5812,COFFEE NO 1 COVENTRY,"EATING PLACES, RESTAURANTS",10.50
23/09/2022,11687,RESIDENTIAL - BROAD PARK HOUSE,5999,AMZNMKTPLACE,MISCELLANEOUS AND SPECIALTY RETAIL STORES,15.99
23/09/2022,11928,COMMUNITY SUPPORT GRANTS,5999,AMZNMKTPLACE,MISCELLANEOUS AND SPECIALTY RETAIL STORES,49.99
23/09/2022,11928,COMMUNITY SUPPORT GRANTS,5999,AMZNMKTPLACE,MISCELLANEOUS AND SPECIALTY RETAIL STORES,49.99
23/09/2022,11928,COMMUNITY SUPPORT GRANTS,5999,AMZNMKTPLACE,MISCELLANEOUS AND SPECIALTY RETAIL STORES,49.99
23/09/2022,10507,PARK RANGERS,7394,WWW.HSS.COM,"EQUIPMENT RENTAL&LEASING SVS, FURNTURE/TOOL RENTAL",-190.91
23/09/2022,11928,COMMUNITY SUPPORT GRANTS,5999,AMZNMKTPLACE,MISCELLANEOUS AND SPECIALTY RETAIL STORES,8.99
23/09/2022,11928,COMMUNITY SUPPORT GRANTS,5999,AMZNMKTPLACE,MISCELLANEOUS AND SPECIALTY RETAIL STORES,8.99
23/09/2022,10507,PARK RANGERS,7394,WWW.HSS.COM,"EQUIPMENT RENTAL&LEASING SVS, FURNTURE/TOOL RENTAL",-138.80
23/09/2022,11928,COMMUNITY SUPPORT GRANTS,5999,AMZNMKTPLACE,MISCELLANEOUS AND SPECIALTY RETAIL STORES,14.50
23/09/2022,11928,COMMUNITY SUPPORT GRANTS,5999,AMZNMKTPLACE AMAZON.CO,MISCELLANEOUS AND SPECIALTY RETAIL STORES,14.50
23/09/2022,11928,COMMUNITY SUPPORT GRANTS,5999,AMZNMKTPLACE AMAZON.CO,MISCELLANEOUS AND SPECIALTY RETAIL STORES,8.99
23/09/2022,11928,COMMUNITY SUPPORT GRANTS,5999,AMZNMKTPLACE AMAZON.CO,MISCELLANEOUS AND SPECIALTY RETAIL STORES,16.94
23/09/2022,11928,COMMUNITY SUPPORT GRANTS,5999,AMZNMKTPLACE AMAZON.CO,MISCELLANEOUS AND SPECIALTY RETAIL STORES,8.99
23/09/2022,11928,COMMUNITY SUPPORT GRANTS,5999,AMZNMKTPLACE AMAZON.CO,MISCELLANEOUS AND SPECIALTY RETAIL STORES,8.99
23/09/2022,11928,COMMUNITY SUPPORT GRANTS,5999,AMZNMKTPLACE AMAZON.CO,MISCELLANEOUS AND SPECIALTY RETAIL STORES,132.98
23/09/2022,11928,COMMUNITY SUPPORT GRANTS,5999,AMZNMKTPLACE AMAZON.CO,MISCELLANEOUS AND SPECIALTY RETAIL STORES,10.33
23/09/2022,11928,COMMUNITY SUPPORT GRANTS,5999,AMZNMKTPLACE AMAZON.CO,MISCELLANEOUS AND SPECIALTY RETAIL STORES,10.94
23/09/2022,11928,COMMUNITY SUPPORT GRANTS,5999,AMZNMKTPLACE AMAZON.CO,MISCELLANEOUS AND SPECIALTY RETAIL STORES,21.88
23/09/2022,11928,COMMUNITY SUPPORT GRANTS,5999,AMZNMKTPLACE AMAZON.CO,MISCELLANEOUS AND SPECIALTY RETAIL STORES,7.44
23/09/2022,11928,COMMUNITY SUPPORT GRANTS,5999,AMZNMKTPLACE AMAZON.CO,MISCELLANEOUS AND SPECIALTY RETAIL STORES,17.95
23/09/2022,11928,COMMUNITY SUPPORT GRANTS,5999,AMZNMKTPLACE AMAZON.CO,MISCELLANEOUS AND SPECIALTY RETAIL STORES,10.99
23/09/2022,11928,COMMUNITY SUPPORT GRANTS,5999,AMZNMKTPLACE AMAZON.CO,MISCELLANEOUS AND SPECIALTY RETAIL STORES,22.00
23/09/2022,11928,COMMUNITY SUPPORT GRANTS,5999,AMZNMKTPLACE AMAZON.CO,MISCELLANEOUS AND SPECIALTY RETAIL STORES,6.98
23/09/2022,11928,COMMUNITY SUPPORT GRANTS,5999,AMZNMKTPLACE AMAZON.CO,MISCELLANEOUS AND SPECIALTY RETAIL STORES,6.98
23/09/2022,11928,COMMUNITY SUPPORT GRANTS,5999,AMZNMKTPLACE AMAZON.CO,MISCELLANEOUS AND SPECIALTY RETAIL STORES,7.44
23/09/2022,11928,COMMUNITY SUPPORT GRANTS,5999,AMZNMKTPLACE AMAZON.CO,MISCELLANEOUS AND SPECIALTY RETAIL STORES,79.99
23/09/2022,11928,COMMUNITY SUPPORT GRANTS,5999,AMZNMKTPLACE AMAZON.CO,MISCELLANEOUS AND SPECIALTY RETAIL STORES,46.99
23/09/2022,11928,COMMUNITY SUPPORT GRANTS,5999,AMZNMKTPLACE AMAZON.CO,MISCELLANEOUS AND SPECIALTY RETAIL STORES,7.44
23/09/2022,11928,COMMUNITY SUPPORT GRANTS,5999,AMZNMKTPLACE AMAZON.CO,MISCELLANEOUS AND SPECIALTY RETAIL STORES,46.99
23/09/2022,11928,COMMUNITY SUPPORT GRANTS,5999,AMZNMKTPLACE AMAZON.CO,MISCELLANEOUS AND SPECIALTY RETAIL STORES,46.99
23/09/2022,11928,COMMUNITY SUPPORT GRANTS,5999,AMZNMKTPLACE AMAZON.CO,MISCELLANEOUS AND SPECIALTY RETAIL STORES,93.98
23/09/2022,11928,COMMUNITY SUPPORT GRANTS,5999,AMZNMKTPLACE AMAZON.CO,MISCELLANEOUS AND SPECIALTY RETAIL STORES,18.98
23/09/2022,11928,COMMUNITY SUPPORT GRANTS,5999,AMZNMKTPLACE AMAZON.CO,MISCELLANEOUS AND SPECIALTY RETAIL STORES,42.90
23/09/2022,11928,COMMUNITY SUPPORT GRANTS,5999,AMZNMKTPLACE AMAZON.CO,MISCELLANEOUS AND SPECIALTY RETAIL STORES,42.90
23/09/2022,11928,COMMUNITY SUPPORT GRANTS,5999,AMZNMKTPLACE,MISCELLANEOUS AND SPECIALTY RETAIL STORES,18.98
23/09/2022,11928,COMMUNITY SUPPORT GRANTS,5999,AMZNMKTPLACE AMAZON.CO,MISCELLANEOUS AND SPECIALTY RETAIL STORES,42.90
23/09/2022,11928,COMMUNITY SUPPORT GRANTS,5999,AMZNMKTPLACE AMAZON.CO,MISCELLANEOUS AND SPECIALTY RETAIL STORES,17.95
23/09/2022,11928,COMMUNITY SUPPORT GRANTS,5999,AMZNMKTPLACE,MISCELLANEOUS AND SPECIALTY RETAIL STORES,17.95
22/09/2022,10704,LEGAL SERVICES,5999,AMZNMKTPLACE AMAZON.CO,MISCELLANEOUS AND SPECIALTY RETAIL STORES,44.39
22/09/2022,10704,LEGAL SERVICES,5192,AB  ABEBOOKS.UK JIHFDE,"BOOKS,PERIODICALS AND NEWSPAPERS",49.64
22/09/2022,10378,CHILDREN�S SERVICES MANAGEMENT TEAM,4112,TRAINLINE.COM,PASSENGER RAILWAYS,196.05
22/09/2022,10416,LAC PERMANENCY,4112,THETRAINLINE.COM,PASSENGER RAILWAYS,92.11
22/09/2022,10416,LAC PERMANENCY,7011,HOTEL AT BOOKING.COM,"LODGING-HOTELS,MOTELS,RESORTS-NOT CLASSIFIED",103.50
22/09/2022,10416,LAC PERMANENCY,4112,TRAINLINE.COM,PASSENGER RAILWAYS,51.55
22/09/2022,10138,IPS LD MANAGEMENT TEAM,4111,WWW.WMCA.ORG.UK,"TRANSPRTN-SUBRBN & LOCAL COMTR PSNGR, INCL FERRIES",10.00
22/09/2022,10232,CHILDREN�S DISABILITY,4121,5858386-0922,LIMOUSINES AND TAXICABS,11.00
22/09/2022,11746,RESIDENTIAL - GRAYSWOOD,5999,AMZNMKTPLACE,MISCELLANEOUS AND SPECIALTY RETAIL STORES,23.99
22/09/2022,10288,MEMBERS SERVICES,5999,AMZNBUSINESS 3R8FF4M45,MISCELLANEOUS AND SPECIALTY RETAIL STORES,29.68
22/09/2022,11746,RESIDENTIAL - GRAYSWOOD,5411,TESCO STORES 2328,"GROCERY STORES, SUPERMARKETS",224.88
22/09/2022,10480,"DIRECTOR � BUSINESS, INVESTMENT & CULTU",4112,THETRAINLINE.COM,PASSENGER RAILWAYS,61.84
22/09/2022,10480,"DIRECTOR � BUSINESS, INVESTMENT & CULTU",4112,TRAINLINE,PASSENGER RAILWAYS,94.25
22/09/2022,11842,"OCCUPATIONAL HEALTH, COUNSELLING & SUPPO",5047,WWW.DIABETICSUPPLY.CO.,DENTAL/LAB/MED/OPHTHALMIC HOSP EQUIP & SUPPLIES,14.98
22/09/2022,11157,IPS HWC ELSIE JONES,5422,WWW.MIDLANDFOODS.CO.UK,"FREEZER, LOCKER MEAT PROVISIONERS",72.42
22/09/2022,11157,IPS HWC ELSIE JONES,5422,WWW.MIDLANDFOODS.CO.UK,"FREEZER, LOCKER MEAT PROVISIONERS",86.85
22/09/2022,11157,IPS HWC ELSIE JONES,5811,BRAKES (STORED CARDS),CATERERS,-6.78
22/09/2022,11107,CENTRAL FAMILY HUB,1520,BUDGET SKIP SERVICES L,GENERAL CONTRACTORS/RESIDENTIAL BUILDINGS,260.00
22/09/2022,11107,CENTRAL FAMILY HUB,1520,BUDGET SKIP SERVICES L,GENERAL CONTRACTORS/RESIDENTIAL BUILDINGS,190.00
22/09/2022,10541,COVENTRY EXTENDED LEARNING CENTRE,8241,WHITE ROSE MATHS,"SCHOOLS, CORRESPONDENCE",81.00
22/09/2022,10758,INDIVIDUAL ELECTORAL REGISTRATION,5411,ASDA STORES 4602,"GROCERY STORES, SUPERMARKETS",10.20
22/09/2022,11464,DSG - FAMILY HUB BUDGET,7523,COVENTRY CITY COUNCIL,AUTOMOBILE PARKING LOTS AND GARAGES,10.00
22/09/2022,11687,RESIDENTIAL - BROAD PARK HOUSE,5411,ASDA STORES 4602,"GROCERY STORES, SUPERMARKETS",92.87
22/09/2022,11764,HOSPITAL EDUCATION & OUTREACH SERVICE,5999,AMZNMKTPLACE AMAZON.CO,MISCELLANEOUS AND SPECIALTY RETAIL STORES,21.99
22/09/2022,11764,HOSPITAL EDUCATION & OUTREACH SERVICE,5999,AMZNMKTPLACE AMAZON.CO,MISCELLANEOUS AND SPECIALTY RETAIL STORES,2.99
22/09/2022,11764,HOSPITAL EDUCATION & OUTREACH SERVICE,5999,AMZNMKTPLACE AMAZON.CO,MISCELLANEOUS AND SPECIALTY RETAIL STORES,18.30
22/09/2022,11887,DIRECTOR - PEOPLE,5411,MARKS&SPENCER PLC,"GROCERY STORES, SUPERMARKETS",8.55
22/09/2022,11887,DIRECTOR - PEOPLE,5411,TESCO STORES 5779,"GROCERY STORES, SUPERMARKETS",6.00
22/09/2022,11136,EAST FAMILY HUB,5411,FARMFOODS 640,"GROCERY STORES, SUPERMARKETS",16.20
22/09/2022,11687,RESIDENTIAL - BROAD PARK HOUSE,5999,AMZNMKTPLACE,MISCELLANEOUS AND SPECIALTY RETAIL STORES,8.19
22/09/2022,10448,RESIDENTIAL - GRAVEL HILL,5999,AMZNMKTPLACE,MISCELLANEOUS AND SPECIALTY RETAIL STORES,4.40
22/09/2022,10512,REGISTER OFFICE,5411,ADSA STORES LTD 4231,"GROCERY STORES, SUPERMARKETS",4.50
22/09/2022,10512,REGISTER OFFICE,5411,TESCO STORES 5779,"GROCERY STORES, SUPERMARKETS",1.65
22/09/2022,11687,RESIDENTIAL - BROAD PARK HOUSE,5999,AMZNMKTPLACE,MISCELLANEOUS AND SPECIALTY RETAIL STORES,9.98
22/09/2022,11687,RESIDENTIAL - BROAD PARK HOUSE,5999,AMZNMKTPLACE,MISCELLANEOUS AND SPECIALTY RETAIL STORES,24.98
22/09/2022,11687,RESIDENTIAL - BROAD PARK HOUSE,5999,AMZNMKTPLACE,MISCELLANEOUS AND SPECIALTY RETAIL STORES,27.99
22/09/2022,11984,IPS MAYMORN RESOURCE CENTRE,5411,WM MORRISONS STORE,"GROCERY STORES, SUPERMARKETS",3.10
22/09/2022,11879,IPS LD MAURICE EDELMAN HOUSE,5999,AMZNMKTPLACE AMAZON.CO,MISCELLANEOUS AND SPECIALTY RETAIL STORES,47.50
22/09/2022,11879,IPS LD MAURICE EDELMAN HOUSE,5411,TESCO STORES 2328,"GROCERY STORES, SUPERMARKETS",84.80
22/09/2022,11928,COMMUNITY SUPPORT GRANTS,5999,AMZNMKTPLACE AMAZON.CO,MISCELLANEOUS AND SPECIALTY RETAIL STORES,79.99
22/09/2022,11879,IPS LD MAURICE EDELMAN HOUSE,5999,AMZNMKTPLACE,MISCELLANEOUS AND SPECIALTY RETAIL STORES,11.94
22/09/2022,11928,COMMUNITY SUPPORT GRANTS,5999,AMZNMKTPLACE,MISCELLANEOUS AND SPECIALTY RETAIL STORES,79.99
22/09/2022,11928,COMMUNITY SUPPORT GRANTS,5999,AMZNMKTPLACE,MISCELLANEOUS AND SPECIALTY RETAIL STORES,14.50
22/09/2022,11928,COMMUNITY SUPPORT GRANTS,5999,AMZNMKTPLACE AMAZON.CO,MISCELLANEOUS AND SPECIALTY RETAIL STORES,14.50
22/09/2022,11928,COMMUNITY SUPPORT GRANTS,5999,AMZNMKTPLACE AMAZON.CO,MISCELLANEOUS AND SPECIALTY RETAIL STORES,10.99
22/09/2022,11928,COMMUNITY SUPPORT GRANTS,5999,AMZNMKTPLACE AMAZON.CO,MISCELLANEOUS AND SPECIALTY RETAIL STORES,6.98
22/09/2022,11928,COMMUNITY SUPPORT GRANTS,5999,AMZNMKTPLACE AMAZON.CO,MISCELLANEOUS AND SPECIALTY RETAIL STORES,10.94
22/09/2022,11928,COMMUNITY SUPPORT GRANTS,5999,AMZNMKTPLACE AMAZON.CO,MISCELLANEOUS AND SPECIALTY RETAIL STORES,10.94
22/09/2022,11928,COMMUNITY SUPPORT GRANTS,5999,AMZNMKTPLACE AMAZON.CO,MISCELLANEOUS AND SPECIALTY RETAIL STORES,10.94
22/09/2022,11928,COMMUNITY SUPPORT GRANTS,5999,AMZNMKTPLACE AMAZON.CO,MISCELLANEOUS AND SPECIALTY RETAIL STORES,14.50
22/09/2022,11928,COMMUNITY SUPPORT GRANTS,5999,AMZNMKTPLACE AMAZON.CO,MISCELLANEOUS AND SPECIALTY RETAIL STORES,79.99
22/09/2022,11928,COMMUNITY SUPPORT GRANTS,5999,AMZNMKTPLACE AMAZON.CO,MISCELLANEOUS AND SPECIALTY RETAIL STORES,10.99
22/09/2022,11928,COMMUNITY SUPPORT GRANTS,5999,AMZNMKTPLACE AMAZON.CO,MISCELLANEOUS AND SPECIALTY RETAIL STORES,10.99
22/09/2022,11928,COMMUNITY SUPPORT GRANTS,5999,AMZNMKTPLACE AMAZON.CO,MISCELLANEOUS AND SPECIALTY RETAIL STORES,6.98
22/09/2022,11928,COMMUNITY SUPPORT GRANTS,5999,AMZNMKTPLACE AMAZON.CO,MISCELLANEOUS AND SPECIALTY RETAIL STORES,6.98
22/09/2022,11928,COMMUNITY SUPPORT GRANTS,5999,AMZNMKTPLACE,MISCELLANEOUS AND SPECIALTY RETAIL STORES,10.99
22/09/2022,11928,COMMUNITY SUPPORT GRANTS,5999,AMZNMKTPLACE,MISCELLANEOUS AND SPECIALTY RETAIL STORES,6.98
22/09/2022,11928,COMMUNITY SUPPORT GRANTS,5999,AMZNMKTPLACE,MISCELLANEOUS AND SPECIALTY RETAIL STORES,10.94
22/09/2022,10291,SECTION17 PAYMENTS CENTRAL,5310,ARGOS LTD,DISCOUNT STORES,14.99
22/09/2022,11928,COMMUNITY SUPPORT GRANTS,5999,AMZNMKTPLACE,MISCELLANEOUS AND SPECIALTY RETAIL STORES,7.44
22/09/2022,11928,COMMUNITY SUPPORT GRANTS,5999,AMZNMKTPLACE,MISCELLANEOUS AND SPECIALTY RETAIL STORES,46.99
22/09/2022,10291,SECTION17 PAYMENTS CENTRAL,1520,SUMUP   SOUTHERN CROSS,GENERAL CONTRACTORS/RESIDENTIAL BUILDINGS,389.38
22/09/2022,10333,14-16 ALTERNATIVE CURRICULUM,7523,COVENTRY CITY COUNCIL,AUTOMOBILE PARKING LOTS AND GARAGES,3.00
22/09/2022,11197,WEST FAMILY HUB,5411,FARMFOODS 641,"GROCERY STORES, SUPERMARKETS",11.64
22/09/2022,10448,RESIDENTIAL - GRAVEL HILL,7991,DISCOVERY CENTRE,TOURIST ATTRACTIONS AND EXHIBITS,70.90
22/09/2022,11879,IPS LD MAURICE EDELMAN HOUSE,5422,WWW.MIDLANDFOODS.CO.UK,"FREEZER, LOCKER MEAT PROVISIONERS",93.99
22/09/2022,11879,IPS LD MAURICE EDELMAN HOUSE,5422,WWW.MIDLANDFOODS.CO.UK,"FREEZER, LOCKER MEAT PROVISIONERS",130.30
22/09/2022,11922,ICT USER SUPPORT,5999,AMZNBUSINESS CG5U93IQ5,MISCELLANEOUS AND SPECIALTY RETAIL STORES,9.00
22/09/2022,10704,LEGAL SERVICES,5999,AMZNMKTPLACE AMAZON.CO,MISCELLANEOUS AND SPECIALTY RETAIL STORES,34.70
22/09/2022,11922,ICT USER SUPPORT,5999,AMZNBUSINESS H58030LK5,MISCELLANEOUS AND SPECIALTY RETAIL STORES,3.98
22/09/2022,11922,ICT USER SUPPORT,5999,AMZNBUSINESS X86M50PO5,MISCELLANEOUS AND SPECIALTY RETAIL STORES,19.70
22/09/2022,11086,OUTDOOR EDUCATION CENTRE,5411,CO-OP GROUP 190390,"GROCERY STORES, SUPERMARKETS",4.45
22/09/2022,10469,RESIDENTIAL - JOBS LANE,7523,COVENTRY CITY COUNCIL,AUTOMOBILE PARKING LOTS AND GARAGES,2.00
22/09/2022,10360,JOB SHOP,9399,HM PASSPORT OFFICE,GOVERNMENT SERVICES-NOT ELSEWHERE CLASSIFIED,85.00
22/09/2022,11507,CARE LEAVERS,5947,CARD FACTORY,"GIFT, CARD, NOVELTY AND SOUVENIR SHOPS",.99
22/09/2022,11746,RESIDENTIAL - GRAYSWOOD,5999,AMZNMKTPLACE AMAZON.CO,MISCELLANEOUS AND SPECIALTY RETAIL STORES,11.38
22/09/2022,11746,RESIDENTIAL - GRAYSWOOD,5411,ASDA STORES 4602,"GROCERY STORES, SUPERMARKETS",58.50
22/09/2022,10053,OPR0276 LONDON ROAD 259 WHITLEY DEPOT,5999,AMZNBUSINESS F353M67V5,MISCELLANEOUS AND SPECIALTY RETAIL STORES,2.10
22/09/2022,10053,OPR0276 LONDON ROAD 259 WHITLEY DEPOT,5999,AMZNBUSINESS GO7K10GK5,MISCELLANEOUS AND SPECIALTY RETAIL STORES,22.00
22/09/2022,10053,OPR0276 LONDON ROAD 259 WHITLEY DEPOT,5999,AMZNBUSINESS PL54Y6FU5,MISCELLANEOUS AND SPECIALTY RETAIL STORES,2.10
22/09/2022,10053,OPR0276 LONDON ROAD 259 WHITLEY DEPOT,5999,AMZNBUSINESS 2482A1Q84,MISCELLANEOUS AND SPECIALTY RETAIL STORES,18.90
22/09/2022,10040,IPS HWC COPTHORNE,5422,WWW.MIDLANDFOODS.CO.UK,"FREEZER, LOCKER MEAT PROVISIONERS",174.94
22/09/2022,10053,OPR0276 LONDON ROAD 259 WHITLEY DEPOT,5999,AMZNBUSINESS GO0HV1RC5,MISCELLANEOUS AND SPECIALTY RETAIL STORES,2.10
22/09/2022,10053,OPR0276 LONDON ROAD 259 WHITLEY DEPOT,5999,AMZNBUSINESS M19IJ71T5,MISCELLANEOUS AND SPECIALTY RETAIL STORES,16.80
22/09/2022,11021,LAC & CARE LEAVERS,5814,MCDONALDS,FAST FOOD RESTAURANTS,7.00
22/09/2022,11248,IPS ERIC WILLIAMS HOUSE,5422,WWW.MIDLANDFOODS.CO.UK,"FREEZER, LOCKER MEAT PROVISIONERS",126.12
22/09/2022,10676,HOUSING AND HOMELESSNESS,5999,AMZNMKTPLACE,MISCELLANEOUS AND SPECIALTY RETAIL STORES,2.99
22/09/2022,11248,IPS ERIC WILLIAMS HOUSE,5411,CO-OP LATE SHOP,"GROCERY STORES, SUPERMARKETS",24.50
22/09/2022,11248,IPS ERIC WILLIAMS HOUSE,5422,WWW.MIDLANDFOODS.CO.UK,"FREEZER, LOCKER MEAT PROVISIONERS",40.57
22/09/2022,11248,IPS ERIC WILLIAMS HOUSE,5422,WWW.MIDLANDFOODS.CO.UK,"FREEZER, LOCKER MEAT PROVISIONERS",80.02
22/09/2022,11248,IPS ERIC WILLIAMS HOUSE,5422,WWW.MIDLANDFOODS.CO.UK,"FREEZER, LOCKER MEAT PROVISIONERS",101.80
22/09/2022,10900,LOCAL WELFARE PROVISION COVID-19,5999,AMZNMKTPLACE AMAZON.CO,MISCELLANEOUS AND SPECIALTY RETAIL STORES,49.99
22/09/2022,10900,LOCAL WELFARE PROVISION COVID-19,5999,AMZNMKTPLACE AMAZON.CO,MISCELLANEOUS AND SPECIALTY RETAIL STORES,49.99
22/09/2022,10900,LOCAL WELFARE PROVISION COVID-19,5999,AMZNMKTPLACE AMAZON.CO,MISCELLANEOUS AND SPECIALTY RETAIL STORES,49.99
22/09/2022,10900,LOCAL WELFARE PROVISION COVID-19,5999,AMZNMKTPLACE AMAZON.CO,MISCELLANEOUS AND SPECIALTY RETAIL STORES,49.99
22/09/2022,10900,LOCAL WELFARE PROVISION COVID-19,5999,AMZNMKTPLACE AMAZON.CO,MISCELLANEOUS AND SPECIALTY RETAIL STORES,49.99
22/09/2022,11307,IPS MH THE POD,5411,SAINSBURYS S MKTS,"GROCERY STORES, SUPERMARKETS",2.10
22/09/2022,10469,RESIDENTIAL - JOBS LANE,5999,AMZNMKTPLACE,MISCELLANEOUS AND SPECIALTY RETAIL STORES,6.98
22/09/2022,11381,PUBLIC HEALTH,4131,WEST MIDLANDS TRAV,BUS LINES,55.00
22/09/2022,11381,PUBLIC HEALTH,4131,WEST MIDLANDS TRAV,BUS LINES,55.00
22/09/2022,11107,CENTRAL FAMILY HUB,5999,AMZNMKTPLACE,MISCELLANEOUS AND SPECIALTY RETAIL STORES,17.95
22/09/2022,10416,LAC PERMANENCY,5999,AMZNMKTPLACE,MISCELLANEOUS AND SPECIALTY RETAIL STORES,159.98
22/09/2022,11057,SFPC-FAMILY GROUP CONFERENCING,5999,AMZNMKTPLACE AMAZON.CO,MISCELLANEOUS AND SPECIALTY RETAIL STORES,54.99
22/09/2022,10962,OUTDOOR EDUCATION SERVICE,8999,PAYPAL  NEO.ELANDRIEL,PROFESSIONAL SERVICES-NOT ELSEWHERE CLASSIFIED,128.00
22/09/2022,11381,PUBLIC HEALTH,4131,WEST MIDLANDS TRAV,BUS LINES,27.50
22/09/2022,11381,PUBLIC HEALTH,4131,WEST MIDLANDS TRAV,BUS LINES,27.50
22/09/2022,11381,PUBLIC HEALTH,4131,WEST MIDLANDS TRAV,BUS LINES,55.00
22/09/2022,11381,PUBLIC HEALTH,5411,MARKS&SPENCER PLC,"GROCERY STORES, SUPERMARKETS",8.45
22/09/2022,11381,PUBLIC HEALTH,4131,WEST MIDLANDS TRAV,BUS LINES,55.00
22/09/2022,11381,PUBLIC HEALTH,4131,WEST MIDLANDS TRAV,BUS LINES,27.50
22/09/2022,11381,PUBLIC HEALTH,4131,WEST MIDLANDS TRAV,BUS LINES,55.00
22/09/2022,10416,LAC PERMANENCY,4112,THETRAINLINE.COM,PASSENGER RAILWAYS,192.99
22/09/2022,10416,LAC PERMANENCY,4131,WEST MIDLANDS TRAV,BUS LINES,51.50
22/09/2022,10416,LAC PERMANENCY,4131,WEST MIDLANDS TRAV,BUS LINES,51.50
22/09/2022,11057,SFPC-FAMILY GROUP CONFERENCING,5411,ADSA STORES LTD 4231,"GROCERY STORES, SUPERMARKETS",3.65
22/09/2022,10019,CUSTOMER SERVICES CENTRE,5999,AMZNMKTPLACE AMAZON.CO,MISCELLANEOUS AND SPECIALTY RETAIL STORES,135.99
22/09/2022,10019,CUSTOMER SERVICES CENTRE,5999,AMZNMKTPLACE AMAZON.CO,MISCELLANEOUS AND SPECIALTY RETAIL STORES,135.99
22/09/2022,11307,IPS MH THE POD,5411,SAINSBURYS S MKTS,"GROCERY STORES, SUPERMARKETS",.60
22/09/2022,10019,CUSTOMER SERVICES CENTRE,5999,AMZNMKTPLACE,MISCELLANEOUS AND SPECIALTY RETAIL STORES,84.90
22/09/2022,10019,CUSTOMER SERVICES CENTRE,5999,AMZNMKTPLACE,MISCELLANEOUS AND SPECIALTY RETAIL STORES,84.90
22/09/2022,10225,HOUSING - B&B ACCOMMODATION,7011,NOVOTEL COVENTRY,"LODGING-HOTELS,MOTELS,RESORTS-NOT CLASSIFIED",322.00
22/09/2022,11307,IPS MH THE POD,5411,SAINSBURYS S MKTS,"GROCERY STORES, SUPERMARKETS",2.85
22/09/2022,11932,LAC THROUGHCARE TEAM,7832,SHOWCASE CINEMAS,MOTION PICTURE THEATERS,11.95
22/09/2022,11826,REPAIR & MAINTENANCE,5732,PAYPAL  BUYABATTERY,ELECTRONIC SALES,143.74
22/09/2022,11826,REPAIR & MAINTENANCE,5732,PAYPAL  BUYABATTERY,ELECTRONIC SALES,72.44
22/09/2022,11826,REPAIR & MAINTENANCE,5732,PAYPAL  BUYABATTERY,ELECTRONIC SALES,232.98
22/09/2022,11826,REPAIR & MAINTENANCE,5732,PAYPAL  BUYABATTERY,ELECTRONIC SALES,62.19
22/09/2022,11826,REPAIR & MAINTENANCE,5732,PAYPAL  BUYABATTERY,ELECTRONIC SALES,-3.49
22/09/2022,11826,REPAIR & MAINTENANCE,5732,PAYPAL  BUYABATTERY,ELECTRONIC SALES,17.29
22/09/2022,11826,REPAIR & MAINTENANCE,5211,EUROCELL,"BUILDING MATERIALS, LUMBER STORES",3.78
22/09/2022,11826,REPAIR & MAINTENANCE,5732,PAYPAL  BUYABATTERY,ELECTRONIC SALES,-5.02
22/09/2022,11539,CENTRALISED PROMOTIONS BUDGET,7311,FACEBK  QWYF9FTGB2,ADVERTISING SERVICES,616.92
22/09/2022,11932,LAC THROUGHCARE TEAM,4131,NX BUS CONTACTLESS,BUS LINES,2.20
22/09/2022,11932,LAC THROUGHCARE TEAM,5310,ARGOS LTD,DISCOUNT STORES,424.98
22/09/2022,11932,LAC THROUGHCARE TEAM,5310,ARGOS LTD,DISCOUNT STORES,136.95
21/09/2022,11928,COMMUNITY SUPPORT GRANTS,5999,AMZNMKTPLACE AMAZON.CO,MISCELLANEOUS AND SPECIALTY RETAIL STORES,7.44
21/09/2022,11086,OUTDOOR EDUCATION CENTRE,5211,WWW.SCREWFIX.COM,"BUILDING MATERIALS, LUMBER STORES",123.73
21/09/2022,11197,WEST FAMILY HUB,5970,HOBBYCRAFT TRADING LIM,"ARTIST SUPPLY STORES, CRAFT SHOPS",65.95
21/09/2022,10150,TRAINING CORPORATE COMMISSIONING,4112,WWW.AVANTIWESTCOAST.CO,PASSENGER RAILWAYS,10.60
21/09/2022,11001,BUSINESS INVESTMENT � INWARD INVESTME,4112,TRAINLINE.COM,PASSENGER RAILWAYS,127.67
21/09/2022,11072,ADULT EDUCATION � WORK PLACE LEARNING,5411,WM MORRISONS STORE,"GROCERY STORES, SUPERMARKETS",26.53
21/09/2022,10411,IPS HWC QUINTON LODGE,5811,BRAKES (STORED CARDS),CATERERS,213.56
21/09/2022,10411,IPS HWC QUINTON LODGE,5811,BRAKES (STORED CARDS),CATERERS,88.97
21/09/2022,10019,CUSTOMER SERVICES CENTRE,5999,AMZNMKTPLACE,MISCELLANEOUS AND SPECIALTY RETAIL STORES,64.99
21/09/2022,10019,CUSTOMER SERVICES CENTRE,5999,AMZNMKTPLACE,MISCELLANEOUS AND SPECIALTY RETAIL STORES,57.98
21/09/2022,10019,CUSTOMER SERVICES CENTRE,5999,AMZNMKTPLACE,MISCELLANEOUS AND SPECIALTY RETAIL STORES,135.99
21/09/2022,10019,CUSTOMER SERVICES CENTRE,5999,AMZNMKTPLACE,MISCELLANEOUS AND SPECIALTY RETAIL STORES,57.98
21/09/2022,10019,CUSTOMER SERVICES CENTRE,5999,AMZNMKTPLACE,MISCELLANEOUS AND SPECIALTY RETAIL STORES,89.99
21/09/2022,10019,CUSTOMER SERVICES CENTRE,5999,AMZNMKTPLACE,MISCELLANEOUS AND SPECIALTY RETAIL STORES,115.96
21/09/2022,11307,IPS MH THE POD,5411,SUMUP   PETER MAC,"GROCERY STORES, SUPERMARKETS",13.00
21/09/2022,11307,IPS MH THE POD,5499,EAST ASIA FOOD,"MISC FOOD STORE-CONVENIENCE,MRKT,SPLTY,VENDNG MACS",9.60
21/09/2022,11307,IPS MH THE POD,5411,TESCO STORES 5779,"GROCERY STORES, SUPERMARKETS",2.25
21/09/2022,11307,IPS MH THE POD,5411,BAIXING FOODS LIMITED,"GROCERY STORES, SUPERMARKETS",5.98
21/09/2022,11932,LAC THROUGHCARE TEAM,5812,MCDONALDS   539,"EATING PLACES, RESTAURANTS",16.96
21/09/2022,10541,COVENTRY EXTENDED LEARNING CENTRE,5411,ASDA GROCERIES ONLINE,"GROCERY STORES, SUPERMARKETS",83.57
21/09/2022,11103,RESIDENTIAL - BROAD LANE,5399,MOONPIG,MISCELLANEOUS GENERAL MERCHANDISE,9.98
21/09/2022,10541,COVENTRY EXTENDED LEARNING CENTRE,5411,ASDA GROCERIES ONLINE,"GROCERY STORES, SUPERMARKETS",79.85
21/09/2022,10541,COVENTRY EXTENDED LEARNING CENTRE,5411,ASDA GROCERIES ONLINE,"GROCERY STORES, SUPERMARKETS",-3.52
21/09/2022,10541,COVENTRY EXTENDED LEARNING CENTRE,5411,ASDA GROCERIES ONLINE,"GROCERY STORES, SUPERMARKETS",-3.49
21/09/2022,10211,MIGRATION PROJECT B,5411,RED ROSE DISCOUNT,"GROCERY STORES, SUPERMARKETS",26.38
21/09/2022,11932,LAC THROUGHCARE TEAM,5712,IKEA LTD SHOP ONLINE,"EQUIP, FURNITURE, HOME FURNSHNGS STRS (EXCPT APPL)",34.00
21/09/2022,11932,LAC THROUGHCARE TEAM,5999,AMZNMKTPLACE,MISCELLANEOUS AND SPECIALTY RETAIL STORES,281.93
21/09/2022,11932,LAC THROUGHCARE TEAM,5732,JUBILEE APPLIANCES,ELECTRONIC SALES,348.00
21/09/2022,11746,RESIDENTIAL - GRAYSWOOD,8043,EYESITE EYECARE CE,"OPTICIANS,OPTICAL GOODS & EYEGLASSES",25.00
21/09/2022,11507,CARE LEAVERS,5999,AMZNMKTPLACE,MISCELLANEOUS AND SPECIALTY RETAIL STORES,56.99
21/09/2022,10951,IPS HWC SHORT TERM TENANCIES,4900,E.ON NEXT,"UTLTS-ELCTRC, GAS, HEATING OIL, SANITARY, WATER",30.61
21/09/2022,10383,IPS HWC KNIGHTLOW,5811,BRAKES (STORED CARDS),CATERERS,280.71
21/09/2022,11157,IPS HWC ELSIE JONES,5811,BRAKES (STORED CARDS),CATERERS,467.60
21/09/2022,10497,HOSPITAL SOCIAL CARE SERVICE,7278,COOLERAID LTD,"BUYING/SHOPPING CLUBS, SERVICES",180.00
21/09/2022,10951,IPS HWC SHORT TERM TENANCIES,4900,E.ON NEXT,"UTLTS-ELCTRC, GAS, HEATING OIL, SANITARY, WATER",55.62
21/09/2022,10951,IPS HWC SHORT TERM TENANCIES,4900,E.ON NEXT,"UTLTS-ELCTRC, GAS, HEATING OIL, SANITARY, WATER",6.83
21/09/2022,10378,CHILDREN�S SERVICES MANAGEMENT TEAM,7399,VISTAPRINT,BUSINESS SERVICES-NOT ELSEWHERE CLASSIFIED,37.38
21/09/2022,10378,CHILDREN�S SERVICES MANAGEMENT TEAM,5399,WILKO RETAIL LIMITED,MISCELLANEOUS GENERAL MERCHANDISE,7.80
21/09/2022,10444,SOCIAL WORKER ACADEMY,5399,WILKO RETAIL LIMITED,MISCELLANEOUS GENERAL MERCHANDISE,5.00
21/09/2022,10378,CHILDREN�S SERVICES MANAGEMENT TEAM,7999,LASER QUEST,RECREATION SERVICES (NOT ELSEWHERE CLASSIFIED),340.00
21/09/2022,10541,COVENTRY EXTENDED LEARNING CENTRE,5411,TESCO STORES 5168,"GROCERY STORES, SUPERMARKETS",62.54
21/09/2022,10882,LEEDS FAMILY VALUED PROGRAMME,5310,THE WORKS,DISCOUNT STORES,20.00
21/09/2022,11255,ADULT ED ADMIN & MANAGEMENT,7278,COOLERAID LTD,"BUYING/SHOPPING CLUBS, SERVICES",30.00
21/09/2022,11255,ADULT ED ADMIN & MANAGEMENT,7278,COOLERAID LTD,"BUYING/SHOPPING CLUBS, SERVICES",3.00
21/09/2022,11764,HOSPITAL EDUCATION & OUTREACH SERVICE,7278,COOLERAID LTD,"BUYING/SHOPPING CLUBS, SERVICES",33.00
21/09/2022,11764,HOSPITAL EDUCATION & OUTREACH SERVICE,5411,SKM CONVENIENCE STORE,"GROCERY STORES, SUPERMARKETS",5.56
21/09/2022,10700,AD - PROPERTY & ASSET MANAGEMENT,4112,WWW.AVANTIWESTCOAST.CO,PASSENGER RAILWAYS,121.50
21/09/2022,11354,IPS DAY OPPS GILBERT RICHARDS CENTRE,7278,COOLERAID LTD,"BUYING/SHOPPING CLUBS, SERVICES",111.16
21/09/2022,10287,HOUSING ENFORCEMENT AND MANDATORY LICE,7399,WWW.LABC.UK.COM,BUSINESS SERVICES-NOT ELSEWHERE CLASSIFIED,180.00
21/09/2022,10287,HOUSING ENFORCEMENT AND MANDATORY LICE,7399,WWW.LABC.UK.COM,BUSINESS SERVICES-NOT ELSEWHERE CLASSIFIED,180.00
21/09/2022,10448,RESIDENTIAL - GRAVEL HILL,5999,AMZNMKTPLACE,MISCELLANEOUS AND SPECIALTY RETAIL STORES,23.29
21/09/2022,11300,PEST CONTROL & ANIMAL WELFARE,5995,PETS AT HOME LTD,PET SHOPS - PET FOODS AND SUPPLIES,40.58
21/09/2022,11951,EXTERNAL FUNDING AND BUSINESS DEVELOP,4112,LUL TICKET MACHINE,PASSENGER RAILWAYS,12.60
21/09/2022,11951,EXTERNAL FUNDING AND BUSINESS DEVELOP,4112,WWW.AVANTIWESTCOAST.CO,PASSENGER RAILWAYS,125.50
21/09/2022,11282,POST AND FASTPRINT,5943,WWW.PRESCO-UK.COM,"OFFICE, SCHOOL SUPPLY, AND STATIONERY STORES",198.86
21/09/2022,11507,CARE LEAVERS,5814,43044160 COSTA COFFEE,FAST FOOD RESTAURANTS,7.25
21/09/2022,10416,LAC PERMANENCY,5310,POUNDLAND LTD 1282,DISCOUNT STORES,12.00
21/09/2022,11687,RESIDENTIAL - BROAD PARK HOUSE,5411,TESCO STORES 2328,"GROCERY STORES, SUPERMARKETS",42.20
21/09/2022,11687,RESIDENTIAL - BROAD PARK HOUSE,5812,RED LION,"EATING PLACES, RESTAURANTS",275.80
21/09/2022,11984,IPS MAYMORN RESOURCE CENTRE,7278,COOLERAID LTD,"BUYING/SHOPPING CLUBS, SERVICES",23.71
21/09/2022,11928,COMMUNITY SUPPORT GRANTS,5999,AMZNMKTPLACE,MISCELLANEOUS AND SPECIALTY RETAIL STORES,10.94
21/09/2022,10416,LAC PERMANENCY,5251,HOME BARGAINS COVENTRY,HARDWARE STORES,21.79
21/09/2022,11928,COMMUNITY SUPPORT GRANTS,5999,AMZNMKTPLACE,MISCELLANEOUS AND SPECIALTY RETAIL STORES,21.88
21/09/2022,11928,COMMUNITY SUPPORT GRANTS,5999,AMZNMKTPLACE,MISCELLANEOUS AND SPECIALTY RETAIL STORES,18.98
21/09/2022,11928,COMMUNITY SUPPORT GRANTS,5999,AMZNMKTPLACE,MISCELLANEOUS AND SPECIALTY RETAIL STORES,10.94
21/09/2022,11928,COMMUNITY SUPPORT GRANTS,5999,AMZNMKTPLACE,MISCELLANEOUS AND SPECIALTY RETAIL STORES,132.98
21/09/2022,11928,COMMUNITY SUPPORT GRANTS,5999,AMZNMKTPLACE,MISCELLANEOUS AND SPECIALTY RETAIL STORES,132.98
21/09/2022,11928,COMMUNITY SUPPORT GRANTS,5999,AMZNMKTPLACE,MISCELLANEOUS AND SPECIALTY RETAIL STORES,10.99
21/09/2022,11928,COMMUNITY SUPPORT GRANTS,5999,AMZNMKTPLACE,MISCELLANEOUS AND SPECIALTY RETAIL STORES,18.98
21/09/2022,11928,COMMUNITY SUPPORT GRANTS,5999,AMZNMKTPLACE AMAZON.CO,MISCELLANEOUS AND SPECIALTY RETAIL STORES,10.94
21/09/2022,11755,SEN EARLY YEARS,5411,TESCO STORES 5168,"GROCERY STORES, SUPERMARKETS",106.22
21/09/2022,11928,COMMUNITY SUPPORT GRANTS,5999,AMZNMKTPLACE AMAZON.CO,MISCELLANEOUS AND SPECIALTY RETAIL STORES,10.99
21/09/2022,10416,LAC PERMANENCY,4131,WEST MIDLANDS TRAV,BUS LINES,51.50
21/09/2022,11847,ICT & DIGITAL,4112,THETRAINLINE.COM,PASSENGER RAILWAYS,134.50
21/09/2022,11847,ICT & DIGITAL,7523,APCOA PARKING UK,AUTOMOBILE PARKING LOTS AND GARAGES,9.00
21/09/2022,10416,LAC PERMANENCY,4131,WEST MIDLANDS TRAV,BUS LINES,55.00
21/09/2022,11932,LAC THROUGHCARE TEAM,4784,M6 TOLL,"BRIDGE AND ROAD FEES, TOLLS",7.60
21/09/2022,11932,LAC THROUGHCARE TEAM,4784,M6 TOLL,"BRIDGE AND ROAD FEES, TOLLS",5.40
21/09/2022,11086,OUTDOOR EDUCATION CENTRE,5411,TESCO STORES 3057,"GROCERY STORES, SUPERMARKETS",1.77
21/09/2022,11403,IPS HWC COTTAGE FARM,5999,AMZNMKTPLACE AMAZON.CO,MISCELLANEOUS AND SPECIALTY RETAIL STORES,7.99
21/09/2022,11403,IPS HWC COTTAGE FARM,5999,AMZNMKTPLACE,MISCELLANEOUS AND SPECIALTY RETAIL STORES,9.79
21/09/2022,11103,RESIDENTIAL - BROAD LANE,5995,PETS AT HOME LTD,PET SHOPS - PET FOODS AND SUPPLIES,32.36
21/09/2022,10053,OPR0276 LONDON ROAD 259 WHITLEY DEPOT,5999,AMZNBUSINESS VV6GN1EW5,MISCELLANEOUS AND SPECIALTY RETAIL STORES,58.55
21/09/2022,11103,RESIDENTIAL - BROAD LANE,5411,TESCO STORES 2328,"GROCERY STORES, SUPERMARKETS",-.55
21/09/2022,11687,RESIDENTIAL - BROAD PARK HOUSE,4121,SUMUP   TAXIS,LIMOUSINES AND TAXICABS,19.10
21/09/2022,11602,IPS LD GOSFORD COMMUNITY HUB,5411,CO-OPERATIVE FOOD,"GROCERY STORES, SUPERMARKETS",5.40
21/09/2022,10828,CITY OF CULTURE,5200,B & Q 1258,HOME SUPPLY WAREHOUSE STORES,281.50
21/09/2022,10828,CITY OF CULTURE,5211,SCREWFIX DIR LTD,"BUILDING MATERIALS, LUMBER STORES",79.40
21/09/2022,10040,IPS HWC COPTHORNE,5811,BRAKES (STORED CARDS),CATERERS,262.69
21/09/2022,11687,RESIDENTIAL - BROAD PARK HOUSE,5812,RED LION,"EATING PLACES, RESTAURANTS",8.36
21/09/2022,11277,FLEET SERVICES,9311,DVLA VEHICLE TAX,TAX PAYMENTS,167.50
21/09/2022,11277,FLEET SERVICES,9311,DVLA VEHICLE TAX,TAX PAYMENTS,302.50
21/09/2022,11277,FLEET SERVICES,9311,DVLA VEHICLE TAX,TAX PAYMENTS,562.50
21/09/2022,11277,FLEET SERVICES,9311,DVLA VEHICLE TAX,TAX PAYMENTS,167.50
21/09/2022,11277,FLEET SERVICES,9311,DVLA VEHICLE TAX,TAX PAYMENTS,167.50
21/09/2022,11277,FLEET SERVICES,9311,DVLA VEHICLE TAX,TAX PAYMENTS,167.50
21/09/2022,11277,FLEET SERVICES,9311,DVLA VEHICLE TAX,TAX PAYMENTS,292.50
21/09/2022,11277,FLEET SERVICES,9311,DVLA VEHICLE TAX,TAX PAYMENTS,167.50
21/09/2022,11277,FLEET SERVICES,9311,DVLA VEHICLE TAX,TAX PAYMENTS,182.50
21/09/2022,11277,FLEET SERVICES,9311,DVLA VEHICLE TAX,TAX PAYMENTS,292.50
21/09/2022,11277,FLEET SERVICES,9311,DVLA VEHICLE TAX,TAX PAYMENTS,292.50
21/09/2022,11277,FLEET SERVICES,9311,DVLA VEHICLE TAX,TAX PAYMENTS,292.50
21/09/2022,11277,FLEET SERVICES,9311,DVLA VEHICLE TAX,TAX PAYMENTS,302.50
21/09/2022,11277,FLEET SERVICES,9311,DVLA VEHICLE TAX,TAX PAYMENTS,167.50
21/09/2022,11277,FLEET SERVICES,9311,DVLA VEHICLE TAX,TAX PAYMENTS,302.50
21/09/2022,11277,FLEET SERVICES,9311,DVLA VEHICLE TAX,TAX PAYMENTS,222.50
21/09/2022,11277,FLEET SERVICES,9311,DVLA VEHICLE TAX,TAX PAYMENTS,292.50
21/09/2022,11277,FLEET SERVICES,9311,DVLA VEHICLE TAX,TAX PAYMENTS,157.50
21/09/2022,11277,FLEET SERVICES,9311,DVLA VEHICLE TAX,TAX PAYMENTS,182.50
21/09/2022,11248,IPS ERIC WILLIAMS HOUSE,5411,ASDA GROCERIES ONLINE,"GROCERY STORES, SUPERMARKETS",-3.04
21/09/2022,11735,CUSTOMER SERVICES & TRANSFORMATI,5992,INTERFLORA UK,FLORISTS,38.00
21/09/2022,11248,IPS ERIC WILLIAMS HOUSE,5811,BRAKES (STORED CARDS),CATERERS,602.38
21/09/2022,11248,IPS ERIC WILLIAMS HOUSE,5411,ASDA GROCERIES ONLINE,"GROCERY STORES, SUPERMARKETS",157.53
21/09/2022,11598,EMERGENCY DUTY TEAM (CHILDREN�S),4112,THETRAINLINE.COM,PASSENGER RAILWAYS,6.10
21/09/2022,10900,LOCAL WELFARE PROVISION COVID-19,5999,AMZNMKTPLACE AMAZON.CO,MISCELLANEOUS AND SPECIALTY RETAIL STORES,64.99
21/09/2022,10900,LOCAL WELFARE PROVISION COVID-19,5999,AMZNBUSINESS 248A91MF4,MISCELLANEOUS AND SPECIALTY RETAIL STORES,64.99
21/09/2022,10900,LOCAL WELFARE PROVISION COVID-19,5713,CARPET CASTLE,FLOOR COVERING STORES,850.00
21/09/2022,11307,IPS MH THE POD,5411,AL-HALAL SUPERMARKET,"GROCERY STORES, SUPERMARKETS",3.56
21/09/2022,10416,LAC PERMANENCY,4112,THETRAINLINE.COM,PASSENGER RAILWAYS,-106.60
21/09/2022,10469,RESIDENTIAL - JOBS LANE,5999,AMZNMKTPLACE,MISCELLANEOUS AND SPECIALTY RETAIL STORES,70.54
21/09/2022,10469,RESIDENTIAL - JOBS LANE,5999,AMZNMKTPLACE,MISCELLANEOUS AND SPECIALTY RETAIL STORES,35.27
21/09/2022,10225,HOUSING - B&B ACCOMMODATION,3811,PREMIER INN,PREMIER INN,405.45
21/09/2022,10300,INTERNAL FOSTERING TEAM,5310,ARGOS LTD,DISCOUNT STORES,77.95
21/09/2022,11057,SFPC-FAMILY GROUP CONFERENCING,5411,TESCO STORES 5779,"GROCERY STORES, SUPERMARKETS",10.20
21/09/2022,10019,CUSTOMER SERVICES CENTRE,5999,AMZNMKTPLACE AMAZON.CO,MISCELLANEOUS AND SPECIALTY RETAIL STORES,173.94
21/09/2022,10019,CUSTOMER SERVICES CENTRE,5999,AMZNMKTPLACE AMAZON.CO,MISCELLANEOUS AND SPECIALTY RETAIL STORES,57.98
21/09/2022,10019,CUSTOMER SERVICES CENTRE,5999,AMZNMKTPLACE AMAZON.CO,MISCELLANEOUS AND SPECIALTY RETAIL STORES,57.98
21/09/2022,10019,CUSTOMER SERVICES CENTRE,5999,AMZNMKTPLACE AMAZON.CO,MISCELLANEOUS AND SPECIALTY RETAIL STORES,173.94
21/09/2022,10019,CUSTOMER SERVICES CENTRE,5999,AMZNMKTPLACE AMAZON.CO,MISCELLANEOUS AND SPECIALTY RETAIL STORES,64.58
21/09/2022,10019,CUSTOMER SERVICES CENTRE,5999,AMZNMKTPLACE AMAZON.CO,MISCELLANEOUS AND SPECIALTY RETAIL STORES,64.58
21/09/2022,10019,CUSTOMER SERVICES CENTRE,5999,AMZNMKTPLACE AMAZON.CO,MISCELLANEOUS AND SPECIALTY RETAIL STORES,64.58
21/09/2022,10019,CUSTOMER SERVICES CENTRE,5999,AMZNMKTPLACE AMAZON.CO,MISCELLANEOUS AND SPECIALTY RETAIL STORES,64.58
21/09/2022,10019,CUSTOMER SERVICES CENTRE,5999,AMZNMKTPLACE AMAZON.CO,MISCELLANEOUS AND SPECIALTY RETAIL STORES,128.56
21/09/2022,10019,CUSTOMER SERVICES CENTRE,5999,AMZNMKTPLACE AMAZON.CO,MISCELLANEOUS AND SPECIALTY RETAIL STORES,57.98
21/09/2022,10019,CUSTOMER SERVICES CENTRE,5999,AMZNMKTPLACE,MISCELLANEOUS AND SPECIALTY RETAIL STORES,64.58
21/09/2022,10019,CUSTOMER SERVICES CENTRE,5999,AMZNMKTPLACE,MISCELLANEOUS AND SPECIALTY RETAIL STORES,119.95
20/09/2022,11687,RESIDENTIAL - BROAD PARK HOUSE,5411,HENLEY STORE LTD,"GROCERY STORES, SUPERMARKETS",4.87
20/09/2022,11870,IPS LD WILFRED SPENCER CENTRE,5999,AMZ GADGETS4TRAVEL,MISCELLANEOUS AND SPECIALTY RETAIL STORES,-10.99
20/09/2022,11050,DEVELOPMENT MANAGEMENT,5999,AMZNMKTPLACE AMAZON.CO,MISCELLANEOUS AND SPECIALTY RETAIL STORES,29.83
20/09/2022,10232,CHILDREN�S DISABILITY,5812,BLANCOS,"EATING PLACES, RESTAURANTS",115.00
20/09/2022,11746,RESIDENTIAL - GRAYSWOOD,5999,AMZNMKTPLACE,MISCELLANEOUS AND SPECIALTY RETAIL STORES,10.80
20/09/2022,11928,COMMUNITY SUPPORT GRANTS,5999,AMZNMKTPLACE,MISCELLANEOUS AND SPECIALTY RETAIL STORES,7.44
20/09/2022,11354,IPS DAY OPPS GILBERT RICHARDS CENTRE,5199,JOHALDAIRIES.CO.UK,NONDURABLE GOODS (NOT ELSEWHERE CLASSIFIED),25.20
20/09/2022,10145,IPS LD BRANDON WOOD FARM,5199,JOHALDAIRIES.CO.UK,NONDURABLE GOODS (NOT ELSEWHERE CLASSIFIED),8.40
20/09/2022,11928,COMMUNITY SUPPORT GRANTS,5999,AMZNMKTPLACE AMAZON.CO,MISCELLANEOUS AND SPECIALTY RETAIL STORES,8.95
20/09/2022,11928,COMMUNITY SUPPORT GRANTS,5999,AMZNMKTPLACE,MISCELLANEOUS AND SPECIALTY RETAIL STORES,8.95
20/09/2022,11928,COMMUNITY SUPPORT GRANTS,5999,AMZNMKTPLACE,MISCELLANEOUS AND SPECIALTY RETAIL STORES,8.95
20/09/2022,11928,COMMUNITY SUPPORT GRANTS,5999,AMZNMKTPLACE,MISCELLANEOUS AND SPECIALTY RETAIL STORES,7.44
20/09/2022,11879,IPS LD MAURICE EDELMAN HOUSE,5199,JOHALDAIRIES.CO.UK,NONDURABLE GOODS (NOT ELSEWHERE CLASSIFIED),135.95
20/09/2022,11928,COMMUNITY SUPPORT GRANTS,5999,AMZNMKTPLACE,MISCELLANEOUS AND SPECIALTY RETAIL STORES,14.88
20/09/2022,11197,WEST FAMILY HUB,5199,JOHALDAIRIES.CO.UK,NONDURABLE GOODS (NOT ELSEWHERE CLASSIFIED),8.05
20/09/2022,10150,TRAINING CORPORATE COMMISSIONING,5999,AMZNMKTPLACE AMAZON.CO,MISCELLANEOUS AND SPECIALTY RETAIL STORES,9.98
20/09/2022,10053,OPR0276 LONDON ROAD 259 WHITLEY DEPOT,5999,AMZNMKTPLACE,MISCELLANEOUS AND SPECIALTY RETAIL STORES,11.78
20/09/2022,10053,OPR0276 LONDON ROAD 259 WHITLEY DEPOT,5999,AMZNMKTPLACE,MISCELLANEOUS AND SPECIALTY RETAIL STORES,38.10
20/09/2022,10040,IPS HWC COPTHORNE,5199,JOHALDAIRIES.CO.UK,NONDURABLE GOODS (NOT ELSEWHERE CLASSIFIED),15.40
20/09/2022,11870,IPS LD WILFRED SPENCER CENTRE,5199,JOHALDAIRIES.CO.UK,NONDURABLE GOODS (NOT ELSEWHERE CLASSIFIED),30.50
20/09/2022,11248,IPS ERIC WILLIAMS HOUSE,5199,JOHALDAIRIES.CO.UK,NONDURABLE GOODS (NOT ELSEWHERE CLASSIFIED),332.82
19/09/2022,10104,E & TS DISABLED FACILITY GRANT TEAM,1520,SUMUP   COVENTRY SIGNS,GENERAL CONTRACTORS/RESIDENTIAL BUILDINGS,120.00
19/09/2022,11870,IPS LD WILFRED SPENCER CENTRE,5411,WM MORRISONS STORE,"GROCERY STORES, SUPERMARKETS",-11.96
19/09/2022,11248,IPS ERIC WILLIAMS HOUSE,5811,ARTHURBRETT.CO.UK,CATERERS,80.44
19/09/2022,11932,LAC THROUGHCARE TEAM,5310,ARGOS LTD,DISCOUNT STORES,230.00
19/09/2022,11166,SOUTH FAMILY HUB,5411,WM MORRISONS STORE,"GROCERY STORES, SUPERMARKETS",26.87
19/09/2022,11248,IPS ERIC WILLIAMS HOUSE,5811,ARTHURBRETT.CO.UK,CATERERS,89.79
19/09/2022,11354,IPS DAY OPPS GILBERT RICHARDS CENTRE,5811,ARTHURBRETT.CO.UK,CATERERS,77.88
19/09/2022,11135,YOUTH OFFENDING SERVICE,5812,MCDONALDS   931,"EATING PLACES, RESTAURANTS",7.58
19/09/2022,10225,HOUSING - B&B ACCOMMODATION,3811,PREMIER INN44533360,PREMIER INN,293.25
19/09/2022,11928,COMMUNITY SUPPORT GRANTS,5999,AMZNMKTPLACE,MISCELLANEOUS AND SPECIALTY RETAIL STORES,128.99
19/09/2022,11928,COMMUNITY SUPPORT GRANTS,5999,AMZNMKTPLACE AMAZON.CO,MISCELLANEOUS AND SPECIALTY RETAIL STORES,6.98
19/09/2022,11928,COMMUNITY SUPPORT GRANTS,5999,AMZNMKTPLACE AMAZON.CO,MISCELLANEOUS AND SPECIALTY RETAIL STORES,42.90
19/09/2022,11928,COMMUNITY SUPPORT GRANTS,5999,AMZNMKTPLACE AMAZON.CO,MISCELLANEOUS AND SPECIALTY RETAIL STORES,128.99
19/09/2022,11928,COMMUNITY SUPPORT GRANTS,5999,AMZNMKTPLACE AMAZON.CO,MISCELLANEOUS AND SPECIALTY RETAIL STORES,49.99
19/09/2022,11928,COMMUNITY SUPPORT GRANTS,5999,AMZNMKTPLACE,MISCELLANEOUS AND SPECIALTY RETAIL STORES,42.90
19/09/2022,11928,COMMUNITY SUPPORT GRANTS,5999,AMZNMKTPLACE,MISCELLANEOUS AND SPECIALTY RETAIL STORES,42.90
19/09/2022,11928,COMMUNITY SUPPORT GRANTS,5999,AMZNMKTPLACE,MISCELLANEOUS AND SPECIALTY RETAIL STORES,42.90
19/09/2022,11086,OUTDOOR EDUCATION CENTRE,5941,SPORTSDIRECT.COM,SPORTING GOODS STORES,36.00
19/09/2022,10416,LAC PERMANENCY,7011,HOTEL AT BOOKING.COM,"LODGING-HOTELS,MOTELS,RESORTS-NOT CLASSIFIED",455.40
19/09/2022,10448,RESIDENTIAL - GRAVEL HILL,5969,AMAZON.CO.UK AV41X75X5,DIRECT MARKETING-OTHER DIRECT MARKETERS/NOT ELSEW.,15.18
19/09/2022,10448,RESIDENTIAL - GRAVEL HILL,5969,AMAZON.CO.UK S28CW8A35,DIRECT MARKETING-OTHER DIRECT MARKETERS/NOT ELSEW.,39.99
19/09/2022,10416,LAC PERMANENCY,4722,AIRBNB   HMQP9M9CQW,TRAVEL AGENCIES AND TOUR OPERATORS,495.00
19/09/2022,10416,LAC PERMANENCY,4722,AIRBNB   HMQP9M9CQW,TRAVEL AGENCIES AND TOUR OPERATORS,-495.00
19/09/2022,10084,SECTION17 PAYMENTS WEST,5310,ARGOS LTD,DISCOUNT STORES,151.95
19/09/2022,10469,RESIDENTIAL - JOBS LANE,5310,ARGOS LTD,DISCOUNT STORES,96.95
19/09/2022,10469,RESIDENTIAL - JOBS LANE,5411,CO-OP LATE SHOP,"GROCERY STORES, SUPERMARKETS",1.75
19/09/2022,10469,RESIDENTIAL - JOBS LANE,5411,NISA LOCAL,"GROCERY STORES, SUPERMARKETS",16.32
19/09/2022,11086,OUTDOOR EDUCATION CENTRE,5999,AMZNMKTPLACE AMAZON.CO,MISCELLANEOUS AND SPECIALTY RETAIL STORES,12.85
19/09/2022,10368,PARKS � EVENTS & ACTIVITIES,5719,THE RANGE,MISCELLANEOUS HOUSE FURNISHING SPECIALTY SHOPS,16.99
19/09/2022,11354,IPS DAY OPPS GILBERT RICHARDS CENTRE,5411,ASDA GROCERIES ONLINE,"GROCERY STORES, SUPERMARKETS",58.35
19/09/2022,11354,IPS DAY OPPS GILBERT RICHARDS CENTRE,5411,ASDA GROCERIES ONLINE,"GROCERY STORES, SUPERMARKETS",-.20
19/09/2022,10287,HOUSING ENFORCEMENT AND MANDATORY LICE,7399,WWW.LABC.UK.COM,BUSINESS SERVICES-NOT ELSEWHERE CLASSIFIED,240.00
19/09/2022,10291,SECTION17 PAYMENTS CENTRAL,7999,WWW.COVENTRY.GOV.UK,RECREATION SERVICES (NOT ELSEWHERE CLASSIFIED),11.00
19/09/2022,10448,RESIDENTIAL - GRAVEL HILL,7523,COVENTRY CITY COUNCIL,AUTOMOBILE PARKING LOTS AND GARAGES,1.00
19/09/2022,10469,RESIDENTIAL - JOBS LANE,5411,ASDA GROCERIES ONLINE,"GROCERY STORES, SUPERMARKETS",145.25
19/09/2022,10469,RESIDENTIAL - JOBS LANE,5411,ASDA GROCERIES ONLINE,"GROCERY STORES, SUPERMARKETS",-3.82
19/09/2022,10512,REGISTER OFFICE,5651,PRIMARK - COVENTRY,FAMILY CLOTHING STORES,1.60
19/09/2022,10512,REGISTER OFFICE,5399,WILKO RETAIL LIMITED,MISCELLANEOUS GENERAL MERCHANDISE,5.00
19/09/2022,10291,SECTION17 PAYMENTS CENTRAL,5310,ARGOS LTD,DISCOUNT STORES,49.99
19/09/2022,10225,HOUSING - B&B ACCOMMODATION,3811,PREMIER INN44533360,PREMIER INN,293.25
19/09/2022,10232,CHILDREN�S DISABILITY,5399,B&M 470 - HS COVENTRY,MISCELLANEOUS GENERAL MERCHANDISE,27.45
19/09/2022,10232,CHILDREN�S DISABILITY,5399,B&M 031 - AIRPORT,MISCELLANEOUS GENERAL MERCHANDISE,23.87
19/09/2022,10291,SECTION17 PAYMENTS CENTRAL,7011,HOTEL AT BOOKING.COM,"LODGING-HOTELS,MOTELS,RESORTS-NOT CLASSIFIED","2,073.94"
19/09/2022,10291,SECTION17 PAYMENTS CENTRAL,4131,WEST MIDLANDS TRAV,BUS LINES,55.00
19/09/2022,10291,SECTION17 PAYMENTS CENTRAL,4131,WEST MIDLANDS TRAV,BUS LINES,27.50
19/09/2022,10291,SECTION17 PAYMENTS CENTRAL,4131,WEST MIDLANDS TRAV,BUS LINES,27.50
19/09/2022,10291,SECTION17 PAYMENTS CENTRAL,5310,ARGOS LTD,DISCOUNT STORES,152.95
19/09/2022,10291,SECTION17 PAYMENTS CENTRAL,5310,ARGOS LTD,DISCOUNT STORES,17.99
19/09/2022,11403,IPS HWC COTTAGE FARM,5811,BRAKES (STORED CARDS),CATERERS,-14.51
19/09/2022,11403,IPS HWC COTTAGE FARM,5811,BRAKES (STORED CARDS),CATERERS,272.68
19/09/2022,11403,IPS HWC COTTAGE FARM,5411,ASDA GROCERIES ONLINE,"GROCERY STORES, SUPERMARKETS",50.35
19/09/2022,11403,IPS HWC COTTAGE FARM,5411,ASDA GROCERIES ONLINE,"GROCERY STORES, SUPERMARKETS",-5.15
19/09/2022,11103,RESIDENTIAL - BROAD LANE,5411,TESCO STORES 2328,"GROCERY STORES, SUPERMARKETS",139.31
19/09/2022,10676,HOUSING AND HOMELESSNESS,4900,WWW.OVOENERGY.COM,"UTLTS-ELCTRC, GAS, HEATING OIL, SANITARY, WATER",50.00
19/09/2022,10040,IPS HWC COPTHORNE,5811,ARTHURBRETT.CO.UK,CATERERS,18.68
19/09/2022,10053,OPR0276 LONDON ROAD 259 WHITLEY DEPOT,5999,AMZNMKTPLACE,MISCELLANEOUS AND SPECIALTY RETAIL STORES,25.21
19/09/2022,10053,OPR0276 LONDON ROAD 259 WHITLEY DEPOT,5999,AMZNMKTPLACE,MISCELLANEOUS AND SPECIALTY RETAIL STORES,2.35
19/09/2022,10053,OPR0276 LONDON ROAD 259 WHITLEY DEPOT,5999,FIRSTAID4LESS.CO.UK,MISCELLANEOUS AND SPECIALTY RETAIL STORES,187.38
19/09/2022,11157,IPS HWC ELSIE JONES,5811,ARTHURBRETT.CO.UK,CATERERS,21.45
19/09/2022,11870,IPS LD WILFRED SPENCER CENTRE,5310,ARGOS LTD,DISCOUNT STORES,611.95
19/09/2022,11870,IPS LD WILFRED SPENCER CENTRE,5310,ARGOS LTD,DISCOUNT STORES,29.99
19/09/2022,11870,IPS LD WILFRED SPENCER CENTRE,5310,ARGOS LTD,DISCOUNT STORES,-12.95
19/09/2022,11995,IPS HWC HARRY CAPLAN,5811,ARTHURBRETT.CO.UK,CATERERS,35.33
19/09/2022,11995,IPS HWC HARRY CAPLAN,5811,ARTHURBRETT.CO.UK,CATERERS,8.10
19/09/2022,11879,IPS LD MAURICE EDELMAN HOUSE,5811,ARTHURBRETT.CO.UK,CATERERS,46.39
19/09/2022,11879,IPS LD MAURICE EDELMAN HOUSE,5811,ARTHURBRETT.CO.UK,CATERERS,22.38
19/09/2022,11879,IPS LD MAURICE EDELMAN HOUSE,5811,ARTHURBRETT.CO.UK,CATERERS,31.44
19/09/2022,10225,HOUSING - B&B ACCOMMODATION,5969,AMAZON.CO.UK VB48N5D65,DIRECT MARKETING-OTHER DIRECT MARKETERS/NOT ELSEW.,99.00
19/09/2022,11687,RESIDENTIAL - BROAD PARK HOUSE,7278,COSTCO WHOLESALE #122,"BUYING/SHOPPING CLUBS, SERVICES",34.63
19/09/2022,11870,IPS LD WILFRED SPENCER CENTRE,5411,WM MORRISONS STORE PIC,"GROCERY STORES, SUPERMARKETS",65.19
19/09/2022,10019,CUSTOMER SERVICES CENTRE,5999,AMZNMKTPLACE,MISCELLANEOUS AND SPECIALTY RETAIL STORES,64.99
19/09/2022,10019,CUSTOMER SERVICES CENTRE,5999,AMZNMKTPLACE,MISCELLANEOUS AND SPECIALTY RETAIL STORES,64.99
19/09/2022,10019,CUSTOMER SERVICES CENTRE,5999,AMZNMKTPLACE,MISCELLANEOUS AND SPECIALTY RETAIL STORES,64.99
19/09/2022,10019,CUSTOMER SERVICES CENTRE,5999,AMZNMKTPLACE,MISCELLANEOUS AND SPECIALTY RETAIL STORES,64.99
19/09/2022,10019,CUSTOMER SERVICES CENTRE,5999,AMZNMKTPLACE,MISCELLANEOUS AND SPECIALTY RETAIL STORES,64.99
19/09/2022,10019,CUSTOMER SERVICES CENTRE,5999,AMZNMKTPLACE,MISCELLANEOUS AND SPECIALTY RETAIL STORES,64.99
19/09/2022,11307,IPS MH THE POD,5411,SAINSBURYS S/MKTS,"GROCERY STORES, SUPERMARKETS",3.30
19/09/2022,11826,REPAIR & MAINTENANCE,5099,PAYPAL  SCREWFIX,"DURABLE GOODS, NOT ELSEWHERE CLASSIFIED",129.99
19/09/2022,10225,HOUSING - B&B ACCOMMODATION,5310,ARGOS LTD,DISCOUNT STORES,68.50
19/09/2022,10225,HOUSING - B&B ACCOMMODATION,7011,NOVOTEL COVENTRY,"LODGING-HOTELS,MOTELS,RESORTS-NOT CLASSIFIED",80.50
19/09/2022,10565,ROUGH SLEEPER AND RAPID HOUSING PATH,1520,SUMUP   BERNARD MICHA,GENERAL CONTRACTORS/RESIDENTIAL BUILDINGS,7.00
19/09/2022,11932,LAC THROUGHCARE TEAM,4784,M6 TOLL,"BRIDGE AND ROAD FEES, TOLLS",13.30
19/09/2022,11932,LAC THROUGHCARE TEAM,5651,PRIMARK 675,FAMILY CLOTHING STORES,36.50
19/09/2022,11932,LAC THROUGHCARE TEAM,5968,AMAZON PRIME OB9X76D85,DIRECT MARKETING-CONTINUITY/SUBSCRIPTION MERCHANTS,8.99
19/09/2022,11932,LAC THROUGHCARE TEAM,5411,SAINSBURYS NUNEATO,"GROCERY STORES, SUPERMARKETS",2.35
19/09/2022,11826,REPAIR & MAINTENANCE,5065,RS COMPONENTS,ELECTRICAL PARTS AND EQUIPMENT,39.70
19/09/2022,11040,LIBRARIES - WILLENHALL LIBRARY,5968,AMAZON PRIME 5S0E17875,DIRECT MARKETING-CONTINUITY/SUBSCRIPTION MERCHANTS,8.99
19/09/2022,11456,GENERAL EVENTS,5999,AMZNMKTPLACE AMAZON.CO,MISCELLANEOUS AND SPECIALTY RETAIL STORES,-13.49
19/09/2022,11157,IPS HWC ELSIE JONES,5811,ARTHURBRETT.CO.UK,CATERERS,36.23
19/09/2022,11255,ADULT ED ADMIN & MANAGEMENT,5999,AMZNMKTPLACE,MISCELLANEOUS AND SPECIALTY RETAIL STORES,6.99
19/09/2022,11932,LAC THROUGHCARE TEAM,4131,NX BUS CONTACTLESS,BUS LINES,4.00
19/09/2022,11932,LAC THROUGHCARE TEAM,5814,MCDONALDS,FAST FOOD RESTAURANTS,14.67
19/09/2022,11932,LAC THROUGHCARE TEAM,5999,AMZNMKTPLACE AMAZON.CO,MISCELLANEOUS AND SPECIALTY RETAIL STORES,-33.28
19/09/2022,11464,DSG - FAMILY HUB BUDGET,5411,SPAR HAY LANE,"GROCERY STORES, SUPERMARKETS",9.55
19/09/2022,11364,MULTI AGENCY SAFEGUARDING HUB (MASH),5941,JD SPORTS PLC,SPORTING GOODS STORES,120.00
19/09/2022,10378,CHILDREN�S SERVICES MANAGEMENT TEAM,5411,TESCO STORES 2328,"GROCERY STORES, SUPERMARKETS",30.00
19/09/2022,11928,COMMUNITY SUPPORT GRANTS,5999,AMZNMKTPLACE,MISCELLANEOUS AND SPECIALTY RETAIL STORES,14.50
19/09/2022,11928,COMMUNITY SUPPORT GRANTS,5999,AMZNMKTPLACE,MISCELLANEOUS AND SPECIALTY RETAIL STORES,46.99
19/09/2022,11928,COMMUNITY SUPPORT GRANTS,5999,AMZNMKTPLACE,MISCELLANEOUS AND SPECIALTY RETAIL STORES,14.50
19/09/2022,11928,COMMUNITY SUPPORT GRANTS,5999,AMZNMKTPLACE,MISCELLANEOUS AND SPECIALTY RETAIL STORES,14.50
19/09/2022,11928,COMMUNITY SUPPORT GRANTS,5999,AMZNMKTPLACE AMAZON.CO,MISCELLANEOUS AND SPECIALTY RETAIL STORES,46.99
19/09/2022,11928,COMMUNITY SUPPORT GRANTS,5999,AMZNMKTPLACE AMAZON.CO,MISCELLANEOUS AND SPECIALTY RETAIL STORES,14.50
19/09/2022,11928,COMMUNITY SUPPORT GRANTS,5999,AMZNMKTPLACE,MISCELLANEOUS AND SPECIALTY RETAIL STORES,49.99
19/09/2022,11928,COMMUNITY SUPPORT GRANTS,5999,AMZNMKTPLACE,MISCELLANEOUS AND SPECIALTY RETAIL STORES,6.98
19/09/2022,11928,COMMUNITY SUPPORT GRANTS,5999,AMZNMKTPLACE,MISCELLANEOUS AND SPECIALTY RETAIL STORES,6.98
19/09/2022,11928,COMMUNITY SUPPORT GRANTS,5999,AMZNMKTPLACE,MISCELLANEOUS AND SPECIALTY RETAIL STORES,6.98
19/09/2022,11788,HOUSING OPTIONS - HOMELESSNESS ADMIN,4112,THETRAINLINE.COM,PASSENGER RAILWAYS,190.24
19/09/2022,11932,LAC THROUGHCARE TEAM,5411,ASDA STORES,"GROCERY STORES, SUPERMARKETS",188.13
19/09/2022,10638,"SSGS PERFORMANCE, PROJECTS & TECHN",5999,AMZNMKTPLACE,MISCELLANEOUS AND SPECIALTY RETAIL STORES,98.99
19/09/2022,11932,LAC THROUGHCARE TEAM,5812,NANDOS CAMBRIDGE RET P,"EATING PLACES, RESTAURANTS",31.75
19/09/2022,10323,UASC - EXTERNAL FUNDING,4112,TRAINLINE.COM,PASSENGER RAILWAYS,112.33
19/09/2022,10300,INTERNAL FOSTERING TEAM,3615,TRAVELODGE GB0000,TRAVELODGE,216.94
19/09/2022,11745,SAFEGUARDING CHILDREN SERVICE,4112,WWW.AVANTIWESTCOAST.CO,PASSENGER RAILWAYS,89.00
19/09/2022,11745,SAFEGUARDING CHILDREN SERVICE,4112,WWW.AVANTIWESTCOAST.CO,PASSENGER RAILWAYS,19.20
19/09/2022,11788,HOUSING OPTIONS - HOMELESSNESS ADMIN,4112,WWW.AVANTIWESTCOAST.CO,PASSENGER RAILWAYS,71.40
19/09/2022,10019,CUSTOMER SERVICES CENTRE,4112,WWW.AVANTIWESTCOAST.CO,PASSENGER RAILWAYS,21.90
19/09/2022,11826,REPAIR & MAINTENANCE,7394,WWW.HSSTRAINING.COM,"EQUIPMENT RENTAL&LEASING SVS, FURNTURE/TOOL RENTAL",131.52
19/09/2022,10019,CUSTOMER SERVICES CENTRE,5399,WILKO RETAIL LIMITED,MISCELLANEOUS GENERAL MERCHANDISE,35.60
19/09/2022,11826,REPAIR & MAINTENANCE,5719,PAYPAL  VICTORIANPL,MISCELLANEOUS HOUSE FURNISHING SPECIALTY SHOPS,149.22
19/09/2022,11826,REPAIR & MAINTENANCE,5732,PAYPAL  E2GO-ONLINE,ELECTRONIC SALES,205.33
19/09/2022,11364,MULTI AGENCY SAFEGUARDING HUB (MASH),5941,ALLISON'S FITNESS,SPORTING GOODS STORES,78.00
19/09/2022,11135,YOUTH OFFENDING SERVICE,5812,MCDONALDS   539,"EATING PLACES, RESTAURANTS",8.59
19/09/2022,11932,LAC THROUGHCARE TEAM,4131,NX BUS CONTACTLESS,BUS LINES,2.20
19/09/2022,11932,LAC THROUGHCARE TEAM,4131,NX BUS CONTACTLESS,BUS LINES,2.20
19/09/2022,10232,CHILDREN�S DISABILITY,5999,AMZ BED CENTRE,MISCELLANEOUS AND SPECIALTY RETAIL STORES,-119.16
19/09/2022,10019,CUSTOMER SERVICES CENTRE,5399,WILKO RETAIL LIMITED,MISCELLANEOUS GENERAL MERCHANDISE,147.40
19/09/2022,11764,HOSPITAL EDUCATION & OUTREACH SERVICE,5411,CO OP FOOD,"GROCERY STORES, SUPERMARKETS",9.30
19/09/2022,10090,LIBRARIES - OPERATIONS,5399,WILKO RETAIL LIMITED,MISCELLANEOUS GENERAL MERCHANDISE,4.50
19/09/2022,10090,LIBRARIES - OPERATIONS,5251,HOME BARGAINS COVENTRY,HARDWARE STORES,2.58
19/09/2022,11687,RESIDENTIAL - BROAD PARK HOUSE,5411,TESCO STORES 2328,"GROCERY STORES, SUPERMARKETS",101.30
19/09/2022,11764,HOSPITAL EDUCATION & OUTREACH SERVICE,5411,FARMFOODS 640,"GROCERY STORES, SUPERMARKETS",32.23
19/09/2022,11764,HOSPITAL EDUCATION & OUTREACH SERVICE,8641,HIGHSTREETVOUCHERS,"ASSOCIATIONS-CIVIC, SOCIAL, AND FRATERNAL",50.00
19/09/2022,10808,EDUC IMPROVEMENT & STANDARDS,5712,IKEA LTD SHOP ONLINE,"EQUIP, FURNITURE, HOME FURNSHNGS STRS (EXCPT APPL)",-10.00
19/09/2022,11049,CREMATORIUM,5812,COFFEE NO 1 COVENTRY,"EATING PLACES, RESTAURANTS",12.45
19/09/2022,10900,LOCAL WELFARE PROVISION COVID-19,7399,CS  TESCO STORES GC,BUSINESS SERVICES-NOT ELSEWHERE CLASSIFIED,"1,995.00"
19/09/2022,10900,LOCAL WELFARE PROVISION COVID-19,5999,AMZNMKTPLACE AMAZON.CO,MISCELLANEOUS AND SPECIALTY RETAIL STORES,135.99
19/09/2022,10900,LOCAL WELFARE PROVISION COVID-19,5999,AMZNMKTPLACE AMAZON.CO,MISCELLANEOUS AND SPECIALTY RETAIL STORES,94.99
19/09/2022,10900,LOCAL WELFARE PROVISION COVID-19,7399,CS  TESCO STORES GC,BUSINESS SERVICES-NOT ELSEWHERE CLASSIFIED,"1,670.00"
19/09/2022,10900,LOCAL WELFARE PROVISION COVID-19,7399,CS  TESCO STORES GC,BUSINESS SERVICES-NOT ELSEWHERE CLASSIFIED,"1,785.00"
19/09/2022,10900,LOCAL WELFARE PROVISION COVID-19,7399,CS  TESCO STORES GC,BUSINESS SERVICES-NOT ELSEWHERE CLASSIFIED,"1,430.00"
19/09/2022,11307,IPS MH THE POD,5411,COSTCUTTER,"GROCERY STORES, SUPERMARKETS",7.52
19/09/2022,10211,MIGRATION PROJECT B,9399,DISCLOSURE AND BARRING,GOVERNMENT SERVICES-NOT ELSEWHERE CLASSIFIED,18.00
19/09/2022,11057,SFPC-FAMILY GROUP CONFERENCING,5411,TESCO STORES 5779,"GROCERY STORES, SUPERMARKETS",2.55
19/09/2022,10469,RESIDENTIAL - JOBS LANE,5999,AMZNMKTPLACE,MISCELLANEOUS AND SPECIALTY RETAIL STORES,36.20
19/09/2022,10019,CUSTOMER SERVICES CENTRE,5999,AMZNMKTPLACE AMAZON.CO,MISCELLANEOUS AND SPECIALTY RETAIL STORES,64.99
19/09/2022,10416,LAC PERMANENCY,3811,PREMIER INN44533970,PREMIER INN,52.50
19/09/2022,10416,LAC PERMANENCY,9399,GEN REGISTER OFFICE,GOVERNMENT SERVICES-NOT ELSEWHERE CLASSIFIED,14.00
19/09/2022,11135,YOUTH OFFENDING SERVICE,5941,JD SPORTS PLC,SPORTING GOODS STORES,10.00
19/09/2022,11057,SFPC-FAMILY GROUP CONFERENCING,5411,ALDI,"GROCERY STORES, SUPERMARKETS",7.66
19/09/2022,10416,LAC PERMANENCY,4131,WEST MIDLANDS TRAV,BUS LINES,51.50
19/09/2022,10416,LAC PERMANENCY,4131,WEST MIDLANDS TRAV,BUS LINES,51.50
19/09/2022,10416,LAC PERMANENCY,4131,WEST MIDLANDS TRAV,BUS LINES,51.50
19/09/2022,11932,LAC THROUGHCARE TEAM,4814,MIP TESCO MOBILE TOPUP,TELECOM INCL PREPAID/RECURRING PHONE SVCS,10.00
19/09/2022,10019,CUSTOMER SERVICES CENTRE,5999,AMZNMKTPLACE AMAZON.CO,MISCELLANEOUS AND SPECIALTY RETAIL STORES,94.99
19/09/2022,10019,CUSTOMER SERVICES CENTRE,5999,AMZNMKTPLACE,MISCELLANEOUS AND SPECIALTY RETAIL STORES,135.99
19/09/2022,10019,CUSTOMER SERVICES CENTRE,5999,AMZNMKTPLACE,MISCELLANEOUS AND SPECIALTY RETAIL STORES,64.99
19/09/2022,10019,CUSTOMER SERVICES CENTRE,5999,AMZNMKTPLACE,MISCELLANEOUS AND SPECIALTY RETAIL STORES,64.99
19/09/2022,10019,CUSTOMER SERVICES CENTRE,5999,AMZNMKTPLACE,MISCELLANEOUS AND SPECIALTY RETAIL STORES,64.99
19/09/2022,10019,CUSTOMER SERVICES CENTRE,5999,AMZNMKTPLACE,MISCELLANEOUS AND SPECIALTY RETAIL STORES,271.98
19/09/2022,10019,CUSTOMER SERVICES CENTRE,5999,AMZNMKTPLACE,MISCELLANEOUS AND SPECIALTY RETAIL STORES,35.96
19/09/2022,10225,HOUSING - B&B ACCOMMODATION,3811,PREMIER INN44012030,PREMIER INN,587.50
19/09/2022,10019,CUSTOMER SERVICES CENTRE,5999,AMZNMKTPLACE,MISCELLANEOUS AND SPECIALTY RETAIL STORES,65.99
19/09/2022,11021,LAC & CARE LEAVERS,4784,M6 TOLL,"BRIDGE AND ROAD FEES, TOLLS",13.30
19/09/2022,11021,LAC & CARE LEAVERS,5814,MCDONALDS,FAST FOOD RESTAURANTS,6.34
19/09/2022,11154,HIGHWAYS: OVERHEAD,4112,THETRAINLINE.COM,PASSENGER RAILWAYS,20.47
19/09/2022,11307,IPS MH THE POD,5411,SAINSBURYS S MKTS,"GROCERY STORES, SUPERMARKETS",3.30
19/09/2022,11307,IPS MH THE POD,5411,SAINSBURYS S MKTS,"GROCERY STORES, SUPERMARKETS",4.20
19/09/2022,10225,HOUSING - B&B ACCOMMODATION,7399,EB  CORNERSTONE BARRIS,BUSINESS SERVICES-NOT ELSEWHERE CLASSIFIED,132.00
19/09/2022,11507,CARE LEAVERS,5812,SLUG AND LETTUCE,"EATING PLACES, RESTAURANTS",96.00
19/09/2022,11107,CENTRAL FAMILY HUB,5200,HOMEBASE COVENTRY,HOME SUPPLY WAREHOUSE STORES,7.50
19/09/2022,10383,IPS HWC KNIGHTLOW,5811,ARTHURBRETT.CO.UK,CATERERS,49.65
19/09/2022,11507,CARE LEAVERS,5411,WM MORRISONS STORE,"GROCERY STORES, SUPERMARKETS",28.00
19/09/2022,11842,"OCCUPATIONAL HEALTH, COUNSELLING & SUPPO",5399,FIRST RESCUE TRAIN,MISCELLANEOUS GENERAL MERCHANDISE,176.40
19/09/2022,10383,IPS HWC KNIGHTLOW,5811,ARTHURBRETT.CO.UK,CATERERS,24.09
19/09/2022,11248,IPS ERIC WILLIAMS HOUSE,5411,ALDI 15 772,"GROCERY STORES, SUPERMARKETS",28.16
19/09/2022,10145,IPS LD BRANDON WOOD FARM,5735,AMAZON MUSIC GM0PO97H5,RECORD SHOPS,9.99
19/09/2022,11687,RESIDENTIAL - BROAD PARK HOUSE,5812,RED LION,"EATING PLACES, RESTAURANTS",100.00
19/09/2022,11687,RESIDENTIAL - BROAD PARK HOUSE,5411,TESCO STORES 2328,"GROCERY STORES, SUPERMARKETS",25.48
19/09/2022,11826,REPAIR & MAINTENANCE,5200,WICKES COVENTRY,HOME SUPPLY WAREHOUSE STORES,50.00
19/09/2022,11826,REPAIR & MAINTENANCE,5310,ARGOS LTD,DISCOUNT STORES,30.00
19/09/2022,11928,COMMUNITY SUPPORT GRANTS,5999,AMZNMKTPLACE,MISCELLANEOUS AND SPECIALTY RETAIL STORES,46.99
19/09/2022,11928,COMMUNITY SUPPORT GRANTS,5999,AMZNMKTPLACE AMAZON.CO,MISCELLANEOUS AND SPECIALTY RETAIL STORES,49.99
19/09/2022,11928,COMMUNITY SUPPORT GRANTS,5999,AMZNMKTPLACE AMAZON.CO,MISCELLANEOUS AND SPECIALTY RETAIL STORES,120.98
19/09/2022,11928,COMMUNITY SUPPORT GRANTS,5999,AMZNMKTPLACE,MISCELLANEOUS AND SPECIALTY RETAIL STORES,93.98
19/09/2022,11507,CARE LEAVERS,4784,M6 TOLL,"BRIDGE AND ROAD FEES, TOLLS",7.60
19/09/2022,10090,LIBRARIES - OPERATIONS,5200,B & Q 1231,HOME SUPPLY WAREHOUSE STORES,7.98
19/09/2022,11922,ICT USER SUPPORT,5999,AMZNMKTPLACE,MISCELLANEOUS AND SPECIALTY RETAIL STORES,6.16
19/09/2022,11932,LAC THROUGHCARE TEAM,4112,THETRAINLINE.COM,PASSENGER RAILWAYS,5.30
19/09/2022,10416,LAC PERMANENCY,4131,WEST MIDLANDS TRAV,BUS LINES,3.50
19/09/2022,11507,CARE LEAVERS,5310,ARGOS LTD,DISCOUNT STORES,231.95
19/09/2022,10704,LEGAL SERVICES,9399,GEN REGISTER OFFICE,GOVERNMENT SERVICES-NOT ELSEWHERE CLASSIFIED,28.00
19/09/2022,10411,IPS HWC QUINTON LODGE,5811,ARTHURBRETT.CO.UK,CATERERS,36.31
19/09/2022,11136,EAST FAMILY HUB,5999,AMZNMKTPLACE,MISCELLANEOUS AND SPECIALTY RETAIL STORES,29.67
19/09/2022,10416,LAC PERMANENCY,4131,WEST MIDLANDS TRAV,BUS LINES,27.50
19/09/2022,10019,CUSTOMER SERVICES CENTRE,5999,AMZNMKTPLACE,MISCELLANEOUS AND SPECIALTY RETAIL STORES,94.99
19/09/2022,10019,CUSTOMER SERVICES CENTRE,5999,AMZNMKTPLACE AMAZON.CO,MISCELLANEOUS AND SPECIALTY RETAIL STORES,135.99
19/09/2022,10019,CUSTOMER SERVICES CENTRE,5999,AMZNMKTPLACE,MISCELLANEOUS AND SPECIALTY RETAIL STORES,94.99
19/09/2022,10019,CUSTOMER SERVICES CENTRE,5999,AMZNMKTPLACE,MISCELLANEOUS AND SPECIALTY RETAIL STORES,128.56
16/09/2022,11826,REPAIR & MAINTENANCE,5399,EV BLOCKS,MISCELLANEOUS GENERAL MERCHANDISE,446.40
16/09/2022,10581,ERDF - COVENTRY & WARWICKSHIRE LOW C,5812,AZZURRI RESTAURANTS LT,"EATING PLACES, RESTAURANTS",43.95
16/09/2022,11928,COMMUNITY SUPPORT GRANTS,5999,AMZNMKTPLACE AMAZON.CO,MISCELLANEOUS AND SPECIALTY RETAIL STORES,44.44
16/09/2022,11928,COMMUNITY SUPPORT GRANTS,5999,AMZNMKTPLACE AMAZON.CO,MISCELLANEOUS AND SPECIALTY RETAIL STORES,93.98
16/09/2022,10469,RESIDENTIAL - JOBS LANE,5411,JARDINE CRESCENT LOCAL,"GROCERY STORES, SUPERMARKETS",5.07
16/09/2022,11197,WEST FAMILY HUB,7523,COVENTRY CITY COUNCIL,AUTOMOBILE PARKING LOTS AND GARAGES,8.00
16/09/2022,10704,LEGAL SERVICES,4112,TRAINLINE.COM,PASSENGER RAILWAYS,131.03
16/09/2022,11103,RESIDENTIAL - BROAD LANE,5411,TESCO STORES 2328,"GROCERY STORES, SUPERMARKETS",83.56
16/09/2022,10232,CHILDREN�S DISABILITY,5399,MY 1ST PHOTOS LTD,MISCELLANEOUS GENERAL MERCHANDISE,35.00
16/09/2022,10581,ERDF - COVENTRY & WARWICKSHIRE LOW C,5811,SQ  SIGNATURE CATERING,CATERERS,76.80
16/09/2022,11928,COMMUNITY SUPPORT GRANTS,5999,AMZNMKTPLACE,MISCELLANEOUS AND SPECIALTY RETAIL STORES,42.90
16/09/2022,11928,COMMUNITY SUPPORT GRANTS,5999,AMZNMKTPLACE AMAZON.CO,MISCELLANEOUS AND SPECIALTY RETAIL STORES,14.88
16/09/2022,11928,COMMUNITY SUPPORT GRANTS,5999,AMZNMKTPLACE AMAZON.CO,MISCELLANEOUS AND SPECIALTY RETAIL STORES,7.44
16/09/2022,11928,COMMUNITY SUPPORT GRANTS,5999,AMZNMKTPLACE,MISCELLANEOUS AND SPECIALTY RETAIL STORES,42.90
16/09/2022,11932,LAC THROUGHCARE TEAM,5552,GRIDSERVE UK OMM LTD,ELECTRIC VEHICLE CHARGING,6.20
16/09/2022,11407,CHIEF EXECUTIVE,4112,WWW.AVANTIWESTCOAST.CO,PASSENGER RAILWAYS,-40.30
16/09/2022,10761,REVENUES - CTAX AND NNDR COLLECTION TEAM,4112,THETRAINLINE.COM,PASSENGER RAILWAYS,9.36
16/09/2022,10383,IPS HWC KNIGHTLOW,5811,BRAKES (STORED CARDS),CATERERS,68.64
16/09/2022,11932,LAC THROUGHCARE TEAM,5712,SP PERFECT SLEEP BED,"EQUIP, FURNITURE, HOME FURNSHNGS STRS (EXCPT APPL)",289.99
16/09/2022,11932,LAC THROUGHCARE TEAM,5999,AMZNMKTPLACE AMAZON.CO,MISCELLANEOUS AND SPECIALTY RETAIL STORES,33.28
16/09/2022,11932,LAC THROUGHCARE TEAM,5552,GRIDSERVE UK OMM LTD,ELECTRIC VEHICLE CHARGING,7.34
16/09/2022,11928,COMMUNITY SUPPORT GRANTS,5999,AMZNMKTPLACE,MISCELLANEOUS AND SPECIALTY RETAIL STORES,17.95
16/09/2022,11928,COMMUNITY SUPPORT GRANTS,5999,AMZNMKTPLACE,MISCELLANEOUS AND SPECIALTY RETAIL STORES,42.90
16/09/2022,11928,COMMUNITY SUPPORT GRANTS,5999,AMZNMKTPLACE,MISCELLANEOUS AND SPECIALTY RETAIL STORES,42.90
16/09/2022,11928,COMMUNITY SUPPORT GRANTS,5999,AMZNMKTPLACE,MISCELLANEOUS AND SPECIALTY RETAIL STORES,42.90
16/09/2022,10029,COOMBE,5912,"BOOTS,COVENTRY","DRUG STORES, PHARMACIES",15.00
16/09/2022,11103,RESIDENTIAL - BROAD LANE,7523,COVENTRY CITY COUNCIL,AUTOMOBILE PARKING LOTS AND GARAGES,2.00
16/09/2022,11606,BUSINESS RELATIONSHIP & TOURISM,5310,POUNDLAND LTD,DISCOUNT STORES,9.50
16/09/2022,11984,IPS MAYMORN RESOURCE CENTRE,5411,TESCO STORES 2328,"GROCERY STORES, SUPERMARKETS",11.16
16/09/2022,11928,COMMUNITY SUPPORT GRANTS,5999,AMZNMKTPLACE,MISCELLANEOUS AND SPECIALTY RETAIL STORES,6.98
16/09/2022,11928,COMMUNITY SUPPORT GRANTS,5999,AMZNMKTPLACE AMAZON.CO,MISCELLANEOUS AND SPECIALTY RETAIL STORES,14.50
16/09/2022,11928,COMMUNITY SUPPORT GRANTS,5999,AMZNMKTPLACE AMAZON.CO,MISCELLANEOUS AND SPECIALTY RETAIL STORES,49.99
16/09/2022,11928,COMMUNITY SUPPORT GRANTS,5999,AMZNMKTPLACE AMAZON.CO,MISCELLANEOUS AND SPECIALTY RETAIL STORES,44.44
16/09/2022,11381,PUBLIC HEALTH,4131,WEST MIDLANDS TRAV,BUS LINES,55.00
16/09/2022,10360,JOB SHOP,5411,WM MORRISONS STORE,"GROCERY STORES, SUPERMARKETS",1.24
16/09/2022,10360,JOB SHOP,5411,WM MORRISONS STORE,"GROCERY STORES, SUPERMARKETS",-1.24
16/09/2022,11928,COMMUNITY SUPPORT GRANTS,5999,AMZNMKTPLACE,MISCELLANEOUS AND SPECIALTY RETAIL STORES,164.98
16/09/2022,11928,COMMUNITY SUPPORT GRANTS,5999,AMZNMKTPLACE AMAZON.CO,MISCELLANEOUS AND SPECIALTY RETAIL STORES,44.44
16/09/2022,11928,COMMUNITY SUPPORT GRANTS,5999,AMZNMKTPLACE,MISCELLANEOUS AND SPECIALTY RETAIL STORES,8.99
16/09/2022,11507,CARE LEAVERS,9399,HM PASSPORT OFFICE,GOVERNMENT SERVICES-NOT ELSEWHERE CLASSIFIED,75.50
16/09/2022,11928,COMMUNITY SUPPORT GRANTS,5999,AMZNMKTPLACE AMAZON.CO,MISCELLANEOUS AND SPECIALTY RETAIL STORES,44.44
16/09/2022,11932,LAC THROUGHCARE TEAM,5310,ARGOS LTD,DISCOUNT STORES,29.00
16/09/2022,11381,PUBLIC HEALTH,4131,WEST MIDLANDS TRAV,BUS LINES,55.00
16/09/2022,11507,CARE LEAVERS,5814,KFC-TILE HILL,FAST FOOD RESTAURANTS,9.18
16/09/2022,11057,SFPC-FAMILY GROUP CONFERENCING,5411,ASDA  STORES 4523,"GROCERY STORES, SUPERMARKETS",7.29
16/09/2022,11771,STREETPRIDE SOUTH,5251,STHERN STRONGHOLD,HARDWARE STORES,67.32
16/09/2022,11928,COMMUNITY SUPPORT GRANTS,5999,AMZNMKTPLACE,MISCELLANEOUS AND SPECIALTY RETAIL STORES,99.99
16/09/2022,11928,COMMUNITY SUPPORT GRANTS,5999,AMZNMKTPLACE,MISCELLANEOUS AND SPECIALTY RETAIL STORES,138.98
16/09/2022,11928,COMMUNITY SUPPORT GRANTS,5999,AMZNMKTPLACE,MISCELLANEOUS AND SPECIALTY RETAIL STORES,99.99
16/09/2022,10232,CHILDREN�S DISABILITY,5411,CO-OP GROUP 310280,"GROCERY STORES, SUPERMARKETS",1.55
16/09/2022,11507,CARE LEAVERS,7523,COVENTRY CITY COUNCIL,AUTOMOBILE PARKING LOTS AND GARAGES,8.00
16/09/2022,11771,STREETPRIDE SOUTH,5999,AMZNMKTPLACE,MISCELLANEOUS AND SPECIALTY RETAIL STORES,8.13
16/09/2022,11879,IPS LD MAURICE EDELMAN HOUSE,5811,BRAKES (STORED CARDS),CATERERS,101.37
16/09/2022,10090,LIBRARIES - OPERATIONS,5200,B & Q 1231,HOME SUPPLY WAREHOUSE STORES,82.90
16/09/2022,11050,DEVELOPMENT MANAGEMENT,8699,THE-IES.ORG,"ORGANIZATIONS, MEMBERSHIP-NOT ELSEWHERE CLASSIFIED",25.00
16/09/2022,10416,LAC PERMANENCY,5310,ARGOS LTD,DISCOUNT STORES,164.00
16/09/2022,10416,LAC PERMANENCY,4112,THETRAINLINE.COM,PASSENGER RAILWAYS,92.11
16/09/2022,10416,LAC PERMANENCY,4112,TRAINLINE.COM,PASSENGER RAILWAYS,96.39
16/09/2022,11636,WEST MIDLANDS TEACHING PARTNERSHIP,7011,HOLIDAY INN BIRMINGHAM,"LODGING-HOTELS,MOTELS,RESORTS-NOT CLASSIFIED",412.50
16/09/2022,10962,OUTDOOR EDUCATION SERVICE,5999,AMZNMKTPLACE AMAZON.CO,MISCELLANEOUS AND SPECIALTY RETAIL STORES,11.11
16/09/2022,11507,CARE LEAVERS,5814,43041785 COSTA COFFEE,FAST FOOD RESTAURANTS,6.95
16/09/2022,11928,COMMUNITY SUPPORT GRANTS,5999,AMZNMKTPLACE,MISCELLANEOUS AND SPECIALTY RETAIL STORES,99.99
16/09/2022,11928,COMMUNITY SUPPORT GRANTS,5999,AMZNMKTPLACE,MISCELLANEOUS AND SPECIALTY RETAIL STORES,99.99
16/09/2022,11928,COMMUNITY SUPPORT GRANTS,5999,AMZNMKTPLACE,MISCELLANEOUS AND SPECIALTY RETAIL STORES,99.99
16/09/2022,11072,ADULT EDUCATION � WORK PLACE LEARNING,5411,WM MORRISONS STORE,"GROCERY STORES, SUPERMARKETS",18.08
16/09/2022,11932,LAC THROUGHCARE TEAM,9399,DVLA DRIVER ONLINE,GOVERNMENT SERVICES-NOT ELSEWHERE CLASSIFIED,34.00
16/09/2022,10704,LEGAL SERVICES,9399,WP-WARWICKSHIRE CO,GOVERNMENT SERVICES-NOT ELSEWHERE CLASSIFIED,11.00
16/09/2022,11932,LAC THROUGHCARE TEAM,4112,TRAINLINE.COM,PASSENGER RAILWAYS,46.05
16/09/2022,10416,LAC PERMANENCY,4112,THETRAINLINE.COM,PASSENGER RAILWAYS,-67.30
16/09/2022,10019,CUSTOMER SERVICES CENTRE,5999,AMZNMKTPLACE,MISCELLANEOUS AND SPECIALTY RETAIL STORES,64.99
16/09/2022,10962,OUTDOOR EDUCATION SERVICE,3615,TRAVELODGE GB0000,TRAVELODGE,-59.49
16/09/2022,10962,OUTDOOR EDUCATION SERVICE,5999,AMZNMKTPLACE AMAZON.CO,MISCELLANEOUS AND SPECIALTY RETAIL STORES,45.00
16/09/2022,10019,CUSTOMER SERVICES CENTRE,5999,AMZNBUSINESS 8A8I23GJ5,MISCELLANEOUS AND SPECIALTY RETAIL STORES,64.99
16/09/2022,10019,CUSTOMER SERVICES CENTRE,5999,AMZNMKTPLACE,MISCELLANEOUS AND SPECIALTY RETAIL STORES,64.99
16/09/2022,10019,CUSTOMER SERVICES CENTRE,5999,AMZNMKTPLACE AMAZON.CO,MISCELLANEOUS AND SPECIALTY RETAIL STORES,64.99
16/09/2022,11928,COMMUNITY SUPPORT GRANTS,5999,AMZNMKTPLACE,MISCELLANEOUS AND SPECIALTY RETAIL STORES,24.98
16/09/2022,11928,COMMUNITY SUPPORT GRANTS,5999,AMZNMKTPLACE,MISCELLANEOUS AND SPECIALTY RETAIL STORES,138.98
16/09/2022,11928,COMMUNITY SUPPORT GRANTS,5999,AMZNMKTPLACE,MISCELLANEOUS AND SPECIALTY RETAIL STORES,21.88
16/09/2022,11928,COMMUNITY SUPPORT GRANTS,5999,AMZNMKTPLACE,MISCELLANEOUS AND SPECIALTY RETAIL STORES,89.99
16/09/2022,11826,REPAIR & MAINTENANCE,5211,HOWDENS - CVTRY RLO D5,"BUILDING MATERIALS, LUMBER STORES",43.01
16/09/2022,10416,LAC PERMANENCY,4112,THETRAINLINE.COM,PASSENGER RAILWAYS,-67.30
16/09/2022,11021,LAC & CARE LEAVERS,4121,SQ  RM TAXI,LIMOUSINES AND TAXICABS,13.10
16/09/2022,11932,LAC THROUGHCARE TEAM,5812,MCDONALDS,"EATING PLACES, RESTAURANTS",10.18
16/09/2022,11307,IPS MH THE POD,5411,SAINSBURYS S MKTS,"GROCERY STORES, SUPERMARKETS",1.55
16/09/2022,11928,COMMUNITY SUPPORT GRANTS,5999,AMZNMKTPLACE AMAZON.CO,MISCELLANEOUS AND SPECIALTY RETAIL STORES,8.99
16/09/2022,11928,COMMUNITY SUPPORT GRANTS,5999,AMZNMKTPLACE AMAZON.CO,MISCELLANEOUS AND SPECIALTY RETAIL STORES,46.99
16/09/2022,10448,RESIDENTIAL - GRAVEL HILL,7523,COMMUNITY HEALTH PARTN,AUTOMOBILE PARKING LOTS AND GARAGES,2.50
16/09/2022,10448,RESIDENTIAL - GRAVEL HILL,5969,AMAZON.CO.UK PH30E2WF5,DIRECT MARKETING-OTHER DIRECT MARKETERS/NOT ELSEW.,11.54
16/09/2022,10448,RESIDENTIAL - GRAVEL HILL,5814,MCDONALDS,FAST FOOD RESTAURANTS,5.56
16/09/2022,11932,LAC THROUGHCARE TEAM,5813,UNICORN (COVENTRY),"BAR,LOUNGE,DISCO,NIGHTCLUB,TAVERN-ALCOHOLIC DRINKS",33.57
16/09/2022,10333,14-16 ALTERNATIVE CURRICULUM,7922,ATGTICKETS.COM,"THEATRICAL PRODUCERS(EXCL MOTION PIX),TICKET AGNCY",7.20
16/09/2022,11932,LAC THROUGHCARE TEAM,5812,VMS - ROADCHEF,"EATING PLACES, RESTAURANTS",26.12
16/09/2022,11687,RESIDENTIAL - BROAD PARK HOUSE,5411,ASDA SUPERSTORE,"GROCERY STORES, SUPERMARKETS",17.62
16/09/2022,11464,DSG - FAMILY HUB BUDGET,7523,COVENTRY CITY COUNCIL,AUTOMOBILE PARKING LOTS AND GARAGES,3.00
16/09/2022,11922,ICT USER SUPPORT,5999,AMZNMKTPLACE AMAZON.CO,MISCELLANEOUS AND SPECIALTY RETAIL STORES,163.58
16/09/2022,11922,ICT USER SUPPORT,5999,AMZNMKTPLACE AMAZON.CO,MISCELLANEOUS AND SPECIALTY RETAIL STORES,145.96
16/09/2022,11928,COMMUNITY SUPPORT GRANTS,5999,AMZNMKTPLACE,MISCELLANEOUS AND SPECIALTY RETAIL STORES,42.90
16/09/2022,10029,COOMBE,7523,NCP LIMITED,AUTOMOBILE PARKING LOTS AND GARAGES,2.90
16/09/2022,11001,BUSINESS INVESTMENT � INWARD INVESTME,4816,1 AND 1 IONOS LTD,COMPUTER NETWORK/INFORMATION SERVICES,11.99
16/09/2022,11197,WEST FAMILY HUB,5411,WM MORRISONS STORE,"GROCERY STORES, SUPERMARKETS",1.55
16/09/2022,11255,ADULT ED ADMIN & MANAGEMENT,5999,AMZNMKTPLACE,MISCELLANEOUS AND SPECIALTY RETAIL STORES,84.00
16/09/2022,10090,LIBRARIES - OPERATIONS,5200,WICKES COVENTRY,HOME SUPPLY WAREHOUSE STORES,46.70
16/09/2022,10541,COVENTRY EXTENDED LEARNING CENTRE,5999,AMZNMKTPLACE AMAZON.CO,MISCELLANEOUS AND SPECIALTY RETAIL STORES,13.99
16/09/2022,11928,COMMUNITY SUPPORT GRANTS,5999,AMZNMKTPLACE,MISCELLANEOUS AND SPECIALTY RETAIL STORES,8.95
16/09/2022,11928,COMMUNITY SUPPORT GRANTS,5999,AMZNMKTPLACE,MISCELLANEOUS AND SPECIALTY RETAIL STORES,8.99
16/09/2022,11928,COMMUNITY SUPPORT GRANTS,5999,AMZNMKTPLACE,MISCELLANEOUS AND SPECIALTY RETAIL STORES,8.95
16/09/2022,11928,COMMUNITY SUPPORT GRANTS,5999,AMZNMKTPLACE,MISCELLANEOUS AND SPECIALTY RETAIL STORES,49.99
16/09/2022,11928,COMMUNITY SUPPORT GRANTS,5999,AMZNMKTPLACE,MISCELLANEOUS AND SPECIALTY RETAIL STORES,8.95
16/09/2022,10448,RESIDENTIAL - GRAVEL HILL,5411,TESCO STORES 2328,"GROCERY STORES, SUPERMARKETS",184.49
16/09/2022,11932,LAC THROUGHCARE TEAM,5310,THE WORKS,DISCOUNT STORES,24.00
16/09/2022,11932,LAC THROUGHCARE TEAM,5941,SPORTSDIRECT 364,SPORTING GOODS STORES,85.96
16/09/2022,10541,COVENTRY EXTENDED LEARNING CENTRE,5999,AMZNMKTPLACE,MISCELLANEOUS AND SPECIALTY RETAIL STORES,12.84
16/09/2022,11898,SUSTAINABILITY & LOW CARBON TEAM,5811,SQ  SIGNATURE CATERING,CATERERS,73.50
16/09/2022,10226,LORD MAYORS OFFICE,5949,WOOL WAREHOUSE,"FABRIC, NEEDLEWORK, PIECE GOODS, AND SEWING STORES",14.41
16/09/2022,11928,COMMUNITY SUPPORT GRANTS,5999,AMZNMKTPLACE,MISCELLANEOUS AND SPECIALTY RETAIL STORES,44.44
16/09/2022,11928,COMMUNITY SUPPORT GRANTS,5999,AMZNMKTPLACE,MISCELLANEOUS AND SPECIALTY RETAIL STORES,10.94
16/09/2022,11928,COMMUNITY SUPPORT GRANTS,5999,AMZNMKTPLACE,MISCELLANEOUS AND SPECIALTY RETAIL STORES,49.99
16/09/2022,11928,COMMUNITY SUPPORT GRANTS,5999,AMZNMKTPLACE,MISCELLANEOUS AND SPECIALTY RETAIL STORES,44.44
16/09/2022,11928,COMMUNITY SUPPORT GRANTS,5999,AMZNMKTPLACE,MISCELLANEOUS AND SPECIALTY RETAIL STORES,49.99
16/09/2022,11928,COMMUNITY SUPPORT GRANTS,5999,AMZNMKTPLACE,MISCELLANEOUS AND SPECIALTY RETAIL STORES,133.32
16/09/2022,11928,COMMUNITY SUPPORT GRANTS,5999,AMZNMKTPLACE,MISCELLANEOUS AND SPECIALTY RETAIL STORES,133.32
16/09/2022,11928,COMMUNITY SUPPORT GRANTS,5999,AMZNMKTPLACE,MISCELLANEOUS AND SPECIALTY RETAIL STORES,24.74
16/09/2022,11928,COMMUNITY SUPPORT GRANTS,5999,AMZNMKTPLACE AMAZON.CO,MISCELLANEOUS AND SPECIALTY RETAIL STORES,27.98
16/09/2022,11687,RESIDENTIAL - BROAD PARK HOUSE,5251,HOME BARGAINS,HARDWARE STORES,74.92
16/09/2022,11170,BEHAVIOUR SUPPORT - PRIMARY CENTRES,5999,AMZNMKTPLACE,MISCELLANEOUS AND SPECIALTY RETAIL STORES,125.48
16/09/2022,10071,STREET TEAM ENFORCEMENT,5085,WWW.ARCO.CO.UK,INDUSTRIAL SUPPLIES NOT ELSEWHERE CLASSIFIED,75.49
16/09/2022,11928,COMMUNITY SUPPORT GRANTS,5999,AMZNMKTPLACE,MISCELLANEOUS AND SPECIALTY RETAIL STORES,49.99
16/09/2022,11928,COMMUNITY SUPPORT GRANTS,5999,AMZNMKTPLACE,MISCELLANEOUS AND SPECIALTY RETAIL STORES,49.99
16/09/2022,11248,IPS ERIC WILLIAMS HOUSE,5999,AMZNMKTPLACE,MISCELLANEOUS AND SPECIALTY RETAIL STORES,6.49
16/09/2022,11928,COMMUNITY SUPPORT GRANTS,5999,AMZNMKTPLACE,MISCELLANEOUS AND SPECIALTY RETAIL STORES,49.99
16/09/2022,11928,COMMUNITY SUPPORT GRANTS,5999,AMZNMKTPLACE,MISCELLANEOUS AND SPECIALTY RETAIL STORES,17.98
16/09/2022,11928,COMMUNITY SUPPORT GRANTS,5999,AMZNMKTPLACE AMAZON.CO,MISCELLANEOUS AND SPECIALTY RETAIL STORES,17.90
16/09/2022,11135,YOUTH OFFENDING SERVICE,5812,GREGGS PLC,"EATING PLACES, RESTAURANTS",10.00
16/09/2022,10676,HOUSING AND HOMELESSNESS,5999,AMZNMKTPLACE,MISCELLANEOUS AND SPECIALTY RETAIL STORES,22.99
16/09/2022,10565,ROUGH SLEEPER AND RAPID HOUSING PATH,4131,STAGECOACH SERVICE,BUS LINES,14.96
16/09/2022,11274,PUBLIC HEALTH STAFFING & OVERHEADS,5411,SPAR HAY LANE,"GROCERY STORES, SUPERMARKETS",5.79
16/09/2022,11507,CARE LEAVERS,7999,WWW.COVENTRY.GOV.UK,RECREATION SERVICES (NOT ELSEWHERE CLASSIFIED),11.00
16/09/2022,11687,RESIDENTIAL - BROAD PARK HOUSE,8299,TWINKL,SCHOOLS & EDUCATIONAL SVC-NOT ELSEWHERE CLASSIFIED,5.29
16/09/2022,11050,DEVELOPMENT MANAGEMENT,9402,POST OFFICE COUNTER,POSTAL SERVICES-GOVERNMENT ONLY,13.75
16/09/2022,11928,COMMUNITY SUPPORT GRANTS,5999,AMZNMKTPLACE AMAZON.CO,MISCELLANEOUS AND SPECIALTY RETAIL STORES,6.98
16/09/2022,11248,IPS ERIC WILLIAMS HOUSE,5999,AMZNMKTPLACE,MISCELLANEOUS AND SPECIALTY RETAIL STORES,10.98
16/09/2022,11248,IPS ERIC WILLIAMS HOUSE,5999,AMZNMKTPLACE,MISCELLANEOUS AND SPECIALTY RETAIL STORES,32.94
16/09/2022,11928,COMMUNITY SUPPORT GRANTS,5999,AMZNMKTPLACE AMAZON.CO,MISCELLANEOUS AND SPECIALTY RETAIL STORES,24.98
16/09/2022,11928,COMMUNITY SUPPORT GRANTS,5999,AMZNMKTPLACE AMAZON.CO,MISCELLANEOUS AND SPECIALTY RETAIL STORES,42.90
16/09/2022,11928,COMMUNITY SUPPORT GRANTS,5999,AMZNMKTPLACE AMAZON.CO,MISCELLANEOUS AND SPECIALTY RETAIL STORES,21.88
16/09/2022,11381,PUBLIC HEALTH,4131,WEST MIDLANDS TRAV,BUS LINES,55.00
16/09/2022,10900,LOCAL WELFARE PROVISION COVID-19,7399,CS  TESCO STORES GC,BUSINESS SERVICES-NOT ELSEWHERE CLASSIFIED,"2,925.00"
16/09/2022,11307,IPS MH THE POD,5411,SAINSBURYS S/MKTS,"GROCERY STORES, SUPERMARKETS",2.20
16/09/2022,11307,IPS MH THE POD,5411,SUMUP   PETER MAC,"GROCERY STORES, SUPERMARKETS",5.00
16/09/2022,11381,PUBLIC HEALTH,4131,WEST MIDLANDS TRAV,BUS LINES,27.50
16/09/2022,11381,PUBLIC HEALTH,4131,WEST MIDLANDS TRAV,BUS LINES,27.50
16/09/2022,11381,PUBLIC HEALTH,4131,WEST MIDLANDS TRAV,BUS LINES,55.00
16/09/2022,11381,PUBLIC HEALTH,4131,WEST MIDLANDS TRAV,BUS LINES,55.00
16/09/2022,11826,REPAIR & MAINTENANCE,5065,SKY BLUE FIXINGS LIMIT,ELECTRICAL PARTS AND EQUIPMENT,-23.03
16/09/2022,11848,COMMERCIAL PROPERTY MANAGEMENT (STAF,4900,WWW.BRITISHGAS.CO.,"UTLTS-ELCTRC, GAS, HEATING OIL, SANITARY, WATER",156.00
16/09/2022,11248,IPS ERIC WILLIAMS HOUSE,5999,AMZNMKTPLACE,MISCELLANEOUS AND SPECIALTY RETAIL STORES,10.98
15/09/2022,11928,COMMUNITY SUPPORT GRANTS,5999,AMZNMKTPLACE,MISCELLANEOUS AND SPECIALTY RETAIL STORES,21.88
15/09/2022,11928,COMMUNITY SUPPORT GRANTS,5999,AMZNMKTPLACE,MISCELLANEOUS AND SPECIALTY RETAIL STORES,43.76
15/09/2022,11928,COMMUNITY SUPPORT GRANTS,5999,AMZNMKTPLACE,MISCELLANEOUS AND SPECIALTY RETAIL STORES,14.50
15/09/2022,11928,COMMUNITY SUPPORT GRANTS,5999,AMZNMKTPLACE AMAZON.CO,MISCELLANEOUS AND SPECIALTY RETAIL STORES,6.98
15/09/2022,11928,COMMUNITY SUPPORT GRANTS,5999,AMZNMKTPLACE AMAZON.CO,MISCELLANEOUS AND SPECIALTY RETAIL STORES,99.99
15/09/2022,11928,COMMUNITY SUPPORT GRANTS,5999,AMZNMKTPLACE AMAZON.CO,MISCELLANEOUS AND SPECIALTY RETAIL STORES,14.50
15/09/2022,11928,COMMUNITY SUPPORT GRANTS,5999,AMZNMKTPLACE AMAZON.CO,MISCELLANEOUS AND SPECIALTY RETAIL STORES,10.94
15/09/2022,10411,IPS HWC QUINTON LODGE,5811,BRAKES (STORED CARDS),CATERERS,-88.97
15/09/2022,10378,CHILDREN�S SERVICES MANAGEMENT TEAM,4112,THETRAINLINE.COM,PASSENGER RAILWAYS,66.22
15/09/2022,10090,LIBRARIES - OPERATIONS,5999,AMZNBUSINESS AM9EA2FZ5,MISCELLANEOUS AND SPECIALTY RETAIL STORES,106.71
15/09/2022,10411,IPS HWC QUINTON LODGE,5811,BRAKES (STORED CARDS),CATERERS,258.69
15/09/2022,10416,LAC PERMANENCY,4131,WEST MIDLANDS TRAV,BUS LINES,27.50
15/09/2022,10416,LAC PERMANENCY,4131,WEST MIDLANDS TRAV,BUS LINES,27.50
15/09/2022,10416,LAC PERMANENCY,4131,WEST MIDLANDS TRAV,BUS LINES,27.50
15/09/2022,10416,LAC PERMANENCY,4112,THETRAINLINE.COM,PASSENGER RAILWAYS,139.19
15/09/2022,10416,LAC PERMANENCY,4112,THETRAINLINE.COM,PASSENGER RAILWAYS,70.50
15/09/2022,10378,CHILDREN�S SERVICES MANAGEMENT TEAM,4112,THETRAINLINE.COM,PASSENGER RAILWAYS,70.40
15/09/2022,11928,COMMUNITY SUPPORT GRANTS,5999,AMZNMKTPLACE AMAZON.CO,MISCELLANEOUS AND SPECIALTY RETAIL STORES,42.90
15/09/2022,10900,LOCAL WELFARE PROVISION COVID-19,7399,CS  TESCO STORES GC,BUSINESS SERVICES-NOT ELSEWHERE CLASSIFIED,75.00
15/09/2022,11381,PUBLIC HEALTH,9399,WWW.WMCA.CO.UK,GOVERNMENT SERVICES-NOT ELSEWHERE CLASSIFIED,55.00
15/09/2022,11381,PUBLIC HEALTH,9399,WWW.WMCA.CO.UK,GOVERNMENT SERVICES-NOT ELSEWHERE CLASSIFIED,55.00
15/09/2022,11928,COMMUNITY SUPPORT GRANTS,5999,AMZNMKTPLACE AMAZON.CO,MISCELLANEOUS AND SPECIALTY RETAIL STORES,46.99
15/09/2022,11928,COMMUNITY SUPPORT GRANTS,5999,AMZNMKTPLACE AMAZON.CO,MISCELLANEOUS AND SPECIALTY RETAIL STORES,6.44
15/09/2022,11928,COMMUNITY SUPPORT GRANTS,5999,AMZNMKTPLACE AMAZON.CO,MISCELLANEOUS AND SPECIALTY RETAIL STORES,10.99
15/09/2022,11928,COMMUNITY SUPPORT GRANTS,5999,AMZNMKTPLACE,MISCELLANEOUS AND SPECIALTY RETAIL STORES,35.97
15/09/2022,11928,COMMUNITY SUPPORT GRANTS,5999,AMZNMKTPLACE AMAZON.CO,MISCELLANEOUS AND SPECIALTY RETAIL STORES,6.98
15/09/2022,11928,COMMUNITY SUPPORT GRANTS,5999,AMZNMKTPLACE AMAZON.CO,MISCELLANEOUS AND SPECIALTY RETAIL STORES,8.95
15/09/2022,11928,COMMUNITY SUPPORT GRANTS,5999,AMZNMKTPLACE AMAZON.CO,MISCELLANEOUS AND SPECIALTY RETAIL STORES,138.98
15/09/2022,11928,COMMUNITY SUPPORT GRANTS,5999,AMZNMKTPLACE AMAZON.CO,MISCELLANEOUS AND SPECIALTY RETAIL STORES,10.94
15/09/2022,10469,RESIDENTIAL - JOBS LANE,5411,NISA LOCAL,"GROCERY STORES, SUPERMARKETS",18.14
15/09/2022,10448,RESIDENTIAL - GRAVEL HILL,5411,ASDA  STORES 4523,"GROCERY STORES, SUPERMARKETS",109.64
15/09/2022,10211,MIGRATION PROJECT B,5399,WILKO RETAIL LIMITED,MISCELLANEOUS GENERAL MERCHANDISE,3.00
15/09/2022,10469,RESIDENTIAL - JOBS LANE,5968,AMAZON PRIME U54LM9C55,DIRECT MARKETING-CONTINUITY/SUBSCRIPTION MERCHANTS,7.99
15/09/2022,10469,RESIDENTIAL - JOBS LANE,5411,FARMFOODS 641,"GROCERY STORES, SUPERMARKETS",60.48
15/09/2022,10360,JOB SHOP,5310,ARGOS LTD,DISCOUNT STORES,249.99
15/09/2022,11928,COMMUNITY SUPPORT GRANTS,5999,AMZNMKTPLACE,MISCELLANEOUS AND SPECIALTY RETAIL STORES,7.44
15/09/2022,11928,COMMUNITY SUPPORT GRANTS,5999,AMZNMKTPLACE,MISCELLANEOUS AND SPECIALTY RETAIL STORES,14.88
15/09/2022,10565,ROUGH SLEEPER AND RAPID HOUSING PATH,5047,ZAFETY SUPPLIES LTD,DENTAL/LAB/MED/OPHTHALMIC HOSP EQUIP & SUPPLIES,53.82
15/09/2022,10565,ROUGH SLEEPER AND RAPID HOUSING PATH,1520,SUMUP   BERNARD MICHA,GENERAL CONTRACTORS/RESIDENTIAL BUILDINGS,8.00
15/09/2022,11248,IPS ERIC WILLIAMS HOUSE,5199,JOHALDAIRIES.CO.UK,NONDURABLE GOODS (NOT ELSEWHERE CLASSIFIED),299.90
15/09/2022,11248,IPS ERIC WILLIAMS HOUSE,5811,BRAKES (STORED CARDS),CATERERS,727.13
15/09/2022,11928,COMMUNITY SUPPORT GRANTS,5999,AMZNMKTPLACE,MISCELLANEOUS AND SPECIALTY RETAIL STORES,44.44
15/09/2022,11928,COMMUNITY SUPPORT GRANTS,5999,AMZNMKTPLACE,MISCELLANEOUS AND SPECIALTY RETAIL STORES,44.44
15/09/2022,11928,COMMUNITY SUPPORT GRANTS,5999,AMZNMKTPLACE,MISCELLANEOUS AND SPECIALTY RETAIL STORES,44.44
15/09/2022,10232,CHILDREN�S DISABILITY,5399,B&M 470 - HS COVENTRY,MISCELLANEOUS GENERAL MERCHANDISE,42.00
15/09/2022,10232,CHILDREN�S DISABILITY,5399,WILKO RETAIL LIMITED,MISCELLANEOUS GENERAL MERCHANDISE,14.00
15/09/2022,11928,COMMUNITY SUPPORT GRANTS,5999,AMZNMKTPLACE,MISCELLANEOUS AND SPECIALTY RETAIL STORES,99.99
15/09/2022,10360,JOB SHOP,5411,TESCO STORES 2325,"GROCERY STORES, SUPERMARKETS",60.00
15/09/2022,10300,INTERNAL FOSTERING TEAM,5814,MCDONALDS,FAST FOOD RESTAURANTS,16.37
15/09/2022,11928,COMMUNITY SUPPORT GRANTS,5999,AMZNMKTPLACE,MISCELLANEOUS AND SPECIALTY RETAIL STORES,269.64
15/09/2022,11928,COMMUNITY SUPPORT GRANTS,5999,AMZNMKTPLACE,MISCELLANEOUS AND SPECIALTY RETAIL STORES,6.98
15/09/2022,10019,CUSTOMER SERVICES CENTRE,5999,AMZNMKTPLACE,MISCELLANEOUS AND SPECIALTY RETAIL STORES,64.99
15/09/2022,11307,IPS MH THE POD,5200,B & Q 1231,HOME SUPPLY WAREHOUSE STORES,93.98
15/09/2022,11197,WEST FAMILY HUB,5199,JOHALDAIRIES.CO.UK,NONDURABLE GOODS (NOT ELSEWHERE CLASSIFIED),8.05
15/09/2022,10019,CUSTOMER SERVICES CENTRE,5999,AMZNMKTPLACE,MISCELLANEOUS AND SPECIALTY RETAIL STORES,59.99
15/09/2022,10019,CUSTOMER SERVICES CENTRE,5999,AMZNMKTPLACE,MISCELLANEOUS AND SPECIALTY RETAIL STORES,94.99
15/09/2022,10019,CUSTOMER SERVICES CENTRE,5999,AMZNMKTPLACE,MISCELLANEOUS AND SPECIALTY RETAIL STORES,59.99
15/09/2022,11928,COMMUNITY SUPPORT GRANTS,5999,AMZNMKTPLACE,MISCELLANEOUS AND SPECIALTY RETAIL STORES,6.98
15/09/2022,11928,COMMUNITY SUPPORT GRANTS,5999,AMZNMKTPLACE,MISCELLANEOUS AND SPECIALTY RETAIL STORES,138.98
15/09/2022,11928,COMMUNITY SUPPORT GRANTS,5999,AMZNMKTPLACE,MISCELLANEOUS AND SPECIALTY RETAIL STORES,14.50
15/09/2022,11928,COMMUNITY SUPPORT GRANTS,5999,AMZNMKTPLACE,MISCELLANEOUS AND SPECIALTY RETAIL STORES,10.94
15/09/2022,11928,COMMUNITY SUPPORT GRANTS,5999,AMZNMKTPLACE,MISCELLANEOUS AND SPECIALTY RETAIL STORES,10.94
15/09/2022,11928,COMMUNITY SUPPORT GRANTS,5999,AMZNMKTPLACE,MISCELLANEOUS AND SPECIALTY RETAIL STORES,10.99
15/09/2022,10541,COVENTRY EXTENDED LEARNING CENTRE,5411,ASDA GROCERIES ONLINE,"GROCERY STORES, SUPERMARKETS",50.15
15/09/2022,11021,LAC & CARE LEAVERS,4784,M6 TOLL,"BRIDGE AND ROAD FEES, TOLLS",13.30
15/09/2022,11307,IPS MH THE POD,5411,SAINSBURYS S MKTS,"GROCERY STORES, SUPERMARKETS",1.55
15/09/2022,11307,IPS MH THE POD,5411,SAINSBURYS S/MKTS,"GROCERY STORES, SUPERMARKETS",6.60
15/09/2022,10541,COVENTRY EXTENDED LEARNING CENTRE,5411,ASDA GROCERIES ONLINE,"GROCERY STORES, SUPERMARKETS",-.25
15/09/2022,10565,ROUGH SLEEPER AND RAPID HOUSING PATH,9402,POST OFFICE COUNTER,POSTAL SERVICES-GOVERNMENT ONLY,4.45
15/09/2022,10565,ROUGH SLEEPER AND RAPID HOUSING PATH,1520,SUMUP   BERNARD MICHA,GENERAL CONTRACTORS/RESIDENTIAL BUILDINGS,8.00
15/09/2022,10565,ROUGH SLEEPER AND RAPID HOUSING PATH,5331,T K MAXX,VARIETY STORES,35.19
15/09/2022,10774,FACILITIES & PROPERTY SERVICES,8699,A.C.E.,"ORGANIZATIONS, MEMBERSHIP-NOT ELSEWHERE CLASSIFIED",45.60
15/09/2022,11826,REPAIR & MAINTENANCE,5999,AMZNMKTPLACE AMAZON.CO,MISCELLANEOUS AND SPECIALTY RETAIL STORES,32.97
15/09/2022,11928,COMMUNITY SUPPORT GRANTS,5999,AMZNMKTPLACE,MISCELLANEOUS AND SPECIALTY RETAIL STORES,10.94
15/09/2022,11928,COMMUNITY SUPPORT GRANTS,5999,AMZNMKTPLACE,MISCELLANEOUS AND SPECIALTY RETAIL STORES,10.99
15/09/2022,11928,COMMUNITY SUPPORT GRANTS,5999,AMZNMKTPLACE,MISCELLANEOUS AND SPECIALTY RETAIL STORES,6.98
15/09/2022,11928,COMMUNITY SUPPORT GRANTS,5999,AMZNMKTPLACE,MISCELLANEOUS AND SPECIALTY RETAIL STORES,21.88
15/09/2022,11928,COMMUNITY SUPPORT GRANTS,5999,AMZNMKTPLACE,MISCELLANEOUS AND SPECIALTY RETAIL STORES,10.94
15/09/2022,11928,COMMUNITY SUPPORT GRANTS,5999,AMZNMKTPLACE,MISCELLANEOUS AND SPECIALTY RETAIL STORES,10.94
15/09/2022,11928,COMMUNITY SUPPORT GRANTS,5999,AMZNMKTPLACE,MISCELLANEOUS AND SPECIALTY RETAIL STORES,7.44
15/09/2022,11928,COMMUNITY SUPPORT GRANTS,5999,AMZNMKTPLACE,MISCELLANEOUS AND SPECIALTY RETAIL STORES,14.50
15/09/2022,11928,COMMUNITY SUPPORT GRANTS,5999,AMZNMKTPLACE,MISCELLANEOUS AND SPECIALTY RETAIL STORES,14.50
15/09/2022,11928,COMMUNITY SUPPORT GRANTS,5999,AMZNMKTPLACE,MISCELLANEOUS AND SPECIALTY RETAIL STORES,88.88
15/09/2022,11746,RESIDENTIAL - GRAYSWOOD,5411,TESCO STORES 5168,"GROCERY STORES, SUPERMARKETS",255.59
15/09/2022,11932,LAC THROUGHCARE TEAM,9399,GEN REGISTER OFFICE,GOVERNMENT SERVICES-NOT ELSEWHERE CLASSIFIED,-31.50
15/09/2022,11136,EAST FAMILY HUB,7523,COVENTRY CITY COUNCIL,AUTOMOBILE PARKING LOTS AND GARAGES,4.00
15/09/2022,11932,LAC THROUGHCARE TEAM,4131,NX BUS CONTACTLESS,BUS LINES,2.20
15/09/2022,11426,SEN AND DISABILITY INFORMATION AND ADV,5812,WWW.PAPAJOHNS.CO.UK,"EATING PLACES, RESTAURANTS",20.48
15/09/2022,11307,IPS MH THE POD,5411,SAINSBURYS S MKTS,"GROCERY STORES, SUPERMARKETS",3.20
15/09/2022,11932,LAC THROUGHCARE TEAM,5814,43026655 COSTA COFFEE,FAST FOOD RESTAURANTS,8.10
15/09/2022,11507,CARE LEAVERS,7523,PAYBYPHONE RE COVENTRY,AUTOMOBILE PARKING LOTS AND GARAGES,1.06
15/09/2022,11928,COMMUNITY SUPPORT GRANTS,5999,AMZNMKTPLACE,MISCELLANEOUS AND SPECIALTY RETAIL STORES,7.44
15/09/2022,11928,COMMUNITY SUPPORT GRANTS,5999,AMZNMKTPLACE,MISCELLANEOUS AND SPECIALTY RETAIL STORES,44.44
15/09/2022,11928,COMMUNITY SUPPORT GRANTS,5999,AMZNMKTPLACE,MISCELLANEOUS AND SPECIALTY RETAIL STORES,177.76
15/09/2022,11928,COMMUNITY SUPPORT GRANTS,5999,AMZNMKTPLACE,MISCELLANEOUS AND SPECIALTY RETAIL STORES,7.44
15/09/2022,11879,IPS LD MAURICE EDELMAN HOUSE,5811,BRAKES (STORED CARDS),CATERERS,112.27
15/09/2022,11928,COMMUNITY SUPPORT GRANTS,5999,AMZNMKTPLACE,MISCELLANEOUS AND SPECIALTY RETAIL STORES,99.99
15/09/2022,11928,COMMUNITY SUPPORT GRANTS,5999,AMZNMKTPLACE,MISCELLANEOUS AND SPECIALTY RETAIL STORES,6.98
15/09/2022,11928,COMMUNITY SUPPORT GRANTS,5999,AMZNMKTPLACE,MISCELLANEOUS AND SPECIALTY RETAIL STORES,14.50
15/09/2022,11197,WEST FAMILY HUB,5411,FARMFOODS 641,"GROCERY STORES, SUPERMARKETS",12.00
15/09/2022,11879,IPS LD MAURICE EDELMAN HOUSE,5199,JOHALDAIRIES.CO.UK,NONDURABLE GOODS (NOT ELSEWHERE CLASSIFIED),135.95
15/09/2022,11879,IPS LD MAURICE EDELMAN HOUSE,5811,BRAKES (STORED CARDS),CATERERS,-32.18
15/09/2022,11928,COMMUNITY SUPPORT GRANTS,5999,AMZNMKTPLACE,MISCELLANEOUS AND SPECIALTY RETAIL STORES,10.94
15/09/2022,11928,COMMUNITY SUPPORT GRANTS,5999,AMZNMKTPLACE,MISCELLANEOUS AND SPECIALTY RETAIL STORES,14.50
15/09/2022,11928,COMMUNITY SUPPORT GRANTS,5999,AMZNMKTPLACE,MISCELLANEOUS AND SPECIALTY RETAIL STORES,14.50
15/09/2022,11021,LAC & CARE LEAVERS,7299,ZTL TITTESWORTH WATER,OTHER SERVICES (NOT ELSEWHERE CLASSIFIED),1.80
15/09/2022,10718,LAC EDUCATION SERVICE,5812,MCDONALDS   539,"EATING PLACES, RESTAURANTS",5.01
15/09/2022,10379,CHILDREN�S CRISIS INTERVENTION TEAM,5411,SAINSBURYS S/MKTS,"GROCERY STORES, SUPERMARKETS",31.77
15/09/2022,10040,IPS HWC COPTHORNE,5199,JOHALDAIRIES.CO.UK,NONDURABLE GOODS (NOT ELSEWHERE CLASSIFIED),14.25
15/09/2022,10019,CUSTOMER SERVICES CENTRE,5999,AMZNMKTPLACE AMAZON.CO,MISCELLANEOUS AND SPECIALTY RETAIL STORES,59.99
15/09/2022,10019,CUSTOMER SERVICES CENTRE,5999,AMZNMKTPLACE,MISCELLANEOUS AND SPECIALTY RETAIL STORES,54.99
15/09/2022,10019,CUSTOMER SERVICES CENTRE,5999,AMZNMKTPLACE AMAZON.CO,MISCELLANEOUS AND SPECIALTY RETAIL STORES,154.98
15/09/2022,10019,CUSTOMER SERVICES CENTRE,5999,AMZNMKTPLACE,MISCELLANEOUS AND SPECIALTY RETAIL STORES,54.99
15/09/2022,10019,CUSTOMER SERVICES CENTRE,5999,AMZNMKTPLACE AMAZON.CO,MISCELLANEOUS AND SPECIALTY RETAIL STORES,94.99
15/09/2022,10019,CUSTOMER SERVICES CENTRE,5999,AMZNMKTPLACE AMAZON.CO,MISCELLANEOUS AND SPECIALTY RETAIL STORES,119.98
15/09/2022,10019,CUSTOMER SERVICES CENTRE,5999,AMZNMKTPLACE AMAZON.CO,MISCELLANEOUS AND SPECIALTY RETAIL STORES,54.99
15/09/2022,10019,CUSTOMER SERVICES CENTRE,5999,AMZNMKTPLACE AMAZON.CO,MISCELLANEOUS AND SPECIALTY RETAIL STORES,107.78
15/09/2022,10019,CUSTOMER SERVICES CENTRE,5999,AMZNMKTPLACE,MISCELLANEOUS AND SPECIALTY RETAIL STORES,54.99
15/09/2022,10019,CUSTOMER SERVICES CENTRE,5999,AMZNMKTPLACE,MISCELLANEOUS AND SPECIALTY RETAIL STORES,54.99
15/09/2022,11928,COMMUNITY SUPPORT GRANTS,5999,AMZNMKTPLACE,MISCELLANEOUS AND SPECIALTY RETAIL STORES,12.80
15/09/2022,11928,COMMUNITY SUPPORT GRANTS,5999,AMZNMKTPLACE,MISCELLANEOUS AND SPECIALTY RETAIL STORES,6.98
15/09/2022,11928,COMMUNITY SUPPORT GRANTS,5999,AMZNMKTPLACE,MISCELLANEOUS AND SPECIALTY RETAIL STORES,6.98
15/09/2022,11928,COMMUNITY SUPPORT GRANTS,5999,AMZNMKTPLACE,MISCELLANEOUS AND SPECIALTY RETAIL STORES,6.98
15/09/2022,11928,COMMUNITY SUPPORT GRANTS,5999,AMZNMKTPLACE,MISCELLANEOUS AND SPECIALTY RETAIL STORES,174.98
15/09/2022,11928,COMMUNITY SUPPORT GRANTS,5999,AMZNMKTPLACE,MISCELLANEOUS AND SPECIALTY RETAIL STORES,17.90
15/09/2022,11928,COMMUNITY SUPPORT GRANTS,5999,AMZNMKTPLACE,MISCELLANEOUS AND SPECIALTY RETAIL STORES,14.50
15/09/2022,11928,COMMUNITY SUPPORT GRANTS,5999,AMZNMKTPLACE,MISCELLANEOUS AND SPECIALTY RETAIL STORES,17.90
15/09/2022,11928,COMMUNITY SUPPORT GRANTS,5999,AMZNMKTPLACE,MISCELLANEOUS AND SPECIALTY RETAIL STORES,14.50
15/09/2022,11928,COMMUNITY SUPPORT GRANTS,5999,AMZNMKTPLACE,MISCELLANEOUS AND SPECIALTY RETAIL STORES,269.64
15/09/2022,11277,FLEET SERVICES,5013,WWW.RHINOROOFRACKS.COM,MOTOR VEHICLE SUPPLIES AND NEW PARTS,483.25
15/09/2022,11027,CCTV & COMMUNITY SAFETY,7392,GET LICENSED,"CONSULTING, MANAGEMENT, AND PUBLIC RELATIONS SVCS",119.99
15/09/2022,11870,IPS LD WILFRED SPENCER CENTRE,5199,JOHALDAIRIES.CO.UK,NONDURABLE GOODS (NOT ELSEWHERE CLASSIFIED),36.25
15/09/2022,11687,RESIDENTIAL - BROAD PARK HOUSE,5399,B&M 526 - ANSTY ROAD,MISCELLANEOUS GENERAL MERCHANDISE,32.19
15/09/2022,11932,LAC THROUGHCARE TEAM,7399,DMN/SLUGANDLETTUCECOVE,BUSINESS SERVICES-NOT ELSEWHERE CLASSIFIED,46.50
15/09/2022,11354,IPS DAY OPPS GILBERT RICHARDS CENTRE,5811,BRAKES (STORED CARDS),CATERERS,-149.44
15/09/2022,10019,CUSTOMER SERVICES CENTRE,5999,AMZNMKTPLACE,MISCELLANEOUS AND SPECIALTY RETAIL STORES,94.99
15/09/2022,10019,CUSTOMER SERVICES CENTRE,5999,AMZNMKTPLACE,MISCELLANEOUS AND SPECIALTY RETAIL STORES,59.99
15/09/2022,10019,CUSTOMER SERVICES CENTRE,5999,AMZNMKTPLACE,MISCELLANEOUS AND SPECIALTY RETAIL STORES,59.99
15/09/2022,11928,COMMUNITY SUPPORT GRANTS,5999,AMZNMKTPLACE,MISCELLANEOUS AND SPECIALTY RETAIL STORES,8.95
15/09/2022,11764,HOSPITAL EDUCATION & OUTREACH SERVICE,8299,ASDAN,SCHOOLS & EDUCATIONAL SVC-NOT ELSEWHERE CLASSIFIED,190.00
15/09/2022,11354,IPS DAY OPPS GILBERT RICHARDS CENTRE,5199,JOHALDAIRIES.CO.UK,NONDURABLE GOODS (NOT ELSEWHERE CLASSIFIED),25.20
15/09/2022,11354,IPS DAY OPPS GILBERT RICHARDS CENTRE,5811,BRAKES (STORED CARDS),CATERERS,603.18
15/09/2022,11300,PEST CONTROL & ANIMAL WELFARE,5200,B & Q 1258,HOME SUPPLY WAREHOUSE STORES,61.60
15/09/2022,10512,REGISTER OFFICE,5651,NEXT DIRECTORY,FAMILY CLOTHING STORES,25.00
15/09/2022,10145,IPS LD BRANDON WOOD FARM,5199,JOHALDAIRIES.CO.UK,NONDURABLE GOODS (NOT ELSEWHERE CLASSIFIED),9.80
15/09/2022,11928,COMMUNITY SUPPORT GRANTS,5999,AMZNMKTPLACE AMAZON.CO,MISCELLANEOUS AND SPECIALTY RETAIL STORES,8.99
15/09/2022,11928,COMMUNITY SUPPORT GRANTS,5999,AMZNMKTPLACE AMAZON.CO,MISCELLANEOUS AND SPECIALTY RETAIL STORES,132.98
15/09/2022,11928,COMMUNITY SUPPORT GRANTS,5999,AMZNMKTPLACE AMAZON.CO,MISCELLANEOUS AND SPECIALTY RETAIL STORES,6.44
15/09/2022,11928,COMMUNITY SUPPORT GRANTS,5999,AMZNMKTPLACE AMAZON.CO,MISCELLANEOUS AND SPECIALTY RETAIL STORES,6.44
15/09/2022,11928,COMMUNITY SUPPORT GRANTS,5999,AMZNMKTPLACE AMAZON.CO,MISCELLANEOUS AND SPECIALTY RETAIL STORES,8.99
15/09/2022,11928,COMMUNITY SUPPORT GRANTS,5999,AMZNMKTPLACE,MISCELLANEOUS AND SPECIALTY RETAIL STORES,17.95
15/09/2022,11928,COMMUNITY SUPPORT GRANTS,5999,AMZNMKTPLACE AMAZON.CO,MISCELLANEOUS AND SPECIALTY RETAIL STORES,42.90
15/09/2022,11928,COMMUNITY SUPPORT GRANTS,5999,AMZNMKTPLACE AMAZON.CO,MISCELLANEOUS AND SPECIALTY RETAIL STORES,17.95
15/09/2022,11928,COMMUNITY SUPPORT GRANTS,5999,AMZNMKTPLACE,MISCELLANEOUS AND SPECIALTY RETAIL STORES,42.90
15/09/2022,11248,IPS ERIC WILLIAMS HOUSE,5999,AMZNMKTPLACE,MISCELLANEOUS AND SPECIALTY RETAIL STORES,11.42
15/09/2022,11248,IPS ERIC WILLIAMS HOUSE,5411,ALDI 15 772,"GROCERY STORES, SUPERMARKETS",47.25
15/09/2022,11248,IPS ERIC WILLIAMS HOUSE,5999,AMZNMKTPLACE,MISCELLANEOUS AND SPECIALTY RETAIL STORES,34.99
15/09/2022,11248,IPS ERIC WILLIAMS HOUSE,5999,AMZNMKTPLACE,MISCELLANEOUS AND SPECIALTY RETAIL STORES,59.90
15/09/2022,11255,ADULT ED ADMIN & MANAGEMENT,7278,COOLERAID LTD,"BUYING/SHOPPING CLUBS, SERVICES",48.00
15/09/2022,11456,GENERAL EVENTS,5621,STRADIVARIUS.COM,WOMEN'S READY TO WEAR STORES,-55.98
15/09/2022,11984,IPS MAYMORN RESOURCE CENTRE,5411,WM MORRISONS STORE,"GROCERY STORES, SUPERMARKETS",3.10
15/09/2022,10360,JOB SHOP,5411,TESCO STORES 2325,"GROCERY STORES, SUPERMARKETS",20.00
15/09/2022,10360,JOB SHOP,5411,TESCO STORES 2325,"GROCERY STORES, SUPERMARKETS",60.00
15/09/2022,10360,JOB SHOP,5411,TESCO STORES 2325,"GROCERY STORES, SUPERMARKETS",30.00
15/09/2022,11928,COMMUNITY SUPPORT GRANTS,5999,AMZNMKTPLACE,MISCELLANEOUS AND SPECIALTY RETAIL STORES,8.99
15/09/2022,11928,COMMUNITY SUPPORT GRANTS,5999,AMZNMKTPLACE,MISCELLANEOUS AND SPECIALTY RETAIL STORES,10.99
15/09/2022,11928,COMMUNITY SUPPORT GRANTS,5999,AMZNMKTPLACE,MISCELLANEOUS AND SPECIALTY RETAIL STORES,42.90
15/09/2022,11928,COMMUNITY SUPPORT GRANTS,5999,AMZNMKTPLACE,MISCELLANEOUS AND SPECIALTY RETAIL STORES,42.90
15/09/2022,11928,COMMUNITY SUPPORT GRANTS,5999,AMZNMKTPLACE,MISCELLANEOUS AND SPECIALTY RETAIL STORES,8.99
15/09/2022,11154,HIGHWAYS: OVERHEAD,5999,AMZNBUSINESS XW5GZ4SV5,MISCELLANEOUS AND SPECIALTY RETAIL STORES,54.00
15/09/2022,10288,MEMBERS SERVICES,5411,SAINSBURYS S/MKTS,"GROCERY STORES, SUPERMARKETS",4.30
15/09/2022,10288,MEMBERS SERVICES,7399,WWW.LABEVENTS.ORG,BUSINESS SERVICES-NOT ELSEWHERE CLASSIFIED,65.00
15/09/2022,11154,HIGHWAYS: OVERHEAD,5999,AMZNMKTPLACE AMAZON.CO,MISCELLANEOUS AND SPECIALTY RETAIL STORES,47.44
15/09/2022,11154,HIGHWAYS: OVERHEAD,5999,AMZNMKTPLACE,MISCELLANEOUS AND SPECIALTY RETAIL STORES,71.22
15/09/2022,10383,IPS HWC KNIGHTLOW,5811,BRAKES (STORED CARDS),CATERERS,210.47
15/09/2022,10383,IPS HWC KNIGHTLOW,5811,BRAKES (STORED CARDS),CATERERS,-46.65
15/09/2022,11456,GENERAL EVENTS,9402,ROYAL MAIL GROUP LTD,POSTAL SERVICES-GOVERNMENT ONLY,1.65
15/09/2022,11157,IPS HWC ELSIE JONES,5811,BRAKES (STORED CARDS),CATERERS,369.88
15/09/2022,11157,IPS HWC ELSIE JONES,5811,BRAKES (STORED CARDS),CATERERS,-102.55
15/09/2022,11928,COMMUNITY SUPPORT GRANTS,5999,AMZNMKTPLACE,MISCELLANEOUS AND SPECIALTY RETAIL STORES,8.99
15/09/2022,11928,COMMUNITY SUPPORT GRANTS,5999,AMZNMKTPLACE,MISCELLANEOUS AND SPECIALTY RETAIL STORES,7.44
15/09/2022,11928,COMMUNITY SUPPORT GRANTS,5999,AMZNMKTPLACE,MISCELLANEOUS AND SPECIALTY RETAIL STORES,14.88
15/09/2022,11928,COMMUNITY SUPPORT GRANTS,5999,AMZNMKTPLACE,MISCELLANEOUS AND SPECIALTY RETAIL STORES,6.49
15/09/2022,11928,COMMUNITY SUPPORT GRANTS,5999,AMZNMKTPLACE,MISCELLANEOUS AND SPECIALTY RETAIL STORES,9.98
15/09/2022,11928,COMMUNITY SUPPORT GRANTS,5999,AMZNMKTPLACE,MISCELLANEOUS AND SPECIALTY RETAIL STORES,46.99
15/09/2022,11928,COMMUNITY SUPPORT GRANTS,5999,AMZNMKTPLACE,MISCELLANEOUS AND SPECIALTY RETAIL STORES,140.97
15/09/2022,11928,COMMUNITY SUPPORT GRANTS,5999,AMZNMKTPLACE,MISCELLANEOUS AND SPECIALTY RETAIL STORES,93.98
15/09/2022,11928,COMMUNITY SUPPORT GRANTS,5999,AMZNMKTPLACE,MISCELLANEOUS AND SPECIALTY RETAIL STORES,46.99
15/09/2022,11928,COMMUNITY SUPPORT GRANTS,5999,AMZNMKTPLACE,MISCELLANEOUS AND SPECIALTY RETAIL STORES,46.99
15/09/2022,11364,MULTI AGENCY SAFEGUARDING HUB (MASH),5999,AMZNMKTPLACE,MISCELLANEOUS AND SPECIALTY RETAIL STORES,9.95
15/09/2022,11248,IPS ERIC WILLIAMS HOUSE,5811,BRAKES (STORED CARDS),CATERERS,-125.52
15/09/2022,11932,LAC THROUGHCARE TEAM,5999,AMZNMKTPLACE AMAZON.CO,MISCELLANEOUS AND SPECIALTY RETAIL STORES,29.99
15/09/2022,11932,LAC THROUGHCARE TEAM,5999,AMZNMKTPLACE AMAZON.CO,MISCELLANEOUS AND SPECIALTY RETAIL STORES,53.25
15/09/2022,11932,LAC THROUGHCARE TEAM,5999,AMZNMKTPLACE AMAZON.CO,MISCELLANEOUS AND SPECIALTY RETAIL STORES,39.99
15/09/2022,11364,MULTI AGENCY SAFEGUARDING HUB (MASH),5999,AMZNMKTPLACE,MISCELLANEOUS AND SPECIALTY RETAIL STORES,105.99
15/09/2022,11197,WEST FAMILY HUB,7523,COVENTRY CITY COUNCIL,AUTOMOBILE PARKING LOTS AND GARAGES,3.00
15/09/2022,10541,COVENTRY EXTENDED LEARNING CENTRE,5999,AMZNMKTPLACE,MISCELLANEOUS AND SPECIALTY RETAIL STORES,59.99
15/09/2022,10541,COVENTRY EXTENDED LEARNING CENTRE,5045,WESTERN DIGITAL (UK),"COMPUTERS, COMPUTER PERIPHERAL EQUIPMENT, SOFTWARE",17.28
15/09/2022,10541,COVENTRY EXTENDED LEARNING CENTRE,5999,AMZNMKTPLACE,MISCELLANEOUS AND SPECIALTY RETAIL STORES,119.00
15/09/2022,11764,HOSPITAL EDUCATION & OUTREACH SERVICE,8299,GL-ASSESMENT.CO.UK,SCHOOLS & EDUCATIONAL SVC-NOT ELSEWHERE CLASSIFIED,180.00
15/09/2022,11928,COMMUNITY SUPPORT GRANTS,5999,AMZNMKTPLACE,MISCELLANEOUS AND SPECIALTY RETAIL STORES,8.99
15/09/2022,11928,COMMUNITY SUPPORT GRANTS,5999,AMZNMKTPLACE,MISCELLANEOUS AND SPECIALTY RETAIL STORES,140.97
15/09/2022,11928,COMMUNITY SUPPORT GRANTS,5999,AMZNMKTPLACE,MISCELLANEOUS AND SPECIALTY RETAIL STORES,46.99
15/09/2022,11928,COMMUNITY SUPPORT GRANTS,5999,AMZNMKTPLACE,MISCELLANEOUS AND SPECIALTY RETAIL STORES,93.98
15/09/2022,11928,COMMUNITY SUPPORT GRANTS,5999,AMZNMKTPLACE,MISCELLANEOUS AND SPECIALTY RETAIL STORES,69.97
15/09/2022,11136,EAST FAMILY HUB,7523,COVENTRY CITY COUNCIL,AUTOMOBILE PARKING LOTS AND GARAGES,4.00
15/09/2022,11879,IPS LD MAURICE EDELMAN HOUSE,5411,TESCO STORES 5168,"GROCERY STORES, SUPERMARKETS",105.92
15/09/2022,11928,COMMUNITY SUPPORT GRANTS,5999,AMZNMKTPLACE,MISCELLANEOUS AND SPECIALTY RETAIL STORES,6.98
15/09/2022,11928,COMMUNITY SUPPORT GRANTS,5999,AMZNMKTPLACE AMAZON.CO,MISCELLANEOUS AND SPECIALTY RETAIL STORES,46.99
15/09/2022,11928,COMMUNITY SUPPORT GRANTS,5999,AMZNMKTPLACE AMAZON.CO,MISCELLANEOUS AND SPECIALTY RETAIL STORES,46.99
15/09/2022,11381,PUBLIC HEALTH,5411,MARKS&SPENCER PLC,"GROCERY STORES, SUPERMARKETS",1.15
15/09/2022,11381,PUBLIC HEALTH,9399,WWW.WMCA.CO.UK,GOVERNMENT SERVICES-NOT ELSEWHERE CLASSIFIED,27.50
15/09/2022,11381,PUBLIC HEALTH,9399,WWW.WMCA.CO.UK,GOVERNMENT SERVICES-NOT ELSEWHERE CLASSIFIED,27.50
15/09/2022,11381,PUBLIC HEALTH,9399,WWW.WMCA.CO.UK,GOVERNMENT SERVICES-NOT ELSEWHERE CLASSIFIED,55.00
15/09/2022,11507,CARE LEAVERS,5814,MCDONALDS,FAST FOOD RESTAURANTS,6.49
15/09/2022,10416,LAC PERMANENCY,4112,TRAINLINE.COM,PASSENGER RAILWAYS,96.39
15/09/2022,11057,SFPC-FAMILY GROUP CONFERENCING,5411,ALDI 772 176,"GROCERY STORES, SUPERMARKETS",1.98
15/09/2022,11928,COMMUNITY SUPPORT GRANTS,5999,AMZNMKTPLACE,MISCELLANEOUS AND SPECIALTY RETAIL STORES,10.99
15/09/2022,11928,COMMUNITY SUPPORT GRANTS,5999,AMZNMKTPLACE,MISCELLANEOUS AND SPECIALTY RETAIL STORES,10.99
15/09/2022,11928,COMMUNITY SUPPORT GRANTS,5999,AMZNMKTPLACE,MISCELLANEOUS AND SPECIALTY RETAIL STORES,42.90
15/09/2022,11928,COMMUNITY SUPPORT GRANTS,5999,AMZNMKTPLACE,MISCELLANEOUS AND SPECIALTY RETAIL STORES,138.98
15/09/2022,11928,COMMUNITY SUPPORT GRANTS,5999,AMZNMKTPLACE,MISCELLANEOUS AND SPECIALTY RETAIL STORES,42.90
15/09/2022,11928,COMMUNITY SUPPORT GRANTS,5999,AMZNMKTPLACE,MISCELLANEOUS AND SPECIALTY RETAIL STORES,10.99
15/09/2022,11928,COMMUNITY SUPPORT GRANTS,5999,AMZNMKTPLACE,MISCELLANEOUS AND SPECIALTY RETAIL STORES,14.50
15/09/2022,11928,COMMUNITY SUPPORT GRANTS,5999,AMZNMKTPLACE,MISCELLANEOUS AND SPECIALTY RETAIL STORES,42.90
15/09/2022,11928,COMMUNITY SUPPORT GRANTS,5999,AMZNMKTPLACE,MISCELLANEOUS AND SPECIALTY RETAIL STORES,31.99
15/09/2022,11928,COMMUNITY SUPPORT GRANTS,5999,AMZNMKTPLACE,MISCELLANEOUS AND SPECIALTY RETAIL STORES,6.98
15/09/2022,11103,RESIDENTIAL - BROAD LANE,5999,AMZNMKTPLACE,MISCELLANEOUS AND SPECIALTY RETAIL STORES,10.29
15/09/2022,11507,CARE LEAVERS,5533,HALFORDS ON LINE,"AUTOMOTIVE PARTS, ACCESSORIES STORES",28.00
15/09/2022,11103,RESIDENTIAL - BROAD LANE,5999,AMZNMKTPLACE,MISCELLANEOUS AND SPECIALTY RETAIL STORES,19.40
15/09/2022,11746,RESIDENTIAL - GRAYSWOOD,5999,AMZNMKTPLACE,MISCELLANEOUS AND SPECIALTY RETAIL STORES,10.29
15/09/2022,10397,"AD - PLANNING, TRANSPORT & HIGHWAYS",5812,PRET A MANGER,"EATING PLACES, RESTAURANTS",3.10
15/09/2022,11021,LAC & CARE LEAVERS,4784,M6 TOLL,"BRIDGE AND ROAD FEES, TOLLS",13.30
14/09/2022,11307,IPS MH THE POD,5411,SAINSBURYS S/MKTS,"GROCERY STORES, SUPERMARKETS",5.95
14/09/2022,11307,IPS MH THE POD,5411,TESCO STORES 5779,"GROCERY STORES, SUPERMARKETS",2.15
14/09/2022,11107,CENTRAL FAMILY HUB,5969,AMAZON.CO.UK JH9AD5Q05,DIRECT MARKETING-OTHER DIRECT MARKETERS/NOT ELSEW.,24.99
14/09/2022,11107,CENTRAL FAMILY HUB,5999,AMZNMKTPLACE,MISCELLANEOUS AND SPECIALTY RETAIL STORES,4.69
14/09/2022,11107,CENTRAL FAMILY HUB,5999,AMZNMKTPLACE,MISCELLANEOUS AND SPECIALTY RETAIL STORES,4.99
14/09/2022,11057,SFPC-FAMILY GROUP CONFERENCING,5411,ASDA STORES LTD 5865,"GROCERY STORES, SUPERMARKETS",3.35
14/09/2022,11267,ICT NETWORK SERVICES,5999,AMZNMKTPLACE,MISCELLANEOUS AND SPECIALTY RETAIL STORES,35.96
14/09/2022,11928,COMMUNITY SUPPORT GRANTS,5999,AMZNMKTPLACE,MISCELLANEOUS AND SPECIALTY RETAIL STORES,187.96
14/09/2022,11928,COMMUNITY SUPPORT GRANTS,5999,AMZNMKTPLACE,MISCELLANEOUS AND SPECIALTY RETAIL STORES,93.98
14/09/2022,11928,COMMUNITY SUPPORT GRANTS,5999,AMZNMKTPLACE,MISCELLANEOUS AND SPECIALTY RETAIL STORES,46.99
14/09/2022,11507,CARE LEAVERS,1520,BUDGET SKIP SERVICES L,GENERAL CONTRACTORS/RESIDENTIAL BUILDINGS,315.00
14/09/2022,11928,COMMUNITY SUPPORT GRANTS,5999,AMZNMKTPLACE AMAZON.CO,MISCELLANEOUS AND SPECIALTY RETAIL STORES,18.98
14/09/2022,11928,COMMUNITY SUPPORT GRANTS,5999,AMZNMKTPLACE AMAZON.CO,MISCELLANEOUS AND SPECIALTY RETAIL STORES,6.98
14/09/2022,11928,COMMUNITY SUPPORT GRANTS,5999,AMZNMKTPLACE AMAZON.CO,MISCELLANEOUS AND SPECIALTY RETAIL STORES,6.98
14/09/2022,11928,COMMUNITY SUPPORT GRANTS,5999,AMZNMKTPLACE AMAZON.CO,MISCELLANEOUS AND SPECIALTY RETAIL STORES,79.99
14/09/2022,11928,COMMUNITY SUPPORT GRANTS,5999,AMZNMKTPLACE AMAZON.CO,MISCELLANEOUS AND SPECIALTY RETAIL STORES,10.99
14/09/2022,11928,COMMUNITY SUPPORT GRANTS,5999,AMZNMKTPLACE AMAZON.CO,MISCELLANEOUS AND SPECIALTY RETAIL STORES,14.50
14/09/2022,11928,COMMUNITY SUPPORT GRANTS,5999,AMZNMKTPLACE AMAZON.CO,MISCELLANEOUS AND SPECIALTY RETAIL STORES,14.50
14/09/2022,11928,COMMUNITY SUPPORT GRANTS,5999,AMZNMKTPLACE AMAZON.CO,MISCELLANEOUS AND SPECIALTY RETAIL STORES,10.94
14/09/2022,11928,COMMUNITY SUPPORT GRANTS,5999,AMZNMKTPLACE AMAZON.CO,MISCELLANEOUS AND SPECIALTY RETAIL STORES,10.94
14/09/2022,11928,COMMUNITY SUPPORT GRANTS,5999,AMZNMKTPLACE,MISCELLANEOUS AND SPECIALTY RETAIL STORES,10.99
14/09/2022,11928,COMMUNITY SUPPORT GRANTS,5999,AMZNMKTPLACE,MISCELLANEOUS AND SPECIALTY RETAIL STORES,14.50
14/09/2022,11928,COMMUNITY SUPPORT GRANTS,5999,AMZNMKTPLACE,MISCELLANEOUS AND SPECIALTY RETAIL STORES,14.50
14/09/2022,11928,COMMUNITY SUPPORT GRANTS,5999,AMZNMKTPLACE,MISCELLANEOUS AND SPECIALTY RETAIL STORES,10.94
14/09/2022,11928,COMMUNITY SUPPORT GRANTS,5999,AMZNMKTPLACE,MISCELLANEOUS AND SPECIALTY RETAIL STORES,10.99
14/09/2022,11928,COMMUNITY SUPPORT GRANTS,5999,AMZNMKTPLACE,MISCELLANEOUS AND SPECIALTY RETAIL STORES,79.99
14/09/2022,11928,COMMUNITY SUPPORT GRANTS,5999,AMZNMKTPLACE,MISCELLANEOUS AND SPECIALTY RETAIL STORES,10.94
14/09/2022,11928,COMMUNITY SUPPORT GRANTS,5999,AMZNMKTPLACE,MISCELLANEOUS AND SPECIALTY RETAIL STORES,6.98
14/09/2022,11928,COMMUNITY SUPPORT GRANTS,5999,AMZNMKTPLACE,MISCELLANEOUS AND SPECIALTY RETAIL STORES,21.98
14/09/2022,11928,COMMUNITY SUPPORT GRANTS,5999,AMZNMKTPLACE,MISCELLANEOUS AND SPECIALTY RETAIL STORES,14.50
14/09/2022,11928,COMMUNITY SUPPORT GRANTS,5999,AMZNMKTPLACE,MISCELLANEOUS AND SPECIALTY RETAIL STORES,10.99
14/09/2022,11928,COMMUNITY SUPPORT GRANTS,5999,AMZNMKTPLACE,MISCELLANEOUS AND SPECIALTY RETAIL STORES,6.44
14/09/2022,11928,COMMUNITY SUPPORT GRANTS,5999,AMZNMKTPLACE,MISCELLANEOUS AND SPECIALTY RETAIL STORES,6.44
14/09/2022,11928,COMMUNITY SUPPORT GRANTS,5999,AMZNMKTPLACE,MISCELLANEOUS AND SPECIALTY RETAIL STORES,132.98
14/09/2022,11928,COMMUNITY SUPPORT GRANTS,5999,AMZNMKTPLACE,MISCELLANEOUS AND SPECIALTY RETAIL STORES,46.99
14/09/2022,11928,COMMUNITY SUPPORT GRANTS,5999,AMZNMKTPLACE,MISCELLANEOUS AND SPECIALTY RETAIL STORES,46.99
14/09/2022,11928,COMMUNITY SUPPORT GRANTS,5999,AMZNMKTPLACE,MISCELLANEOUS AND SPECIALTY RETAIL STORES,46.99
14/09/2022,11928,COMMUNITY SUPPORT GRANTS,5999,AMZNMKTPLACE,MISCELLANEOUS AND SPECIALTY RETAIL STORES,132.98
14/09/2022,10232,CHILDREN�S DISABILITY,5310,THE WORKS,DISCOUNT STORES,16.50
14/09/2022,11680,PROCUREMENT SERVICES,5968,AMAZON PRIME GE0YZ4Y35,DIRECT MARKETING-CONTINUITY/SUBSCRIPTION MERCHANTS,"2,400.00"
14/09/2022,11197,WEST FAMILY HUB,5712,IKEA LTD SHOP ONLINE,"EQUIP, FURNITURE, HOME FURNSHNGS STRS (EXCPT APPL)",930.00
14/09/2022,11771,STREETPRIDE SOUTH,5999,AMZNMKTPLACE,MISCELLANEOUS AND SPECIALTY RETAIL STORES,12.04
14/09/2022,11879,IPS LD MAURICE EDELMAN HOUSE,4899,NETFLIX,"CABLE, SATELLITE, OTHER PAY TELEVISION, RADIO SVCS",15.99
14/09/2022,11932,LAC THROUGHCARE TEAM,5310,ARGOS LTD,DISCOUNT STORES,55.00
14/09/2022,11507,CARE LEAVERS,5399,WILKO RETAIL LIMITED,MISCELLANEOUS GENERAL MERCHANDISE,56.05
14/09/2022,11932,LAC THROUGHCARE TEAM,5947,CARD FACTORY,"GIFT, CARD, NOVELTY AND SOUVENIR SHOPS",2.68
14/09/2022,11932,LAC THROUGHCARE TEAM,5812,STARBUCKS WARWICK,"EATING PLACES, RESTAURANTS",3.85
14/09/2022,11932,LAC THROUGHCARE TEAM,5411,WM MORRISONS STORE,"GROCERY STORES, SUPERMARKETS",2.98
14/09/2022,11932,LAC THROUGHCARE TEAM,5411,WM MORRISONS STORE,"GROCERY STORES, SUPERMARKETS",3.42
14/09/2022,10300,INTERNAL FOSTERING TEAM,3811,PREMIER INN44533970,PREMIER INN,112.39
14/09/2022,11050,DEVELOPMENT MANAGEMENT,4112,WWW.AVANTIWESTCOAST.CO,PASSENGER RAILWAYS,112.45
14/09/2022,11921,COMMISSIONING & POLICY - CHILDREN�S,4112,WWW.AVANTIWESTCOAST.CO,PASSENGER RAILWAYS,90.40
14/09/2022,11274,PUBLIC HEALTH STAFFING & OVERHEADS,4112,WWW.AVANTIWESTCOAST.CO,PASSENGER RAILWAYS,11.20
14/09/2022,11103,RESIDENTIAL - BROAD LANE,5999,AMZNMKTPLACE,MISCELLANEOUS AND SPECIALTY RETAIL STORES,11.75
14/09/2022,11197,WEST FAMILY HUB,7523,COVENTRY CITY COUNCIL,AUTOMOBILE PARKING LOTS AND GARAGES,8.00
14/09/2022,11086,OUTDOOR EDUCATION CENTRE,5411,TESCO STORES 3057,"GROCERY STORES, SUPERMARKETS",4.00
14/09/2022,11086,OUTDOOR EDUCATION CENTRE,5411,TESCO STORES 3057,"GROCERY STORES, SUPERMARKETS",10.20
14/09/2022,11103,RESIDENTIAL - BROAD LANE,5999,AMZNMKTPLACE,MISCELLANEOUS AND SPECIALTY RETAIL STORES,9.56
14/09/2022,11103,RESIDENTIAL - BROAD LANE,5814,JUST EAT,FAST FOOD RESTAURANTS,21.17
14/09/2022,10676,HOUSING AND HOMELESSNESS,9399,GEN REGISTER OFFICE,GOVERNMENT SERVICES-NOT ELSEWHERE CLASSIFIED,14.00
14/09/2022,10828,CITY OF CULTURE,5211,WWW.SCREWFIX.COM,"BUILDING MATERIALS, LUMBER STORES",27.90
14/09/2022,11021,LAC & CARE LEAVERS,5499,MOTO STAFFORD NORTH,"MISC FOOD STORE-CONVENIENCE,MRKT,SPLTY,VENDNG MACS",55.00
14/09/2022,11021,LAC & CARE LEAVERS,5499,MOTO STAFFORD NORTH,"MISC FOOD STORE-CONVENIENCE,MRKT,SPLTY,VENDNG MACS",3.93
14/09/2022,10900,LOCAL WELFARE PROVISION COVID-19,7399,CS  TESCO STORES GC,BUSINESS SERVICES-NOT ELSEWHERE CLASSIFIED,"2,615.00"
14/09/2022,10379,CHILDREN�S CRISIS INTERVENTION TEAM,7278,COSTCO WHOLESALE #122,"BUYING/SHOPPING CLUBS, SERVICES",97.50
14/09/2022,10040,IPS HWC COPTHORNE,5811,BRAKES (STORED CARDS),CATERERS,369.78
14/09/2022,10040,IPS HWC COPTHORNE,5811,BRAKES (STORED CARDS),CATERERS,-2.71
14/09/2022,10676,HOUSING AND HOMELESSNESS,5999,AMZNMKTPLACE AMAZON.CO,MISCELLANEOUS AND SPECIALTY RETAIL STORES,109.15
14/09/2022,10676,HOUSING AND HOMELESSNESS,5999,AMZNMKTPLACE AMAZON.CO,MISCELLANEOUS AND SPECIALTY RETAIL STORES,31.19
14/09/2022,10676,HOUSING AND HOMELESSNESS,5999,AMZNMKTPLACE AMAZON.CO,MISCELLANEOUS AND SPECIALTY RETAIL STORES,93.55
14/09/2022,10900,LOCAL WELFARE PROVISION COVID-19,7399,CS  TESCO STORES GC,BUSINESS SERVICES-NOT ELSEWHERE CLASSIFIED,"1,530.00"
14/09/2022,10019,CUSTOMER SERVICES CENTRE,5999,AMZNMKTPLACE AMAZON.CO,MISCELLANEOUS AND SPECIALTY RETAIL STORES,22.46
14/09/2022,10900,LOCAL WELFARE PROVISION COVID-19,5999,AMZNMKTPLACE AMAZON.CO,MISCELLANEOUS AND SPECIALTY RETAIL STORES,54.99
14/09/2022,10900,LOCAL WELFARE PROVISION COVID-19,5999,AMZNMKTPLACE AMAZON.CO,MISCELLANEOUS AND SPECIALTY RETAIL STORES,154.98
14/09/2022,10019,CUSTOMER SERVICES CENTRE,5999,AMZNMKTPLACE AMAZON.CO,MISCELLANEOUS AND SPECIALTY RETAIL STORES,54.99
14/09/2022,10019,CUSTOMER SERVICES CENTRE,5999,AMZNMKTPLACE AMAZON.CO,MISCELLANEOUS AND SPECIALTY RETAIL STORES,82.40
14/09/2022,10900,LOCAL WELFARE PROVISION COVID-19,5999,AMZNMKTPLACE,MISCELLANEOUS AND SPECIALTY RETAIL STORES,54.99
14/09/2022,10019,CUSTOMER SERVICES CENTRE,5999,AMZNMKTPLACE,MISCELLANEOUS AND SPECIALTY RETAIL STORES,239.97
14/09/2022,10019,CUSTOMER SERVICES CENTRE,5999,AMZNMKTPLACE,MISCELLANEOUS AND SPECIALTY RETAIL STORES,107.78
14/09/2022,10900,LOCAL WELFARE PROVISION COVID-19,5999,AMZNMKTPLACE,MISCELLANEOUS AND SPECIALTY RETAIL STORES,59.99
14/09/2022,10019,CUSTOMER SERVICES CENTRE,5999,AMZNMKTPLACE,MISCELLANEOUS AND SPECIALTY RETAIL STORES,17.98
14/09/2022,11932,LAC THROUGHCARE TEAM,5812,STAFFORD GREGGS,"EATING PLACES, RESTAURANTS",20.60
14/09/2022,10225,HOUSING - B&B ACCOMMODATION,7011,RAMADA HOTEL & SUITES,"LODGING-HOTELS,MOTELS,RESORTS-NOT CLASSIFIED",135.00
14/09/2022,11057,SFPC-FAMILY GROUP CONFERENCING,5499,PPOINT_ DAWLISH FOOD 3,"MISC FOOD STORE-CONVENIENCE,MRKT,SPLTY,VENDNG MACS",1.60
14/09/2022,11932,LAC THROUGHCARE TEAM,5812,STAFFORD BK,"EATING PLACES, RESTAURANTS",8.99
14/09/2022,11826,REPAIR & MAINTENANCE,5085,FINE CONTROLS UK LTD,INDUSTRIAL SUPPLIES NOT ELSEWHERE CLASSIFIED,197.21
14/09/2022,11932,LAC THROUGHCARE TEAM,9402,POST OFFICE COUNTER,POSTAL SERVICES-GOVERNMENT ONLY,5.70
14/09/2022,10672,PUBLIC HEALTH - MIGRATION,5499,M&S SIMPLY FOOD SSP,"MISC FOOD STORE-CONVENIENCE,MRKT,SPLTY,VENDNG MACS",15.15
14/09/2022,11746,RESIDENTIAL - GRAYSWOOD,5999,AMZNMKTPLACE,MISCELLANEOUS AND SPECIALTY RETAIL STORES,26.98
14/09/2022,10019,CUSTOMER SERVICES CENTRE,7523,COVENTRY CITY COUNCIL,AUTOMOBILE PARKING LOTS AND GARAGES,10.00
14/09/2022,11307,IPS MH THE POD,5411,WM MORRISONS STORE,"GROCERY STORES, SUPERMARKETS",13.83
14/09/2022,10090,LIBRARIES - OPERATIONS,5310,THE WORKS,DISCOUNT STORES,74.00
14/09/2022,11742,OPR0700 STATION SQUARE FRIARGATE,5399,FIRST RESCUE TRAIN,MISCELLANEOUS GENERAL MERCHANDISE,376.00
14/09/2022,11507,CARE LEAVERS,7032,EVERYONE ACTIVE-DOM,RECREATIONAL AND SPORTING CAMPS,229.90
14/09/2022,10480,"DIRECTOR � BUSINESS, INVESTMENT & CULTU",5499,YOYO COFFEE 1,"MISC FOOD STORE-CONVENIENCE,MRKT,SPLTY,VENDNG MACS",5.90
14/09/2022,10288,MEMBERS SERVICES,5411,MARKS&SPENCER PLC,"GROCERY STORES, SUPERMARKETS",21.75
14/09/2022,10288,MEMBERS SERVICES,5251,HOME BARGAINS COVENTRY,HARDWARE STORES,13.02
14/09/2022,10288,MEMBERS SERVICES,7278,COSTCO WHOLESALE #122,"BUYING/SHOPPING CLUBS, SERVICES",126.78
14/09/2022,10226,LORD MAYORS OFFICE,5812,METROPOLIS,"EATING PLACES, RESTAURANTS",62.65
14/09/2022,11248,IPS ERIC WILLIAMS HOUSE,5411,ASDA GROCERIES ONLINE,"GROCERY STORES, SUPERMARKETS",123.13
14/09/2022,11248,IPS ERIC WILLIAMS HOUSE,5411,ASDA GROCERIES ONLINE,"GROCERY STORES, SUPERMARKETS",-1.00
14/09/2022,11464,DSG - FAMILY HUB BUDGET,7523,COVENTRY CITY COUNCIL,AUTOMOBILE PARKING LOTS AND GARAGES,8.00
14/09/2022,11154,HIGHWAYS: OVERHEAD,5085,ARBIL LTD,INDUSTRIAL SUPPLIES NOT ELSEWHERE CLASSIFIED,33.40
14/09/2022,11154,HIGHWAYS: OVERHEAD,5085,ARBIL LTD,INDUSTRIAL SUPPLIES NOT ELSEWHERE CLASSIFIED,6.68
14/09/2022,11932,LAC THROUGHCARE TEAM,5999,AMZNMKTPLACE AMAZON.CO,MISCELLANEOUS AND SPECIALTY RETAIL STORES,59.99
14/09/2022,11364,MULTI AGENCY SAFEGUARDING HUB (MASH),5310,POUNDLAND LTD 1282,DISCOUNT STORES,2.00
14/09/2022,11364,MULTI AGENCY SAFEGUARDING HUB (MASH),5812,DOMINO S PIZZA,"EATING PLACES, RESTAURANTS",110.45
14/09/2022,11364,MULTI AGENCY SAFEGUARDING HUB (MASH),5999,AMZNMKTPLACE,MISCELLANEOUS AND SPECIALTY RETAIL STORES,21.80
14/09/2022,11364,MULTI AGENCY SAFEGUARDING HUB (MASH),5999,AMZNMKTPLACE,MISCELLANEOUS AND SPECIALTY RETAIL STORES,12.95
14/09/2022,11364,MULTI AGENCY SAFEGUARDING HUB (MASH),5999,AMZNMKTPLACE,MISCELLANEOUS AND SPECIALTY RETAIL STORES,15.18
14/09/2022,11687,RESIDENTIAL - BROAD PARK HOUSE,5411,ONE STOP 2901,"GROCERY STORES, SUPERMARKETS",3.00
14/09/2022,10541,COVENTRY EXTENDED LEARNING CENTRE,5732,SCAN COMPUTERS INT LTD,ELECTRONIC SALES,282.50
14/09/2022,11687,RESIDENTIAL - BROAD PARK HOUSE,5411,TESCO STORES 5168,"GROCERY STORES, SUPERMARKETS",107.41
14/09/2022,10541,COVENTRY EXTENDED LEARNING CENTRE,5945,SP PRO-COUSTIX DIREC,"GAME, TOY, AND HOBBY SHOPS",49.99
14/09/2022,10541,COVENTRY EXTENDED LEARNING CENTRE,5533,WWW.NETWORK-CABS.CO.UK,"AUTOMOTIVE PARTS, ACCESSORIES STORES",40.68
14/09/2022,10541,COVENTRY EXTENDED LEARNING CENTRE,5733,GEAR4MUSIC,"MUSIC STORES-INSTRUMENTS, PIANOS, SHEET MUSIC",969.56
14/09/2022,10541,COVENTRY EXTENDED LEARNING CENTRE,5733,GEAR4MUSIC,"MUSIC STORES-INSTRUMENTS, PIANOS, SHEET MUSIC",119.39
14/09/2022,10541,COVENTRY EXTENDED LEARNING CENTRE,5733,GEAR4MUSIC,"MUSIC STORES-INSTRUMENTS, PIANOS, SHEET MUSIC",442.17
14/09/2022,10541,COVENTRY EXTENDED LEARNING CENTRE,5733,STUDIOSPARES EUROPE LT,"MUSIC STORES-INSTRUMENTS, PIANOS, SHEET MUSIC",442.98
14/09/2022,11764,HOSPITAL EDUCATION & OUTREACH SERVICE,8299,GL-ASSESMENT.CO.UK,SCHOOLS & EDUCATIONAL SVC-NOT ELSEWHERE CLASSIFIED,120.00
14/09/2022,10700,AD - PROPERTY & ASSET MANAGEMENT,8220,PROCONFERENCES.COM,"COLLEGES, UNIV, PRO SCHOOLS, JUNIOR COLLEGES",130.80
14/09/2022,11267,ICT NETWORK SERVICES,5999,AMZNMKTPLACE,MISCELLANEOUS AND SPECIALTY RETAIL STORES,19.23
14/09/2022,10145,IPS LD BRANDON WOOD FARM,9402,POST OFFICE COUNTER,POSTAL SERVICES-GOVERNMENT ONLY,4.45
14/09/2022,11829,PARKING ENFORCEMENT,5999,AMZNMKTPLACE,MISCELLANEOUS AND SPECIALTY RETAIL STORES,59.70
14/09/2022,11829,PARKING ENFORCEMENT,5999,SHUROPODY,MISCELLANEOUS AND SPECIALTY RETAIL STORES,46.90
14/09/2022,10071,STREET TEAM ENFORCEMENT,5941,GO OUTDOORS,SPORTING GOODS STORES,184.30
14/09/2022,11507,CARE LEAVERS,5814,MCDONALDS,FAST FOOD RESTAURANTS,11.75
14/09/2022,11170,BEHAVIOUR SUPPORT - PRIMARY CENTRES,5411,TESCO STORES 2328,"GROCERY STORES, SUPERMARKETS",165.50
14/09/2022,10596,"EDUCATION CAPITAL, PLANNING &",1520,PAYPAL  UNDERFLOORP,GENERAL CONTRACTORS/RESIDENTIAL BUILDINGS,480.73
14/09/2022,11166,SOUTH FAMILY HUB,5411,ASDA GROCERIES ONLINE,"GROCERY STORES, SUPERMARKETS",43.07
14/09/2022,11166,SOUTH FAMILY HUB,5411,ASDA GROCERIES ONLINE,"GROCERY STORES, SUPERMARKETS",-.20
14/09/2022,11928,COMMUNITY SUPPORT GRANTS,5999,AMZNMKTPLACE,MISCELLANEOUS AND SPECIALTY RETAIL STORES,6.44
14/09/2022,11928,COMMUNITY SUPPORT GRANTS,5999,AMZNMKTPLACE,MISCELLANEOUS AND SPECIALTY RETAIL STORES,17.98
14/09/2022,11928,COMMUNITY SUPPORT GRANTS,5999,AMZNMKTPLACE,MISCELLANEOUS AND SPECIALTY RETAIL STORES,12.88
14/09/2022,11928,COMMUNITY SUPPORT GRANTS,5999,AMZNMKTPLACE,MISCELLANEOUS AND SPECIALTY RETAIL STORES,25.76
13/09/2022,11136,EAST FAMILY HUB,4812,THE PHONE ZONE,TELECOMMUNICATION EQUIPMENT INCL TELEPHONE SALES,17.00
13/09/2022,10416,LAC PERMANENCY,4112,TRAINLINE.COM,PASSENGER RAILWAYS,12.12
13/09/2022,11513,PROFESSIONAL SUPPORT SERVICE,9402,POST OFFICE COUNTER,POSTAL SERVICES-GOVERNMENT ONLY,2.85
13/09/2022,10448,RESIDENTIAL - GRAVEL HILL,5999,AMZNMKTPLACE,MISCELLANEOUS AND SPECIALTY RETAIL STORES,19.18
13/09/2022,10469,RESIDENTIAL - JOBS LANE,5969,AMZ AMAZON.CO.UK,DIRECT MARKETING-OTHER DIRECT MARKETERS/NOT ELSEW.,-11.70
13/09/2022,11179,PASSENGER TRANSPORT,5999,AMZNMKTPLACE,MISCELLANEOUS AND SPECIALTY RETAIL STORES,233.70
13/09/2022,11086,OUTDOOR EDUCATION CENTRE,5411,TESCO STORES 3057,"GROCERY STORES, SUPERMARKETS",84.60
13/09/2022,11403,IPS HWC COTTAGE FARM,5811,BRAKES (STORED CARDS),CATERERS,524.78
13/09/2022,11746,RESIDENTIAL - GRAYSWOOD,5999,AMZNMKTPLACE AMAZON.CO,MISCELLANEOUS AND SPECIALTY RETAIL STORES,6.04
13/09/2022,10317,MH COMMUNITY MENTAL HEALTH TEAM,5812,CHRIS'S CAFE,"EATING PLACES, RESTAURANTS",200.00
13/09/2022,10296,MH OTHER SERVICES,5812,CHRIS'S CAFE,"EATING PLACES, RESTAURANTS",234.00
13/09/2022,11746,RESIDENTIAL - GRAYSWOOD,5999,SHIEN.CO.UK,MISCELLANEOUS AND SPECIALTY RETAIL STORES,112.12
13/09/2022,11103,RESIDENTIAL - BROAD LANE,5999,AMZNMKTPLACE,MISCELLANEOUS AND SPECIALTY RETAIL STORES,14.98
13/09/2022,11103,RESIDENTIAL - BROAD LANE,5999,AMZNMKTPLACE,MISCELLANEOUS AND SPECIALTY RETAIL STORES,13.98
13/09/2022,11103,RESIDENTIAL - BROAD LANE,5411,TESCO STORES 2328,"GROCERY STORES, SUPERMARKETS",143.84
13/09/2022,11103,RESIDENTIAL - BROAD LANE,5999,AMZNMKTPLACE,MISCELLANEOUS AND SPECIALTY RETAIL STORES,14.99
13/09/2022,11932,LAC THROUGHCARE TEAM,5411,TESCO-STORES 6473,"GROCERY STORES, SUPERMARKETS",10.70
13/09/2022,11687,RESIDENTIAL - BROAD PARK HOUSE,5651,PRIMARK - COVENTRY,FAMILY CLOTHING STORES,30.00
13/09/2022,11602,IPS LD GOSFORD COMMUNITY HUB,5411,ADSA STORES LTD 4231,"GROCERY STORES, SUPERMARKETS",36.64
13/09/2022,10676,HOUSING AND HOMELESSNESS,4900,WWW.OVOENERGY.COM,"UTLTS-ELCTRC, GAS, HEATING OIL, SANITARY, WATER",20.00
13/09/2022,10676,HOUSING AND HOMELESSNESS,4900,WWW.OVOENERGY.COM,"UTLTS-ELCTRC, GAS, HEATING OIL, SANITARY, WATER",50.00
13/09/2022,10676,HOUSING AND HOMELESSNESS,7399,GENERAL REGISTER OFFIC,BUSINESS SERVICES-NOT ELSEWHERE CLASSIFIED,15.00
13/09/2022,10587,SCHOOLS LIBRARY SERVICE,5942,WATERSTONES,BOOK STORES,32.95
13/09/2022,10211,MIGRATION PROJECT B,9399,DISCLOSURE AND BARRING,GOVERNMENT SERVICES-NOT ELSEWHERE CLASSIFIED,18.00
13/09/2022,11135,YOUTH OFFENDING SERVICE,5999,AMZ OMNI BITS,MISCELLANEOUS AND SPECIALTY RETAIL STORES,-17.99
13/09/2022,11307,IPS MH THE POD,5411,AL-HALAL SUPERMARKET,"GROCERY STORES, SUPERMARKETS",2.40
13/09/2022,10211,MIGRATION PROJECT B,9399,DISCLOSURE AND BARRING,GOVERNMENT SERVICES-NOT ELSEWHERE CLASSIFIED,18.00
13/09/2022,10211,MIGRATION PROJECT B,9399,DISCLOSURE AND BARRING,GOVERNMENT SERVICES-NOT ELSEWHERE CLASSIFIED,18.00
13/09/2022,10211,MIGRATION PROJECT B,9399,DISCLOSURE AND BARRING,GOVERNMENT SERVICES-NOT ELSEWHERE CLASSIFIED,18.00
13/09/2022,10211,MIGRATION PROJECT B,9399,DISCLOSURE AND BARRING,GOVERNMENT SERVICES-NOT ELSEWHERE CLASSIFIED,18.00
13/09/2022,10211,MIGRATION PROJECT B,9399,DISCLOSURE AND BARRING,GOVERNMENT SERVICES-NOT ELSEWHERE CLASSIFIED,18.00
13/09/2022,10211,MIGRATION PROJECT B,9399,DISCLOSURE AND BARRING,GOVERNMENT SERVICES-NOT ELSEWHERE CLASSIFIED,18.00
13/09/2022,10251,IPS LD PILS OPERATIONAL,5999,AMZNBUSINESS G33746HC5,MISCELLANEOUS AND SPECIALTY RETAIL STORES,54.99
13/09/2022,10469,RESIDENTIAL - JOBS LANE,5699,ETSY.COM - PRINTYOURHE,ACCESSORY AND APPAREL STORES-MISCELLANEOUS,7.50
13/09/2022,10962,OUTDOOR EDUCATION SERVICE,8999,PAYPAL  FIREGRILLKEV,PROFESSIONAL SERVICES-NOT ELSEWHERE CLASSIFIED,70.00
13/09/2022,11021,LAC & CARE LEAVERS,5499,CHARLIE HALAL MEAT CEN,"MISC FOOD STORE-CONVENIENCE,MRKT,SPLTY,VENDNG MACS",15.00
13/09/2022,10900,LOCAL WELFARE PROVISION COVID-19,5999,AMZNMKTPLACE AMAZON.CO,MISCELLANEOUS AND SPECIALTY RETAIL STORES,59.99
13/09/2022,10900,LOCAL WELFARE PROVISION COVID-19,5999,AMZNMKTPLACE AMAZON.CO,MISCELLANEOUS AND SPECIALTY RETAIL STORES,94.99
13/09/2022,10900,LOCAL WELFARE PROVISION COVID-19,5999,AMZNMKTPLACE,MISCELLANEOUS AND SPECIALTY RETAIL STORES,94.99
13/09/2022,11021,LAC & CARE LEAVERS,5251,TOOLSTATION UK,HARDWARE STORES,55.42
13/09/2022,10541,COVENTRY EXTENDED LEARNING CENTRE,5411,ASDA GROCERIES ONLINE,"GROCERY STORES, SUPERMARKETS",64.65
13/09/2022,10541,COVENTRY EXTENDED LEARNING CENTRE,5411,ASDA GROCERIES ONLINE,"GROCERY STORES, SUPERMARKETS",82.89
13/09/2022,10541,COVENTRY EXTENDED LEARNING CENTRE,5411,ASDA GROCERIES ONLINE,"GROCERY STORES, SUPERMARKETS",-1.00
13/09/2022,11932,LAC THROUGHCARE TEAM,5411,CHARLIES SUPERSTORE,"GROCERY STORES, SUPERMARKETS",8.89
13/09/2022,11932,LAC THROUGHCARE TEAM,5411,ASDA STORES 4602,"GROCERY STORES, SUPERMARKETS",18.60
13/09/2022,10480,"DIRECTOR � BUSINESS, INVESTMENT & CULTU",5812,ZTL BEAN & LEAF COFFEE,"EATING PLACES, RESTAURANTS",6.40
13/09/2022,11932,LAC THROUGHCARE TEAM,5411,ASDA STORES 4602,"GROCERY STORES, SUPERMARKETS",137.88
13/09/2022,11307,IPS MH THE POD,5411,SP HODMEDOD TRADE,"GROCERY STORES, SUPERMARKETS",98.25
13/09/2022,11507,CARE LEAVERS,5732,CURRYS ONLINE,ELECTRONIC SALES,299.00
13/09/2022,11277,FLEET SERVICES,5311,THE SAFETY SUPPLY COMP,DEPARTMENT STORES,83.88
13/09/2022,11932,LAC THROUGHCARE TEAM,5813,SIGNAL BOX,"BAR,LOUNGE,DISCO,NIGHTCLUB,TAVERN-ALCOHOLIC DRINKS",17.68
13/09/2022,11464,DSG - FAMILY HUB BUDGET,7523,COVENTRY CITY COUNCIL,AUTOMOBILE PARKING LOTS AND GARAGES,4.00
13/09/2022,10653,STRATEGIC TRANSPORTATION,8999,IZ  THE BROOM WAGO,PROFESSIONAL SERVICES-NOT ELSEWHERE CLASSIFIED,"1,200.00"
13/09/2022,10382,CHILDREN�S SENSORY SUPPORT SERVICE,5411,TESCO STORES 2325,"GROCERY STORES, SUPERMARKETS",6.35
13/09/2022,10541,COVENTRY EXTENDED LEARNING CENTRE,5411,TESCO STORES 5168,"GROCERY STORES, SUPERMARKETS",74.00
13/09/2022,10541,COVENTRY EXTENDED LEARNING CENTRE,5311,EBAY O 08-09091-83344,DEPARTMENT STORES,7.99
13/09/2022,11364,MULTI AGENCY SAFEGUARDING HUB (MASH),5411,TESCO STORES 5779,"GROCERY STORES, SUPERMARKETS",4.20
13/09/2022,11687,RESIDENTIAL - BROAD PARK HOUSE,5411,ASDA STORES 4602,"GROCERY STORES, SUPERMARKETS",29.13
13/09/2022,10541,COVENTRY EXTENDED LEARNING CENTRE,5311,EBAY O 08-09091-83343,DEPARTMENT STORES,159.96
13/09/2022,10541,COVENTRY EXTENDED LEARNING CENTRE,5399,WWW.GAK.CO.UK,MISCELLANEOUS GENERAL MERCHANDISE,146.00
13/09/2022,11013,"EARLY YEARS SUFFICIENCY, QUALITY & TR",5968,MAGSUBCRIPTIONS COM,DIRECT MARKETING-CONTINUITY/SUBSCRIPTION MERCHANTS,107.10
13/09/2022,11764,HOSPITAL EDUCATION & OUTREACH SERVICE,5969,AMAZON.CO.UK EZ3ZZ8BR5,DIRECT MARKETING-OTHER DIRECT MARKETERS/NOT ELSEW.,8.71
13/09/2022,11764,HOSPITAL EDUCATION & OUTREACH SERVICE,5969,AMAZON.CO.UK YJ36Y4QF5,DIRECT MARKETING-OTHER DIRECT MARKETERS/NOT ELSEW.,49.95
13/09/2022,11764,HOSPITAL EDUCATION & OUTREACH SERVICE,5969,AMAZON.CO.UK 446BS0PM5,DIRECT MARKETING-OTHER DIRECT MARKETERS/NOT ELSEW.,29.97
13/09/2022,11764,HOSPITAL EDUCATION & OUTREACH SERVICE,5999,AMZNMKTPLACE,MISCELLANEOUS AND SPECIALTY RETAIL STORES,15.19
13/09/2022,11764,HOSPITAL EDUCATION & OUTREACH SERVICE,5999,AMZNMKTPLACE,MISCELLANEOUS AND SPECIALTY RETAIL STORES,159.42
13/09/2022,11764,HOSPITAL EDUCATION & OUTREACH SERVICE,5999,AMZNMKTPLACE,MISCELLANEOUS AND SPECIALTY RETAIL STORES,68.58
13/09/2022,11764,HOSPITAL EDUCATION & OUTREACH SERVICE,5999,AMZNMKTPLACE,MISCELLANEOUS AND SPECIALTY RETAIL STORES,7.34
13/09/2022,11764,HOSPITAL EDUCATION & OUTREACH SERVICE,5999,AMZNMKTPLACE,MISCELLANEOUS AND SPECIALTY RETAIL STORES,1.99
13/09/2022,11764,HOSPITAL EDUCATION & OUTREACH SERVICE,5999,AMZNMKTPLACE,MISCELLANEOUS AND SPECIALTY RETAIL STORES,43.98
13/09/2022,11764,HOSPITAL EDUCATION & OUTREACH SERVICE,7999,WWW.COVENTRY.GOV.UK,RECREATION SERVICES (NOT ELSEWHERE CLASSIFIED),75.00
13/09/2022,11764,HOSPITAL EDUCATION & OUTREACH SERVICE,5999,AMZNMKTPLACE,MISCELLANEOUS AND SPECIALTY RETAIL STORES,24.49
13/09/2022,11764,HOSPITAL EDUCATION & OUTREACH SERVICE,5999,AMZNMKTPLACE,MISCELLANEOUS AND SPECIALTY RETAIL STORES,109.95
13/09/2022,11764,HOSPITAL EDUCATION & OUTREACH SERVICE,5411,SKM CONVENIENCE STORE,"GROCERY STORES, SUPERMARKETS",3.97
13/09/2022,10310,COVENTRY CITY CENTRE REGENERATION,5499,M&S SIMPLY FOOD SSP,"MISC FOOD STORE-CONVENIENCE,MRKT,SPLTY,VENDNG MACS",4.35
13/09/2022,10785,COMMUNICATION AND INTERACTION SERVICE,5965,WWW.ACAMH.ORG,DIRECT MARKETING-COMBINATION CATALOG/RETAIL MERCH.,160.00
13/09/2022,11507,CARE LEAVERS,5814,43030710 COSTA COFFEE,FAST FOOD RESTAURANTS,5.40
13/09/2022,11507,CARE LEAVERS,5947,CARD FACTORY,"GIFT, CARD, NOVELTY AND SOUVENIR SHOPS",3.87
13/09/2022,10785,COMMUNICATION AND INTERACTION SERVICE,5965,WWW.ACAMH.ORG,DIRECT MARKETING-COMBINATION CATALOG/RETAIL MERCH.,120.00
13/09/2022,11870,IPS LD WILFRED SPENCER CENTRE,8999,PAYPAL  DEFRAECONTR,PROFESSIONAL SERVICES-NOT ELSEWHERE CLASSIFIED,"2,223.60"
13/09/2022,11984,IPS MAYMORN RESOURCE CENTRE,5499,PPOINT_ KRIS FOOD & WI,"MISC FOOD STORE-CONVENIENCE,MRKT,SPLTY,VENDNG MACS",1.75
13/09/2022,11879,IPS LD MAURICE EDELMAN HOUSE,5999,AMZNMKTPLACE AMAZON.CO,MISCELLANEOUS AND SPECIALTY RETAIL STORES,49.59
13/09/2022,11879,IPS LD MAURICE EDELMAN HOUSE,5411,TESCO STORES 5168,"GROCERY STORES, SUPERMARKETS",134.73
13/09/2022,11753,LIBRARIES - SERVICE DEVELOPMENT,5499,PPOINT_ STANDARD NEWS,"MISC FOOD STORE-CONVENIENCE,MRKT,SPLTY,VENDNG MACS",21.95
13/09/2022,11771,STREETPRIDE SOUTH,5999,AMZNMKTPLACE,MISCELLANEOUS AND SPECIALTY RETAIL STORES,12.80
13/09/2022,10704,LEGAL SERVICES,4112,WWW.AVANTIWESTCOAST.CO,PASSENGER RAILWAYS,9.45
13/09/2022,11771,STREETPRIDE SOUTH,5999,AMZNMKTPLACE,MISCELLANEOUS AND SPECIALTY RETAIL STORES,11.78
12/09/2022,10291,SECTION17 PAYMENTS CENTRAL,4131,WEST MIDLANDS TRAV,BUS LINES,27.50
12/09/2022,11307,IPS MH THE POD,5964,WWW.NISBETS.COM,DIRECT MARKETING-CATALOG MERCHANTS,83.98
12/09/2022,11602,IPS LD GOSFORD COMMUNITY HUB,5411,ADSA STORES LTD 4231,"GROCERY STORES, SUPERMARKETS",4.30
12/09/2022,10040,IPS HWC COPTHORNE,5811,ARTHURBRETT.CO.UK,CATERERS,16.96
12/09/2022,11687,RESIDENTIAL - BROAD PARK HOUSE,5411,ONE STOP 2901,"GROCERY STORES, SUPERMARKETS",4.00
12/09/2022,11307,IPS MH THE POD,5499,SP URBAN HERBS SHOP,"MISC FOOD STORE-CONVENIENCE,MRKT,SPLTY,VENDNG MACS",30.80
12/09/2022,10029,COOMBE,7523,COVENTRY CITY COUNCIL,AUTOMOBILE PARKING LOTS AND GARAGES,1.00
12/09/2022,11255,ADULT ED ADMIN & MANAGEMENT,5999,AMZNMKTPLACE,MISCELLANEOUS AND SPECIALTY RETAIL STORES,5.99
12/09/2022,11687,RESIDENTIAL - BROAD PARK HOUSE,5812,CHARLIES PLAICE,"EATING PLACES, RESTAURANTS",28.60
12/09/2022,10539,ADULT ED AOL 9/3 - VISUAL ARTS/FLORISTRY,5712,DUNELM SOFTFURNISHINGS,"EQUIP, FURNITURE, HOME FURNSHNGS STRS (EXCPT APPL)",780.00
12/09/2022,11255,ADULT ED ADMIN & MANAGEMENT,5999,AMZNMKTPLACE,MISCELLANEOUS AND SPECIALTY RETAIL STORES,5.99
12/09/2022,11255,ADULT ED ADMIN & MANAGEMENT,5999,AMZNMKTPLACE AMAZON.CO,MISCELLANEOUS AND SPECIALTY RETAIL STORES,7.99
12/09/2022,11984,IPS MAYMORN RESOURCE CENTRE,5411,WM MORRISONS STORE,"GROCERY STORES, SUPERMARKETS",1.55
12/09/2022,11826,REPAIR & MAINTENANCE,5065,SKY BLUE FIXINGS LIMIT,ELECTRICAL PARTS AND EQUIPMENT,107.38
12/09/2022,11928,COMMUNITY SUPPORT GRANTS,5999,AMZNMKTPLACE,MISCELLANEOUS AND SPECIALTY RETAIL STORES,89.99
12/09/2022,11928,COMMUNITY SUPPORT GRANTS,5999,AMZNMKTPLACE,MISCELLANEOUS AND SPECIALTY RETAIL STORES,64.99
12/09/2022,11928,COMMUNITY SUPPORT GRANTS,5999,AMZNMKTPLACE,MISCELLANEOUS AND SPECIALTY RETAIL STORES,10.99
12/09/2022,10416,LAC PERMANENCY,4131,WEST MIDLANDS TRAV,BUS LINES,51.50
12/09/2022,10416,LAC PERMANENCY,4112,THETRAINLINE.COM,PASSENGER RAILWAYS,90.38
12/09/2022,10416,LAC PERMANENCY,4131,WEST MIDLANDS TRAV,BUS LINES,51.50
12/09/2022,10416,LAC PERMANENCY,4131,WEST MIDLANDS TRAV,BUS LINES,51.50
12/09/2022,11932,LAC THROUGHCARE TEAM,5812,TAMILS TASTE OF ASIA,"EATING PLACES, RESTAURANTS",29.22
12/09/2022,11932,LAC THROUGHCARE TEAM,4111,WWW.WMCA.ORG.UK,"TRANSPRTN-SUBRBN & LOCAL COMTR PSNGR, INCL FERRIES",285.00
12/09/2022,10448,RESIDENTIAL - GRAVEL HILL,7523,COVENTRY CITY COUNCIL,AUTOMOBILE PARKING LOTS AND GARAGES,7.00
12/09/2022,10488,IPS LD JENNER8,9399,WWW.WMCA.CO.UK,GOVERNMENT SERVICES-NOT ELSEWHERE CLASSIFIED,30.00
12/09/2022,10226,LORD MAYORS OFFICE,5999,AMZNBUSINESS 9T7Q168C5,MISCELLANEOUS AND SPECIALTY RETAIL STORES,45.51
12/09/2022,10288,MEMBERS SERVICES,5994,WH SMITH,NEWS DEALERS AND NEWSSTANDS,24.99
12/09/2022,10226,LORD MAYORS OFFICE,5992,THE TOMLINSON FLOWER C,FLORISTS,285.00
12/09/2022,10226,LORD MAYORS OFFICE,5999,AMZNBUSINESS Q78Q93HJ5,MISCELLANEOUS AND SPECIALTY RETAIL STORES,45.51
12/09/2022,10226,LORD MAYORS OFFICE,5999,AMZNBUSINESS YI7A52IU5,MISCELLANEOUS AND SPECIALTY RETAIL STORES,15.17
12/09/2022,11507,CARE LEAVERS,5411,ALDI 56 772,"GROCERY STORES, SUPERMARKETS",27.98
12/09/2022,11507,CARE LEAVERS,5719,THE RANGE,MISCELLANEOUS HOUSE FURNISHING SPECIALTY SHOPS,26.99
12/09/2022,11057,SFPC-FAMILY GROUP CONFERENCING,5734,EMAP UK,COMPUTER SOFTWARE STORES,10.00
12/09/2022,11932,LAC THROUGHCARE TEAM,5814,43036785 COSTA COFFEE,FAST FOOD RESTAURANTS,12.15
12/09/2022,11932,LAC THROUGHCARE TEAM,7523,ESB EV SOLUTIONS EV CH,AUTOMOBILE PARKING LOTS AND GARAGES,5.71
12/09/2022,11932,LAC THROUGHCARE TEAM,8398,ALLPAY  CITIZEN HOUSIN,"ORGANIZATIONS, CHARITABLE AND SOCIAL SERVICES",373.56
12/09/2022,11932,LAC THROUGHCARE TEAM,7523,ESB EV SOLUTIONS EV CH,AUTOMOBILE PARKING LOTS AND GARAGES,.93
12/09/2022,11922,ICT USER SUPPORT,5999,AMZNMKTPLACE,MISCELLANEOUS AND SPECIALTY RETAIL STORES,17.98
12/09/2022,11922,ICT USER SUPPORT,5999,AMZNMKTPLACE,MISCELLANEOUS AND SPECIALTY RETAIL STORES,8.99
12/09/2022,11364,MULTI AGENCY SAFEGUARDING HUB (MASH),5411,TESCO STORES 5779,"GROCERY STORES, SUPERMARKETS",5.70
12/09/2022,11364,MULTI AGENCY SAFEGUARDING HUB (MASH),5251,HOME BARGAINS,HARDWARE STORES,5.55
12/09/2022,10951,IPS HWC SHORT TERM TENANCIES,5310,ARGOS LTD,DISCOUNT STORES,22.98
12/09/2022,10378,CHILDREN�S SERVICES MANAGEMENT TEAM,5999,AMZNMKTPLACE AMAZON.CO,MISCELLANEOUS AND SPECIALTY RETAIL STORES,145.94
12/09/2022,10378,CHILDREN�S SERVICES MANAGEMENT TEAM,5999,AMZNMKTPLACE AMAZON.CO,MISCELLANEOUS AND SPECIALTY RETAIL STORES,249.22
12/09/2022,11879,IPS LD MAURICE EDELMAN HOUSE,5411,TESCO STORES 2325,"GROCERY STORES, SUPERMARKETS",25.50
12/09/2022,11086,OUTDOOR EDUCATION CENTRE,5999,AMZNMKTPLACE,MISCELLANEOUS AND SPECIALTY RETAIL STORES,189.98
12/09/2022,11086,OUTDOOR EDUCATION CENTRE,5411,CO-OP GROUP 190390,"GROCERY STORES, SUPERMARKETS",26.85
12/09/2022,11136,EAST FAMILY HUB,5331,T K MAXX,VARIETY STORES,7.98
12/09/2022,11928,COMMUNITY SUPPORT GRANTS,5999,AMZNMKTPLACE,MISCELLANEOUS AND SPECIALTY RETAIL STORES,14.75
12/09/2022,11928,COMMUNITY SUPPORT GRANTS,5999,AMZNMKTPLACE,MISCELLANEOUS AND SPECIALTY RETAIL STORES,10.99
12/09/2022,11928,COMMUNITY SUPPORT GRANTS,5999,AMZNMKTPLACE,MISCELLANEOUS AND SPECIALTY RETAIL STORES,44.44
12/09/2022,11928,COMMUNITY SUPPORT GRANTS,5999,AMZNMKTPLACE,MISCELLANEOUS AND SPECIALTY RETAIL STORES,7.99
12/09/2022,11928,COMMUNITY SUPPORT GRANTS,5999,AMZNMKTPLACE,MISCELLANEOUS AND SPECIALTY RETAIL STORES,49.99
12/09/2022,10232,CHILDREN�S DISABILITY,5399,B&M 470 - HS COVENTRY,MISCELLANEOUS GENERAL MERCHANDISE,14.00
12/09/2022,10469,RESIDENTIAL - JOBS LANE,5969,AMAZON.CO.UK 3G3CD74O5,DIRECT MARKETING-OTHER DIRECT MARKETERS/NOT ELSEW.,13.86
12/09/2022,10488,IPS LD JENNER8,4111,WWW.WMCA.ORG.UK,"TRANSPRTN-SUBRBN & LOCAL COMTR PSNGR, INCL FERRIES",10.00
12/09/2022,10874,IDR2591 ROUNDHOUSE RD 78 ALDERMOOR ,5211,WWW.SCREWFIX.COM,"BUILDING MATERIALS, LUMBER STORES",231.32
12/09/2022,10469,RESIDENTIAL - JOBS LANE,7523,COVENTRY CITY COUNCIL,AUTOMOBILE PARKING LOTS AND GARAGES,6.00
12/09/2022,11507,CARE LEAVERS,8220,WEBPAYMENTS BRISTOL,"COLLEGES, UNIV, PRO SCHOOLS, JUNIOR COLLEGES",167.22
12/09/2022,11507,CARE LEAVERS,5812,GLOUCESTER SERVICES NO,"EATING PLACES, RESTAURANTS",4.00
12/09/2022,11507,CARE LEAVERS,5814,MCDONALDS,FAST FOOD RESTAURANTS,5.69
12/09/2022,11086,OUTDOOR EDUCATION CENTRE,5411,CO-OP GROUP 190390,"GROCERY STORES, SUPERMARKETS",21.60
12/09/2022,11024,DOMESTIC REFUSE,5411,MARKS&SPENCER PLC SACA,"GROCERY STORES, SUPERMARKETS",35.65
12/09/2022,11403,IPS HWC COTTAGE FARM,5811,BRAKES (STORED CARDS),CATERERS,156.43
12/09/2022,10291,SECTION17 PAYMENTS CENTRAL,5310,ARGOS LTD,DISCOUNT STORES,35.98
12/09/2022,11687,RESIDENTIAL - BROAD PARK HOUSE,5411,ASDA STORES 4602,"GROCERY STORES, SUPERMARKETS",7.10
12/09/2022,11687,RESIDENTIAL - BROAD PARK HOUSE,5411,TESCO STORES 2328,"GROCERY STORES, SUPERMARKETS",64.15
12/09/2022,10232,CHILDREN�S DISABILITY,5399,B&M 470 - HS COVENTRY,MISCELLANEOUS GENERAL MERCHANDISE,63.39
12/09/2022,10232,CHILDREN�S DISABILITY,5411,NISA LOCAL,"GROCERY STORES, SUPERMARKETS",2.35
12/09/2022,11755,SEN EARLY YEARS,8299,WWW.GL-EDUCATION.C,SCHOOLS & EDUCATIONAL SVC-NOT ELSEWHERE CLASSIFIED,102.92
12/09/2022,10291,SECTION17 PAYMENTS CENTRAL,5713,MICHAEL JOHN FLOOR,FLOOR COVERING STORES,"1,195.00"
12/09/2022,10368,PARKS � EVENTS & ACTIVITIES,5399,QPSUPPLIES LTD,MISCELLANEOUS GENERAL MERCHANDISE,7.89
12/09/2022,10291,SECTION17 PAYMENTS CENTRAL,7999,WWW.COVENTRY.GOV.UK,RECREATION SERVICES (NOT ELSEWHERE CLASSIFIED),11.00
12/09/2022,10291,SECTION17 PAYMENTS CENTRAL,7999,WWW.COVENTRY.GOV.UK,RECREATION SERVICES (NOT ELSEWHERE CLASSIFIED),11.00
12/09/2022,10448,RESIDENTIAL - GRAVEL HILL,5310,ARGOS LTD,DISCOUNT STORES,124.00
12/09/2022,10448,RESIDENTIAL - GRAVEL HILL,5310,ARGOS LTD,DISCOUNT STORES,762.95
12/09/2022,10469,RESIDENTIAL - JOBS LANE,5310,ARGOS LTD,DISCOUNT STORES,206.50
12/09/2022,10448,RESIDENTIAL - GRAVEL HILL,5411,TESCO STORES 2328,"GROCERY STORES, SUPERMARKETS",144.95
12/09/2022,11995,IPS HWC HARRY CAPLAN,5811,ARTHURBRETT.CO.UK,CATERERS,59.26
12/09/2022,11995,IPS HWC HARRY CAPLAN,5811,BRAKES (STORED CARDS),CATERERS,299.23
12/09/2022,11995,IPS HWC HARRY CAPLAN,5811,BRAKES (STORED CARDS),CATERERS,95.97
12/09/2022,11995,IPS HWC HARRY CAPLAN,5811,BRAKES (STORED CARDS),CATERERS,126.07
12/09/2022,11995,IPS HWC HARRY CAPLAN,5811,ARTHURBRETT.CO.UK,CATERERS,56.72
12/09/2022,11995,IPS HWC HARRY CAPLAN,5811,ARTHURBRETT.CO.UK,CATERERS,32.63
12/09/2022,11995,IPS HWC HARRY CAPLAN,5811,ARTHURBRETT.CO.UK,CATERERS,7.60
12/09/2022,11995,IPS HWC HARRY CAPLAN,5811,BRAKES (STORED CARDS),CATERERS,-12.31
12/09/2022,11879,IPS LD MAURICE EDELMAN HOUSE,5811,ARTHURBRETT.CO.UK,CATERERS,49.46
12/09/2022,11879,IPS LD MAURICE EDELMAN HOUSE,5811,ARTHURBRETT.CO.UK,CATERERS,26.13
12/09/2022,10512,REGISTER OFFICE,5999,AMZNMKTPLACE,MISCELLANEOUS AND SPECIALTY RETAIL STORES,169.99
12/09/2022,10469,RESIDENTIAL - JOBS LANE,5411,ASDA GROCERIES ONLINE,"GROCERY STORES, SUPERMARKETS",5.84
12/09/2022,10448,RESIDENTIAL - GRAVEL HILL,5411,ASDA GROCERIES ONLINE,"GROCERY STORES, SUPERMARKETS",154.62
12/09/2022,10469,RESIDENTIAL - JOBS LANE,5411,ASDA GROCERIES ONLINE,"GROCERY STORES, SUPERMARKETS",-1.80
12/09/2022,11932,LAC THROUGHCARE TEAM,4121,UBER    TRIP,LIMOUSINES AND TAXICABS,5.67
12/09/2022,11879,IPS LD MAURICE EDELMAN HOUSE,5811,ARTHURBRETT.CO.UK,CATERERS,37.43
12/09/2022,11879,IPS LD MAURICE EDELMAN HOUSE,5811,ARTHURBRETT.CO.UK,CATERERS,57.56
12/09/2022,11879,IPS LD MAURICE EDELMAN HOUSE,5811,ARTHURBRETT.CO.UK,CATERERS,69.73
12/09/2022,10411,IPS HWC QUINTON LODGE,5811,ARTHURBRETT.CO.UK,CATERERS,26.81
12/09/2022,10411,IPS HWC QUINTON LODGE,5811,ARTHURBRETT.CO.UK,CATERERS,47.20
12/09/2022,10411,IPS HWC QUINTON LODGE,5811,ARTHURBRETT.CO.UK,CATERERS,35.88
12/09/2022,11507,CARE LEAVERS,7523,"HIGHCROSS CAR PARK, LE",AUTOMOBILE PARKING LOTS AND GARAGES,3.50
12/09/2022,11507,CARE LEAVERS,5999,AMZNMKTPLACE,MISCELLANEOUS AND SPECIALTY RETAIL STORES,212.99
12/09/2022,11507,CARE LEAVERS,5999,AMZNMKTPLACE,MISCELLANEOUS AND SPECIALTY RETAIL STORES,23.51
12/09/2022,11507,CARE LEAVERS,5732,BUY IT DIRECT,ELECTRONIC SALES,479.86
12/09/2022,11507,CARE LEAVERS,5399,WILKO.COM,MISCELLANEOUS GENERAL MERCHANDISE,113.45
12/09/2022,11507,CARE LEAVERS,5713,GENERATION FLOORING,FLOOR COVERING STORES,189.24
12/09/2022,11507,CARE LEAVERS,5999,AMZNMKTPLACE,MISCELLANEOUS AND SPECIALTY RETAIL STORES,148.49
12/09/2022,11507,CARE LEAVERS,5310,ARGOS LTD,DISCOUNT STORES,47.95
12/09/2022,11507,CARE LEAVERS,5310,ARGOS LTD,DISCOUNT STORES,-114.95
12/09/2022,11507,CARE LEAVERS,5310,ARGOS LTD,DISCOUNT STORES,210.00
12/09/2022,10226,LORD MAYORS OFFICE,7542,WWW.IMOCARWASH.COM,CAR WASHES,58.00
12/09/2022,11932,LAC THROUGHCARE TEAM,5814,MCDONALDS,FAST FOOD RESTAURANTS,10.06
12/09/2022,10444,SOCIAL WORKER ACADEMY,5411,ASDA GEORGE COM LEEDS,"GROCERY STORES, SUPERMARKETS",-4.50
12/09/2022,11107,CENTRAL FAMILY HUB,5200,B & Q 1231,HOME SUPPLY WAREHOUSE STORES,12.91
12/09/2022,10383,IPS HWC KNIGHTLOW,5811,BRAKES (STORED CARDS),CATERERS,215.17
12/09/2022,10383,IPS HWC KNIGHTLOW,5811,BRAKES (STORED CARDS),CATERERS,115.12
12/09/2022,10900,LOCAL WELFARE PROVISION COVID-19,7399,CS  TESCO STORES GC,BUSINESS SERVICES-NOT ELSEWHERE CLASSIFIED,"1,385.00"
12/09/2022,10145,IPS LD BRANDON WOOD FARM,5941,LEICESTER FOSSE PARK S,SPORTING GOODS STORES,8.00
12/09/2022,11507,CARE LEAVERS,5310,ARGOS LTD,DISCOUNT STORES,164.11
12/09/2022,11507,CARE LEAVERS,5999,AMZNMKTPLACE,MISCELLANEOUS AND SPECIALTY RETAIL STORES,79.88
12/09/2022,11687,RESIDENTIAL - BROAD PARK HOUSE,5999,AMZNMKTPLACE,MISCELLANEOUS AND SPECIALTY RETAIL STORES,49.99
12/09/2022,10300,INTERNAL FOSTERING TEAM,5533,HALFORDS ON LINE,"AUTOMOTIVE PARTS, ACCESSORIES STORES",245.00
12/09/2022,10900,LOCAL WELFARE PROVISION COVID-19,7399,CS  TESCO STORES GC,BUSINESS SERVICES-NOT ELSEWHERE CLASSIFIED,"2,875.00"
12/09/2022,10900,LOCAL WELFARE PROVISION COVID-19,7399,CS  TESCO STORES GC,BUSINESS SERVICES-NOT ELSEWHERE CLASSIFIED,"2,950.00"
12/09/2022,10900,LOCAL WELFARE PROVISION COVID-19,7399,VOUCHER EXPRESS,BUSINESS SERVICES-NOT ELSEWHERE CLASSIFIED,150.00
12/09/2022,10900,LOCAL WELFARE PROVISION COVID-19,7399,CS  TESCO STORES GC,BUSINESS SERVICES-NOT ELSEWHERE CLASSIFIED,"2,905.00"
12/09/2022,10900,LOCAL WELFARE PROVISION COVID-19,7399,CS  TESCO STORES GC,BUSINESS SERVICES-NOT ELSEWHERE CLASSIFIED,"1,420.00"
12/09/2022,10383,IPS HWC KNIGHTLOW,5811,ARTHURBRETT.CO.UK,CATERERS,40.23
12/09/2022,10383,IPS HWC KNIGHTLOW,5811,BRAKES (STORED CARDS),CATERERS,64.34
12/09/2022,10383,IPS HWC KNIGHTLOW,5811,BRAKES (STORED CARDS),CATERERS,201.84
12/09/2022,10383,IPS HWC KNIGHTLOW,5811,ARTHURBRETT.CO.UK,CATERERS,14.57
12/09/2022,11157,IPS HWC ELSIE JONES,5811,ARTHURBRETT.CO.UK,CATERERS,30.32
12/09/2022,11157,IPS HWC ELSIE JONES,5811,ARTHURBRETT.CO.UK,CATERERS,26.62
12/09/2022,11157,IPS HWC ELSIE JONES,5811,ARTHURBRETT.CO.UK,CATERERS,21.26
12/09/2022,11107,CENTRAL FAMILY HUB,5999,AMZNMKTPLACE AMAZON.CO,MISCELLANEOUS AND SPECIALTY RETAIL STORES,11.38
12/09/2022,10029,COOMBE,5411,WM MORRISONS STORE,"GROCERY STORES, SUPERMARKETS",8.00
12/09/2022,11021,LAC & CARE LEAVERS,5411,ADSA STORES LTD 4231,"GROCERY STORES, SUPERMARKETS",-3.30
12/09/2022,11932,LAC THROUGHCARE TEAM,5651,PRIMARK - COVENTRY,FAMILY CLOTHING STORES,25.50
12/09/2022,11021,LAC & CARE LEAVERS,5661,FOOT LOCKER UK 4208,SHOE STORES,3.99
12/09/2022,11021,LAC & CARE LEAVERS,5411,ADSA STORES LTD 4231,"GROCERY STORES, SUPERMARKETS",123.28
12/09/2022,11932,LAC THROUGHCARE TEAM,5814,JUST EAT,FAST FOOD RESTAURANTS,27.95
12/09/2022,11932,LAC THROUGHCARE TEAM,5411,ADSA STORES LTD 4231,"GROCERY STORES, SUPERMARKETS",85.93
12/09/2022,11932,LAC THROUGHCARE TEAM,5912,SUPERDRUG STORES PLC,"DRUG STORES, PHARMACIES",13.03
12/09/2022,11932,LAC THROUGHCARE TEAM,5712,IKEA LTD 263 NOTTINGHA,"EQUIP, FURNITURE, HOME FURNSHNGS STRS (EXCPT APPL)",17.00
12/09/2022,11248,IPS ERIC WILLIAMS HOUSE,5811,ARTHURBRETT.CO.UK,CATERERS,68.63
12/09/2022,10071,STREET TEAM ENFORCEMENT,9402,POST OFFICE COUNTER,POSTAL SERVICES-GOVERNMENT ONLY,163.00
12/09/2022,11764,HOSPITAL EDUCATION & OUTREACH SERVICE,4814,BT BUSINESS BILL,TELECOM INCL PREPAID/RECURRING PHONE SVCS,90.01
12/09/2022,11764,HOSPITAL EDUCATION & OUTREACH SERVICE,4814,BT BUSINESS BILL,TELECOM INCL PREPAID/RECURRING PHONE SVCS,67.07
12/09/2022,11248,IPS ERIC WILLIAMS HOUSE,5811,BRAKES (STORED CARDS),CATERERS,604.29
12/09/2022,11248,IPS ERIC WILLIAMS HOUSE,5811,BRAKES (STORED CARDS),CATERERS,660.29
12/09/2022,11248,IPS ERIC WILLIAMS HOUSE,5811,ARTHURBRETT.CO.UK,CATERERS,108.11
12/09/2022,11248,IPS ERIC WILLIAMS HOUSE,5811,ARTHURBRETT.CO.UK,CATERERS,66.35
12/09/2022,11248,IPS ERIC WILLIAMS HOUSE,5811,ARTHURBRETT.CO.UK,CATERERS,62.59
12/09/2022,11129,INTERNAL FOSTERING FEES,5499,NISA EXTRA,"MISC FOOD STORE-CONVENIENCE,MRKT,SPLTY,VENDNG MACS",7.63
12/09/2022,11932,LAC THROUGHCARE TEAM,3811,PREMIER INN,PREMIER INN,52.00
12/09/2022,11932,LAC THROUGHCARE TEAM,5251,HOME BARGAINS,HARDWARE STORES,19.88
12/09/2022,11932,LAC THROUGHCARE TEAM,5310,ARGOS LTD,DISCOUNT STORES,-38.00
12/09/2022,10226,LORD MAYORS OFFICE,5251,HOME BARGAINS COVENTRY,HARDWARE STORES,15.09
12/09/2022,10226,LORD MAYORS OFFICE,5310,POUNDLAND LTD,DISCOUNT STORES,6.30
12/09/2022,11103,RESIDENTIAL - BROAD LANE,5995,PETS AT HOME LTD,PET SHOPS - PET FOODS AND SUPPLIES,14.56
12/09/2022,11103,RESIDENTIAL - BROAD LANE,7278,COSTCO WHOLESALE #122,"BUYING/SHOPPING CLUBS, SERVICES",77.56
12/09/2022,11136,EAST FAMILY HUB,5999,AMZNMKTPLACE,MISCELLANEOUS AND SPECIALTY RETAIL STORES,15.68
12/09/2022,10211,MIGRATION PROJECT B,5411,SAINSBURYS S/MKTS,"GROCERY STORES, SUPERMARKETS",5.20
12/09/2022,11354,IPS DAY OPPS GILBERT RICHARDS CENTRE,5411,ASDA GROCERIES ONLINE,"GROCERY STORES, SUPERMARKETS",-15.50
12/09/2022,11764,HOSPITAL EDUCATION & OUTREACH SERVICE,5999,AMZNMKTPLACE AMAZON.CO,MISCELLANEOUS AND SPECIALTY RETAIL STORES,5.00
12/09/2022,11354,IPS DAY OPPS GILBERT RICHARDS CENTRE,5411,ASDA GROCERIES ONLINE,"GROCERY STORES, SUPERMARKETS",61.55
12/09/2022,11354,IPS DAY OPPS GILBERT RICHARDS CENTRE,5811,ARTHURBRETT.CO.UK,CATERERS,60.35
12/09/2022,10561,PARKS GENERAL,5969,AMAZON.CO.UK JL0RN4MA5,DIRECT MARKETING-OTHER DIRECT MARKETERS/NOT ELSEW.,17.99
12/09/2022,11354,IPS DAY OPPS GILBERT RICHARDS CENTRE,5811,BRAKES (STORED CARDS),CATERERS,307.98
12/09/2022,11354,IPS DAY OPPS GILBERT RICHARDS CENTRE,5811,BRAKES (STORED CARDS),CATERERS,277.21
12/09/2022,11354,IPS DAY OPPS GILBERT RICHARDS CENTRE,5811,BRAKES (STORED CARDS),CATERERS,318.70
12/09/2022,11354,IPS DAY OPPS GILBERT RICHARDS CENTRE,5811,BRAKES (STORED CARDS),CATERERS,-8.08
12/09/2022,11539,CENTRALISED PROMOTIONS BUDGET,5971,ALAMY.COM LIMITED,ART DEALERS AND GALLERIES,35.99
12/09/2022,11381,PUBLIC HEALTH,5411,SAINSBURY'S S/MKT,"GROCERY STORES, SUPERMARKETS",16.60
12/09/2022,11995,IPS HWC HARRY CAPLAN,5811,BRAKES (STORED CARDS),CATERERS,473.24
12/09/2022,11197,WEST FAMILY HUB,5999,AMZNMKTPLACE,MISCELLANEOUS AND SPECIALTY RETAIL STORES,14.99
12/09/2022,11381,PUBLIC HEALTH,5722,FOLESHILL WAREHOUSE LI,HOUSEHOLD APPLIANCE STORES,11.08
12/09/2022,11403,IPS HWC COTTAGE FARM,5811,ARTHURBRETT.CO.UK,CATERERS,18.28
12/09/2022,11403,IPS HWC COTTAGE FARM,5811,ARTHURBRETT.CO.UK,CATERERS,18.38
12/09/2022,10150,TRAINING CORPORATE COMMISSIONING,5999,AMZNMKTPLACE,MISCELLANEOUS AND SPECIALTY RETAIL STORES,6.99
12/09/2022,11103,RESIDENTIAL - BROAD LANE,5411,MARKS&SPENCER PLC,"GROCERY STORES, SUPERMARKETS",-28.00
12/09/2022,11995,IPS HWC HARRY CAPLAN,5811,BRAKES (STORED CARDS),CATERERS,127.01
12/09/2022,11995,IPS HWC HARRY CAPLAN,5811,BRAKES (STORED CARDS),CATERERS,166.13
12/09/2022,11507,CARE LEAVERS,5310,ARGOS LTD,DISCOUNT STORES,112.95
12/09/2022,11248,IPS ERIC WILLIAMS HOUSE,5811,ARTHURBRETT.CO.UK,CATERERS,76.83
12/09/2022,11248,IPS ERIC WILLIAMS HOUSE,5811,ARTHURBRETT.CO.UK,CATERERS,65.28
12/09/2022,11507,CARE LEAVERS,5310,ARGOS LTD,DISCOUNT STORES,114.95
12/09/2022,11507,CARE LEAVERS,5310,ARGOS LTD,DISCOUNT STORES,197.95
12/09/2022,10581,ERDF - COVENTRY & WARWICKSHIRE LOW C,7311,LINKEDIN 8230336064,ADVERTISING SERVICES,118.06
12/09/2022,11932,LAC THROUGHCARE TEAM,4131,NX BUS CONTACTLESS,BUS LINES,2.20
12/09/2022,11932,LAC THROUGHCARE TEAM,5812,SOVRANO CAFE,"EATING PLACES, RESTAURANTS",10.55
12/09/2022,11932,LAC THROUGHCARE TEAM,4131,NX BUS CONTACTLESS,BUS LINES,4.00
12/09/2022,10169,CHILDREN�S SERVICES MANAGEMENT TEAM,5310,ARGOS LTD,DISCOUNT STORES,42.00
12/09/2022,10019,CUSTOMER SERVICES CENTRE,7523,COVENTRY CITY COUNCIL,AUTOMOBILE PARKING LOTS AND GARAGES,7.00
12/09/2022,10019,CUSTOMER SERVICES CENTRE,5411,TESCO STORES 5168,"GROCERY STORES, SUPERMARKETS",114.43
12/09/2022,11307,IPS MH THE POD,5411,SAINSBURYS S/MKTS,"GROCERY STORES, SUPERMARKETS",5.70
12/09/2022,11742,OPR0700 STATION SQUARE FRIARGATE,5970,HOBBYCRAFT,"ARTIST SUPPLY STORES, CRAFT SHOPS",10.60
12/09/2022,10291,SECTION17 PAYMENTS CENTRAL,7999,WWW.COVENTRY.GOV.UK,RECREATION SERVICES (NOT ELSEWHERE CLASSIFIED),11.00
12/09/2022,11149,WAR MEMORIAL PARK,5411,WM MORRISONS STORE,"GROCERY STORES, SUPERMARKETS",16.93
12/09/2022,10291,SECTION17 PAYMENTS CENTRAL,5999,AMZNMKTPLACE AMAZON.CO,MISCELLANEOUS AND SPECIALTY RETAIL STORES,44.97
09/09/2022,11381,PUBLIC HEALTH,4131,WEST MIDLANDS TRAV,BUS LINES,55.00
09/09/2022,10288,MEMBERS SERVICES,5999,AMZNBUSINESS 8N4HS4QO5,MISCELLANEOUS AND SPECIALTY RETAIL STORES,15.00
09/09/2022,11507,CARE LEAVERS,5399,B&M 470 - HS COVENTRY,MISCELLANEOUS GENERAL MERCHANDISE,30.00
09/09/2022,11507,CARE LEAVERS,5399,B&M 470 - HS COVENTRY,MISCELLANEOUS GENERAL MERCHANDISE,94.16
09/09/2022,11021,LAC & CARE LEAVERS,5441,PREMIER KEMPAS,"CANDY, NUT, CONFECTIONERY STORES",19.28
09/09/2022,11507,CARE LEAVERS,7523,COVENTRY CITY COUNCIL,AUTOMOBILE PARKING LOTS AND GARAGES,1.00
09/09/2022,11928,COMMUNITY SUPPORT GRANTS,5999,AMZ EUROPEAN FURNITURE,MISCELLANEOUS AND SPECIALTY RETAIL STORES,-49.99
09/09/2022,11928,COMMUNITY SUPPORT GRANTS,5999,AMZ MHSTAR,MISCELLANEOUS AND SPECIALTY RETAIL STORES,-138.98
09/09/2022,10291,SECTION17 PAYMENTS CENTRAL,4112,TRAINLINE.COM,PASSENGER RAILWAYS,73.36
09/09/2022,11197,WEST FAMILY HUB,5814,STARBUCKS,FAST FOOD RESTAURANTS,12.40
09/09/2022,10411,IPS HWC QUINTON LODGE,5811,BRAKES (STORED CARDS),CATERERS,205.44
09/09/2022,11879,IPS LD MAURICE EDELMAN HOUSE,5422,MIDLAND FOODS LTD,"FREEZER, LOCKER MEAT PROVISIONERS",73.36
09/09/2022,10225,HOUSING - B&B ACCOMMODATION,3811,PREMIER INN44012030,PREMIER INN,113.00
09/09/2022,10704,LEGAL SERVICES,8999,FIND A WILL,PROFESSIONAL SERVICES-NOT ELSEWHERE CLASSIFIED,1.50
09/09/2022,11354,IPS DAY OPPS GILBERT RICHARDS CENTRE,5300,GOMPELS HEALTHCARE,WHOLESALE CLUBS,82.80
09/09/2022,11248,IPS ERIC WILLIAMS HOUSE,5300,GOMPELS HEALTHCARE,WHOLESALE CLUBS,201.60
09/09/2022,11507,CARE LEAVERS,9399,HM PASSPORT OFFICE,GOVERNMENT SERVICES-NOT ELSEWHERE CLASSIFIED,75.50
09/09/2022,10296,MH OTHER SERVICES,5713,MICHAEL JOHN FLOOR,FLOOR COVERING STORES,815.00
09/09/2022,11932,LAC THROUGHCARE TEAM,5411,SAINSBURYS S/MKTS,"GROCERY STORES, SUPERMARKETS",6.94
09/09/2022,11932,LAC THROUGHCARE TEAM,5812,MCDONALDS   539,"EATING PLACES, RESTAURANTS",4.29
09/09/2022,11307,IPS MH THE POD,5411,SUMUP   COGS OF COVEN,"GROCERY STORES, SUPERMARKETS",2.58
09/09/2022,10225,HOUSING - B&B ACCOMMODATION,5399,WILKO RETAIL LIMITED,MISCELLANEOUS GENERAL MERCHANDISE,22.00
09/09/2022,11307,IPS MH THE POD,5411,SAINSBURYS S MKTS,"GROCERY STORES, SUPERMARKETS",1.99
09/09/2022,11307,IPS MH THE POD,5411,SAINSBURYS S MKTS,"GROCERY STORES, SUPERMARKETS",2.45
09/09/2022,11307,IPS MH THE POD,5411,SUMUP   PETER MAC,"GROCERY STORES, SUPERMARKETS",8.00
09/09/2022,11932,LAC THROUGHCARE TEAM,5942,WATERSTONES,BOOK STORES,5.00
09/09/2022,11057,SFPC-FAMILY GROUP CONFERENCING,5499,NISA LOCAL,"MISC FOOD STORE-CONVENIENCE,MRKT,SPLTY,VENDNG MACS",3.49
09/09/2022,11057,SFPC-FAMILY GROUP CONFERENCING,5499,NISA LOCAL,"MISC FOOD STORE-CONVENIENCE,MRKT,SPLTY,VENDNG MACS",7.05
09/09/2022,10541,COVENTRY EXTENDED LEARNING CENTRE,5411,ASDA GROCERIES ONLINE,"GROCERY STORES, SUPERMARKETS",65.52
09/09/2022,10541,COVENTRY EXTENDED LEARNING CENTRE,5411,ASDA GROCERIES ONLINE,"GROCERY STORES, SUPERMARKETS",-3.00
09/09/2022,11136,EAST FAMILY HUB,5999,AMZNMKTPLACE,MISCELLANEOUS AND SPECIALTY RETAIL STORES,12.61
09/09/2022,11932,LAC THROUGHCARE TEAM,5814,MCDONALDS,FAST FOOD RESTAURANTS,4.97
09/09/2022,10945,AD - STREETSCENE & GREENSPACE,5947,CARD FACTORY,"GIFT, CARD, NOVELTY AND SOUVENIR SHOPS",20.23
09/09/2022,11103,RESIDENTIAL - BROAD LANE,4112,COVENTRY T/O,PASSENGER RAILWAYS,65.80
09/09/2022,11103,RESIDENTIAL - BROAD LANE,7523,COVENTRY CITY COUNCIL,AUTOMOBILE PARKING LOTS AND GARAGES,2.00
09/09/2022,11136,EAST FAMILY HUB,5999,AMZNMKTPLACE,MISCELLANEOUS AND SPECIALTY RETAIL STORES,12.61
09/09/2022,11136,EAST FAMILY HUB,5999,AMZNMKTPLACE,MISCELLANEOUS AND SPECIALTY RETAIL STORES,3.89
09/09/2022,11136,EAST FAMILY HUB,5999,AMZNMKTPLACE,MISCELLANEOUS AND SPECIALTY RETAIL STORES,12.61
09/09/2022,10342,EDUCATION PSYCHOLOGISTS,7999,WWW.COVENTRY.GOV.UK,RECREATION SERVICES (NOT ELSEWHERE CLASSIFIED),75.00
09/09/2022,10053,OPR0276 LONDON ROAD 259 WHITLEY DEPOT,5999,FIRSTAID4LESS.CO.UK,MISCELLANEOUS AND SPECIALTY RETAIL STORES,648.00
09/09/2022,10053,OPR0276 LONDON ROAD 259 WHITLEY DEPOT,5999,AMZNBUSINESS 5C6GX4AK5,MISCELLANEOUS AND SPECIALTY RETAIL STORES,21.74
09/09/2022,11932,LAC THROUGHCARE TEAM,5814,MCDONALDS,FAST FOOD RESTAURANTS,9.10
09/09/2022,11027,CCTV & COMMUNITY SAFETY,7392,GET LICENSED,"CONSULTING, MANAGEMENT, AND PUBLIC RELATIONS SVCS",209.99
09/09/2022,11932,LAC THROUGHCARE TEAM,5812,COFFEE NO 1 COVENTRY,"EATING PLACES, RESTAURANTS",11.35
09/09/2022,11136,EAST FAMILY HUB,5999,AMZNMKTPLACE,MISCELLANEOUS AND SPECIALTY RETAIL STORES,20.76
09/09/2022,11136,EAST FAMILY HUB,5999,AMZNMKTPLACE,MISCELLANEOUS AND SPECIALTY RETAIL STORES,17.94
09/09/2022,10211,MIGRATION PROJECT B,5411,MARKS&SPENCER PLC,"GROCERY STORES, SUPERMARKETS",42.15
09/09/2022,10581,ERDF - COVENTRY & WARWICKSHIRE LOW C,3692,DOUBLETREE BY HILTON -,DOUBLETREE,"1,470.00"
09/09/2022,11746,RESIDENTIAL - GRAYSWOOD,5411,TESCO STORES 5168,"GROCERY STORES, SUPERMARKETS",231.73
09/09/2022,11248,IPS ERIC WILLIAMS HOUSE,5300,GOMPELS HEALTHCARE,WHOLESALE CLUBS,65.28
09/09/2022,11307,IPS MH THE POD,5411,SAINSBURYS S MKTS,"GROCERY STORES, SUPERMARKETS",4.20
09/09/2022,11307,IPS MH THE POD,5499,REALFOODSOURCE,"MISC FOOD STORE-CONVENIENCE,MRKT,SPLTY,VENDNG MACS",63.43
09/09/2022,10360,JOB SHOP,8999,SQ  PUBLIC POLICY EXCH,PROFESSIONAL SERVICES-NOT ELSEWHERE CLASSIFIED,118.80
09/09/2022,11932,LAC THROUGHCARE TEAM,7523,COVENTRY CITY COUNCIL,AUTOMOBILE PARKING LOTS AND GARAGES,1.00
09/09/2022,11955,IPS HWC COMMUNITY RESOURCES TEAM,5999,AMZ XINRUIEU,MISCELLANEOUS AND SPECIALTY RETAIL STORES,-14.29
09/09/2022,11862,GOCV CARD,7372,COOKIE CONTROL PRO,"COMP PROGRAMING,DATA PRCSNG,INTGRTD SYS DSGN SRVS",46.80
09/09/2022,11922,ICT USER SUPPORT,5732,AMZ PRINTERLAND UK,ELECTRONIC SALES,34.06
09/09/2022,10103,SECTION17 PAYMENTS EAST,5722,MANOMANO,HOUSEHOLD APPLIANCE STORES,-17.09
09/09/2022,10541,COVENTRY EXTENDED LEARNING CENTRE,5999,AMZNBUSINESS HG2UL44T5,MISCELLANEOUS AND SPECIALTY RETAIL STORES,32.17
09/09/2022,11197,WEST FAMILY HUB,5411,WM MORRISONS STORE,"GROCERY STORES, SUPERMARKETS",11.71
09/09/2022,11001,BUSINESS INVESTMENT � INWARD INVESTME,5812,REALLY AWESOME COFFEE,"EATING PLACES, RESTAURANTS",7.00
09/09/2022,10882,LEEDS FAMILY VALUED PROGRAMME,5813,DHILLONS BREWERY,"BAR,LOUNGE,DISCO,NIGHTCLUB,TAVERN-ALCOHOLIC DRINKS",180.00
09/09/2022,11764,HOSPITAL EDUCATION & OUTREACH SERVICE,5411,CO OP FOOD,"GROCERY STORES, SUPERMARKETS",3.20
09/09/2022,11300,PEST CONTROL & ANIMAL WELFARE,5200,B & Q 1231,HOME SUPPLY WAREHOUSE STORES,36.00
09/09/2022,11354,IPS DAY OPPS GILBERT RICHARDS CENTRE,5411,ASDA GROCERIES ONLINE,"GROCERY STORES, SUPERMARKETS",57.30
09/09/2022,10145,IPS LD BRANDON WOOD FARM,5655,TOWER FARM SADDLERS,"SPORTS APPAREL, RIDING APPAREL STORES",73.78
09/09/2022,11539,CENTRALISED PROMOTIONS BUDGET,5971,ALAMY.COM LIMITED,ART DEALERS AND GALLERIES,35.99
09/09/2022,10448,RESIDENTIAL - GRAVEL HILL,7523,COMMUNITY HEALTH PARTN,AUTOMOBILE PARKING LOTS AND GARAGES,1.50
09/09/2022,10448,RESIDENTIAL - GRAVEL HILL,8062,UHCW NHS TRUST,HOSPITALS,85.00
09/09/2022,11255,ADULT ED ADMIN & MANAGEMENT,5942,SP THEDYSLEXIASHOP,BOOK STORES,12.96
09/09/2022,10448,RESIDENTIAL - GRAVEL HILL,8220,PARENTPAY E-COM R,"COLLEGES, UNIV, PRO SCHOOLS, JUNIOR COLLEGES",40.00
09/09/2022,10469,RESIDENTIAL - JOBS LANE,5411,ASDA GROCERIES ONLINE,"GROCERY STORES, SUPERMARKETS",6.00
09/09/2022,11170,BEHAVIOUR SUPPORT - PRIMARY CENTRES,5999,AMZNMKTPLACE AMAZON.CO,MISCELLANEOUS AND SPECIALTY RETAIL STORES,14.95
09/09/2022,11859,BUILDING CONTROL,9399,LAND REGISTRY ECOM CCC,GOVERNMENT SERVICES-NOT ELSEWHERE CLASSIFIED,3.00
09/09/2022,11859,BUILDING CONTROL,9399,LAND REGISTRY ECOM CCC,GOVERNMENT SERVICES-NOT ELSEWHERE CLASSIFIED,3.00
09/09/2022,11928,COMMUNITY SUPPORT GRANTS,5999,AMZNMKTPLACE,MISCELLANEOUS AND SPECIALTY RETAIL STORES,42.90
09/09/2022,10360,JOB SHOP,9402,POST OFFICE COUNTER,POSTAL SERVICES-GOVERNMENT ONLY,3.45
09/09/2022,10360,JOB SHOP,9399,DISCLOSURE & BARRING,GOVERNMENT SERVICES-NOT ELSEWHERE CLASSIFIED,13.00
09/09/2022,11928,COMMUNITY SUPPORT GRANTS,5999,AMZNMKTPLACE,MISCELLANEOUS AND SPECIALTY RETAIL STORES,11.95
09/09/2022,11928,COMMUNITY SUPPORT GRANTS,5999,AMZNMKTPLACE,MISCELLANEOUS AND SPECIALTY RETAIL STORES,14.75
09/09/2022,11928,COMMUNITY SUPPORT GRANTS,5999,AMZNMKTPLACE,MISCELLANEOUS AND SPECIALTY RETAIL STORES,6.49
09/09/2022,10507,PARK RANGERS,7394,WWW.HSS.COM,"EQUIPMENT RENTAL&LEASING SVS, FURNTURE/TOOL RENTAL",138.80
09/09/2022,11928,COMMUNITY SUPPORT GRANTS,5999,AMZNMKTPLACE,MISCELLANEOUS AND SPECIALTY RETAIL STORES,12.98
09/09/2022,11928,COMMUNITY SUPPORT GRANTS,5999,AMZNMKTPLACE,MISCELLANEOUS AND SPECIALTY RETAIL STORES,9.98
09/09/2022,11928,COMMUNITY SUPPORT GRANTS,5999,AMZNMKTPLACE,MISCELLANEOUS AND SPECIALTY RETAIL STORES,189.99
09/09/2022,10507,PARK RANGERS,7394,WWW.HSS.COM,"EQUIPMENT RENTAL&LEASING SVS, FURNTURE/TOOL RENTAL",190.91
09/09/2022,11136,EAST FAMILY HUB,5814,MCDONALDS,FAST FOOD RESTAURANTS,8.27
09/09/2022,11928,COMMUNITY SUPPORT GRANTS,5999,AMZNMKTPLACE,MISCELLANEOUS AND SPECIALTY RETAIL STORES,138.98
09/09/2022,11928,COMMUNITY SUPPORT GRANTS,5999,AMZNMKTPLACE,MISCELLANEOUS AND SPECIALTY RETAIL STORES,13.94
09/09/2022,11928,COMMUNITY SUPPORT GRANTS,5999,AMZNMKTPLACE,MISCELLANEOUS AND SPECIALTY RETAIL STORES,14.75
09/09/2022,11928,COMMUNITY SUPPORT GRANTS,5999,AMZNMKTPLACE,MISCELLANEOUS AND SPECIALTY RETAIL STORES,10.99
09/09/2022,11928,COMMUNITY SUPPORT GRANTS,5999,AMZNMKTPLACE,MISCELLANEOUS AND SPECIALTY RETAIL STORES,6.98
09/09/2022,11928,COMMUNITY SUPPORT GRANTS,5999,AMZNMKTPLACE,MISCELLANEOUS AND SPECIALTY RETAIL STORES,10.99
09/09/2022,11928,COMMUNITY SUPPORT GRANTS,5999,AMZNMKTPLACE,MISCELLANEOUS AND SPECIALTY RETAIL STORES,6.98
09/09/2022,11248,IPS ERIC WILLIAMS HOUSE,5422,MIDLAND FOODS LTD,"FREEZER, LOCKER MEAT PROVISIONERS",74.70
09/09/2022,10676,HOUSING AND HOMELESSNESS,5411,WM MORRISONS STORE,"GROCERY STORES, SUPERMARKETS",12.55
09/09/2022,11135,YOUTH OFFENDING SERVICE,4112,TRAINLINE.COM,PASSENGER RAILWAYS,24.96
09/09/2022,11248,IPS ERIC WILLIAMS HOUSE,5422,MIDLAND FOODS LTD,"FREEZER, LOCKER MEAT PROVISIONERS",109.19
09/09/2022,11507,CARE LEAVERS,5399,SMYTHS TOYS,MISCELLANEOUS GENERAL MERCHANDISE,279.99
09/09/2022,11507,CARE LEAVERS,9399,BCC CLEAN AIR ZONE,GOVERNMENT SERVICES-NOT ELSEWHERE CLASSIFIED,8.00
09/09/2022,11928,COMMUNITY SUPPORT GRANTS,5999,AMZNMKTPLACE,MISCELLANEOUS AND SPECIALTY RETAIL STORES,133.99
09/09/2022,11928,COMMUNITY SUPPORT GRANTS,5999,AMZNMKTPLACE,MISCELLANEOUS AND SPECIALTY RETAIL STORES,133.99
09/09/2022,11928,COMMUNITY SUPPORT GRANTS,5999,AMZNMKTPLACE,MISCELLANEOUS AND SPECIALTY RETAIL STORES,10.94
09/09/2022,11928,COMMUNITY SUPPORT GRANTS,5999,AMZNMKTPLACE,MISCELLANEOUS AND SPECIALTY RETAIL STORES,10.94
09/09/2022,11928,COMMUNITY SUPPORT GRANTS,5999,AMZNMKTPLACE,MISCELLANEOUS AND SPECIALTY RETAIL STORES,42.90
09/09/2022,11928,COMMUNITY SUPPORT GRANTS,5999,AMZNMKTPLACE,MISCELLANEOUS AND SPECIALTY RETAIL STORES,42.90
09/09/2022,10397,"AD - PLANNING, TRANSPORT & HIGHWAYS",7399,WWW.LABEVENTS.ORG,BUSINESS SERVICES-NOT ELSEWHERE CLASSIFIED,570.00
09/09/2022,11687,RESIDENTIAL - BROAD PARK HOUSE,5999,AMZNMKTPLACE,MISCELLANEOUS AND SPECIALTY RETAIL STORES,29.00
09/09/2022,11932,LAC THROUGHCARE TEAM,5814,PEPES COVENTRY,FAST FOOD RESTAURANTS,15.68
09/09/2022,11307,IPS MH THE POD,5411,PPOINT_ DUBAI BARGAINS,"GROCERY STORES, SUPERMARKETS",3.13
09/09/2022,11928,COMMUNITY SUPPORT GRANTS,5999,AMZNMKTPLACE,MISCELLANEOUS AND SPECIALTY RETAIL STORES,46.99
09/09/2022,11928,COMMUNITY SUPPORT GRANTS,5999,AMZNMKTPLACE,MISCELLANEOUS AND SPECIALTY RETAIL STORES,42.90
09/09/2022,11928,COMMUNITY SUPPORT GRANTS,5999,AMZNMKTPLACE,MISCELLANEOUS AND SPECIALTY RETAIL STORES,6.44
09/09/2022,11928,COMMUNITY SUPPORT GRANTS,5999,AMZNMKTPLACE,MISCELLANEOUS AND SPECIALTY RETAIL STORES,6.44
09/09/2022,11928,COMMUNITY SUPPORT GRANTS,5999,AMZNMKTPLACE,MISCELLANEOUS AND SPECIALTY RETAIL STORES,9.71
09/09/2022,11928,COMMUNITY SUPPORT GRANTS,5999,AMZNMKTPLACE,MISCELLANEOUS AND SPECIALTY RETAIL STORES,9.71
09/09/2022,11928,COMMUNITY SUPPORT GRANTS,5999,AMZNMKTPLACE,MISCELLANEOUS AND SPECIALTY RETAIL STORES,12.98
08/09/2022,11928,COMMUNITY SUPPORT GRANTS,5999,AMZNMKTPLACE AMAZON.CO,MISCELLANEOUS AND SPECIALTY RETAIL STORES,42.90
08/09/2022,11928,COMMUNITY SUPPORT GRANTS,5999,AMZNMKTPLACE AMAZON.CO,MISCELLANEOUS AND SPECIALTY RETAIL STORES,17.95
08/09/2022,11928,COMMUNITY SUPPORT GRANTS,5999,AMZNMKTPLACE AMAZON.CO,MISCELLANEOUS AND SPECIALTY RETAIL STORES,44.44
08/09/2022,11928,COMMUNITY SUPPORT GRANTS,5999,AMZNMKTPLACE AMAZON.CO,MISCELLANEOUS AND SPECIALTY RETAIL STORES,44.44
08/09/2022,11928,COMMUNITY SUPPORT GRANTS,5999,AMZNMKTPLACE,MISCELLANEOUS AND SPECIALTY RETAIL STORES,74.99
08/09/2022,11928,COMMUNITY SUPPORT GRANTS,5999,AMZNMKTPLACE,MISCELLANEOUS AND SPECIALTY RETAIL STORES,14.75
08/09/2022,11928,COMMUNITY SUPPORT GRANTS,5999,AMZNMKTPLACE,MISCELLANEOUS AND SPECIALTY RETAIL STORES,41.39
08/09/2022,11928,COMMUNITY SUPPORT GRANTS,5999,AMZNMKTPLACE,MISCELLANEOUS AND SPECIALTY RETAIL STORES,133.32
08/09/2022,11928,COMMUNITY SUPPORT GRANTS,5999,AMZNMKTPLACE,MISCELLANEOUS AND SPECIALTY RETAIL STORES,44.44
08/09/2022,11928,COMMUNITY SUPPORT GRANTS,5999,AMZNMKTPLACE,MISCELLANEOUS AND SPECIALTY RETAIL STORES,22.97
08/09/2022,11755,SEN EARLY YEARS,5192,HACHETTE UK DISTRIBUTI,"BOOKS,PERIODICALS AND NEWSPAPERS",71.50
08/09/2022,11771,STREETPRIDE SOUTH,5999,AMZNMKTPLACE,MISCELLANEOUS AND SPECIALTY RETAIL STORES,95.81
08/09/2022,10291,SECTION17 PAYMENTS CENTRAL,3533,IBIS COVENTRY SOUTH,HOTEL IBIS,577.70
08/09/2022,11307,IPS MH THE POD,5411,ALDI 15 772,"GROCERY STORES, SUPERMARKETS",13.98
08/09/2022,11197,WEST FAMILY HUB,5814,43026655 COSTA COFFEE,FAST FOOD RESTAURANTS,12.75
08/09/2022,11995,IPS HWC HARRY CAPLAN,5811,BRAKES (STORED CARDS),CATERERS,103.27
08/09/2022,11932,LAC THROUGHCARE TEAM,5732,CURRYS ONLINE,ELECTRONIC SALES,184.00
08/09/2022,11995,IPS HWC HARRY CAPLAN,5811,BRAKES (STORED CARDS),CATERERS,-9.44
08/09/2022,11922,ICT USER SUPPORT,5999,AMZNMKTPLACE,MISCELLANEOUS AND SPECIALTY RETAIL STORES,4.88
08/09/2022,11680,PROCUREMENT SERVICES,4112,COVENTRY T/O,PASSENGER RAILWAYS,8.50
08/09/2022,11282,POST AND FASTPRINT,5999,AMZNBUSINESS RS2O82BT5,MISCELLANEOUS AND SPECIALTY RETAIL STORES,6.59
08/09/2022,11282,POST AND FASTPRINT,5999,AMZNBUSINESS 870AC8NB5,MISCELLANEOUS AND SPECIALTY RETAIL STORES,8.94
08/09/2022,10874,IDR2591 ROUNDHOUSE RD 78 ALDERMOOR ,5399,WILKO RETAIL LIMITED,MISCELLANEOUS GENERAL MERCHANDISE,5.50
08/09/2022,10360,JOB SHOP,9402,POST OFFICE COUNTER,POSTAL SERVICES-GOVERNMENT ONLY,22.80
08/09/2022,11879,IPS LD MAURICE EDELMAN HOUSE,5411,TESCO STORES 5168,"GROCERY STORES, SUPERMARKETS",80.50
08/09/2022,11403,IPS HWC COTTAGE FARM,5999,AMZ BRIHOME,MISCELLANEOUS AND SPECIALTY RETAIL STORES,-103.99
08/09/2022,11021,LAC & CARE LEAVERS,7523,WALSGRAVE CAR PARK,AUTOMOBILE PARKING LOTS AND GARAGES,4.40
08/09/2022,10317,MH COMMUNITY MENTAL HEALTH TEAM,9222,DERBYSHIRE010OFFIC,FINES,81.00
08/09/2022,11103,RESIDENTIAL - BROAD LANE,5999,AMZNBUSINESS QV7WE7FQ5,MISCELLANEOUS AND SPECIALTY RETAIL STORES,40.99
08/09/2022,11602,IPS LD GOSFORD COMMUNITY HUB,5411,CO-OPERATIVE FOOD,"GROCERY STORES, SUPERMARKETS",3.60
08/09/2022,11021,LAC & CARE LEAVERS,5499,WALSGRAVE MALL CAFE,"MISC FOOD STORE-CONVENIENCE,MRKT,SPLTY,VENDNG MACS",3.30
08/09/2022,11021,LAC & CARE LEAVERS,5411,ADSA STORES LTD 4231,"GROCERY STORES, SUPERMARKETS",72.82
08/09/2022,11870,IPS LD WILFRED SPENCER CENTRE,5999,AMZNMKTPLACE,MISCELLANEOUS AND SPECIALTY RETAIL STORES,10.99
08/09/2022,11870,IPS LD WILFRED SPENCER CENTRE,5499,NISA EXTRA,"MISC FOOD STORE-CONVENIENCE,MRKT,SPLTY,VENDNG MACS",30.49
08/09/2022,11687,RESIDENTIAL - BROAD PARK HOUSE,5999,AMZNMKTPLACE,MISCELLANEOUS AND SPECIALTY RETAIL STORES,4.99
08/09/2022,11687,RESIDENTIAL - BROAD PARK HOUSE,7278,COSTCO WHOLESALE #122,"BUYING/SHOPPING CLUBS, SERVICES",3.54
08/09/2022,11507,CARE LEAVERS,4112,TRAINLINE.COM,PASSENGER RAILWAYS,26.79
08/09/2022,11687,RESIDENTIAL - BROAD PARK HOUSE,5999,AMZNMKTPLACE,MISCELLANEOUS AND SPECIALTY RETAIL STORES,17.98
08/09/2022,11024,DOMESTIC REFUSE,5085,ARCO LTD,INDUSTRIAL SUPPLIES NOT ELSEWHERE CLASSIFIED,79.37
08/09/2022,11248,IPS ERIC WILLIAMS HOUSE,5411,CO-OP LATE SHOP,"GROCERY STORES, SUPERMARKETS",7.20
08/09/2022,11248,IPS ERIC WILLIAMS HOUSE,5811,BRAKES (STORED CARDS),CATERERS,257.20
08/09/2022,11248,IPS ERIC WILLIAMS HOUSE,5811,BRAKES (STORED CARDS),CATERERS,-25.77
08/09/2022,10900,LOCAL WELFARE PROVISION COVID-19,7399,CS  TESCO STORES GC,BUSINESS SERVICES-NOT ELSEWHERE CLASSIFIED,"1,470.00"
08/09/2022,10900,LOCAL WELFARE PROVISION COVID-19,7399,CS  TESCO STORES GC,BUSINESS SERVICES-NOT ELSEWHERE CLASSIFIED,"1,420.00"
08/09/2022,10900,LOCAL WELFARE PROVISION COVID-19,7399,CS  TESCO STORES GC,BUSINESS SERVICES-NOT ELSEWHERE CLASSIFIED,275.00
08/09/2022,10900,LOCAL WELFARE PROVISION COVID-19,7399,CS  TESCO STORES GC,BUSINESS SERVICES-NOT ELSEWHERE CLASSIFIED,"1,495.00"
08/09/2022,11307,IPS MH THE POD,5411,AL-HALAL SUPERMARKET,"GROCERY STORES, SUPERMARKETS",3.56
08/09/2022,10900,LOCAL WELFARE PROVISION COVID-19,7399,CS  TESCO STORES GC,BUSINESS SERVICES-NOT ELSEWHERE CLASSIFIED,"1,445.00"
08/09/2022,11307,IPS MH THE POD,5411,SAINSBURYS S MKTS,"GROCERY STORES, SUPERMARKETS",3.80
08/09/2022,11307,IPS MH THE POD,5411,AL-HALAL SUPERMARKET,"GROCERY STORES, SUPERMARKETS",3.56
08/09/2022,10211,MIGRATION PROJECT B,5411,TESCO STORES 5168,"GROCERY STORES, SUPERMARKETS",25.00
08/09/2022,10211,MIGRATION PROJECT B,5411,TESCO STORES 5168,"GROCERY STORES, SUPERMARKETS",80.00
08/09/2022,11107,CENTRAL FAMILY HUB,8299,SQ  SMM MEDIA LIMITED,SCHOOLS & EDUCATIONAL SVC-NOT ELSEWHERE CLASSIFIED,6.99
08/09/2022,11398,REFUGEE TRANSITIONS OUTCOME FUND (RTOF),5812,COFFEE NO 1 COVENTRY,"EATING PLACES, RESTAURANTS",9.55
08/09/2022,11398,REFUGEE TRANSITIONS OUTCOME FUND (RTOF),5812,COFFEE NO 1 COVENTRY,"EATING PLACES, RESTAURANTS",3.05
08/09/2022,10378,CHILDREN�S SERVICES MANAGEMENT TEAM,9399,C2E814200012Q UKVI,GOVERNMENT SERVICES-NOT ELSEWHERE CLASSIFIED,"-2,000.00"
08/09/2022,10416,LAC PERMANENCY,5310,ARGOS LTD,DISCOUNT STORES,91.95
08/09/2022,10627,GOVERNANCE SERVICES,5411,WM MORRISONS STORE,"GROCERY STORES, SUPERMARKETS",60.09
08/09/2022,10627,GOVERNANCE SERVICES,5411,WM MORRISONS STORE,"GROCERY STORES, SUPERMARKETS",105.00
08/09/2022,11507,CARE LEAVERS,5499,MADDYS SANDWICH SHOP,"MISC FOOD STORE-CONVENIENCE,MRKT,SPLTY,VENDNG MACS",6.60
08/09/2022,11021,LAC & CARE LEAVERS,5814,MCDONALDS,FAST FOOD RESTAURANTS,25.02
08/09/2022,11021,LAC & CARE LEAVERS,7278,COSTCO WHOLESALE #122,"BUYING/SHOPPING CLUBS, SERVICES",87.18
08/09/2022,11932,LAC THROUGHCARE TEAM,7011,HILTON GARDEN INN,"LODGING-HOTELS,MOTELS,RESORTS-NOT CLASSIFIED",147.35
08/09/2022,11197,WEST FAMILY HUB,5999,AMZNMKTPLACE,MISCELLANEOUS AND SPECIALTY RETAIL STORES,7.97
08/09/2022,11826,REPAIR & MAINTENANCE,5251,PAYPAL  MKWHC LTD,HARDWARE STORES,90.61
08/09/2022,11826,REPAIR & MAINTENANCE,1711,MIKROFILL.COM,"HEATING, PLUMBING, AIR CONDITIONING CONTRACTORS",270.17
08/09/2022,11136,EAST FAMILY HUB,5251,HOME BARGAINS,HARDWARE STORES,18.60
08/09/2022,11507,CARE LEAVERS,5310,ARGOS LTD,DISCOUNT STORES,102.50
08/09/2022,11103,RESIDENTIAL - BROAD LANE,5411,TESCO STORES 2325,"GROCERY STORES, SUPERMARKETS",91.90
08/09/2022,11136,EAST FAMILY HUB,5812,WILDAS,"EATING PLACES, RESTAURANTS",56.00
08/09/2022,11136,EAST FAMILY HUB,5411,ASDA STORES 4602,"GROCERY STORES, SUPERMARKETS",23.56
08/09/2022,11932,LAC THROUGHCARE TEAM,4131,NX BUS CONTACTLESS,BUS LINES,2.20
08/09/2022,10247,ALL AGE DISABILITY TEAM 15-26+,9402,POST OFFICE COUNTER,POSTAL SERVICES-GOVERNMENT ONLY,8.95
08/09/2022,10480,"DIRECTOR � BUSINESS, INVESTMENT & CULTU",5999,SP V1CE LTD,MISCELLANEOUS AND SPECIALTY RETAIL STORES,43.20
08/09/2022,10480,"DIRECTOR � BUSINESS, INVESTMENT & CULTU",5499,M&S SIMPLY FOOD SSP,"MISC FOOD STORE-CONVENIENCE,MRKT,SPLTY,VENDNG MACS",2.90
08/09/2022,10444,SOCIAL WORKER ACADEMY,5310,POUNDLAND LTD 1282,DISCOUNT STORES,6.80
08/09/2022,10383,IPS HWC KNIGHTLOW,5811,BRAKES (STORED CARDS),CATERERS,180.50
08/09/2022,10444,SOCIAL WORKER ACADEMY,5411,WM MORRISONS STORE,"GROCERY STORES, SUPERMARKETS",34.00
08/09/2022,10444,SOCIAL WORKER ACADEMY,5411,ASDA GEORGE COM LEEDS,"GROCERY STORES, SUPERMARKETS",43.00
08/09/2022,10226,LORD MAYORS OFFICE,5411,TESCO-STORES 6473,"GROCERY STORES, SUPERMARKETS",24.80
08/09/2022,10541,COVENTRY EXTENDED LEARNING CENTRE,5968,TESCO SUBSCRIPTION,DIRECT MARKETING-CONTINUITY/SUBSCRIPTION MERCHANTS,6.99
08/09/2022,10084,SECTION17 PAYMENTS WEST,5310,ARGOS LTD,DISCOUNT STORES,84.99
08/09/2022,11955,IPS HWC COMMUNITY RESOURCES TEAM,5999,AMZNMKTPLACE AMAZON.CO,MISCELLANEOUS AND SPECIALTY RETAIL STORES,56.99
08/09/2022,11001,BUSINESS INVESTMENT � INWARD INVESTME,5812,REALLY AWESOME COFFEE,"EATING PLACES, RESTAURANTS",7.50
08/09/2022,11687,RESIDENTIAL - BROAD PARK HOUSE,5411,TESCO STORES 2328,"GROCERY STORES, SUPERMARKETS",-3.50
08/09/2022,10541,COVENTRY EXTENDED LEARNING CENTRE,5733,MUSIC STORE PROFESSION,"MUSIC STORES-INSTRUMENTS, PIANOS, SHEET MUSIC",507.00
08/09/2022,10368,PARKS � EVENTS & ACTIVITIES,5411,TESCO STORES 5168,"GROCERY STORES, SUPERMARKETS",5.50
08/09/2022,11764,HOSPITAL EDUCATION & OUTREACH SERVICE,5999,AMZNMKTPLACE,MISCELLANEOUS AND SPECIALTY RETAIL STORES,84.90
08/09/2022,11764,HOSPITAL EDUCATION & OUTREACH SERVICE,5999,AMZNMKTPLACE,MISCELLANEOUS AND SPECIALTY RETAIL STORES,29.99
08/09/2022,11515,CEMETERIES,5999,AMZNMKTPLACE,MISCELLANEOUS AND SPECIALTY RETAIL STORES,35.44
08/09/2022,11466,LIFESTYLES/OBESITY/PHYSICAL ACTIVITY,5310,POUNDLAND LTD 1282,DISCOUNT STORES,14.55
08/09/2022,10448,RESIDENTIAL - GRAVEL HILL,5631,BAGS R US,WOMEN'S ACCESSORY AND SPECIALTY STORES,15.00
08/09/2022,10448,RESIDENTIAL - GRAVEL HILL,5631,BAGS R US,WOMEN'S ACCESSORY AND SPECIALTY STORES,16.00
08/09/2022,10448,RESIDENTIAL - GRAVEL HILL,7523,COVENTRY CITY COUNCIL,AUTOMOBILE PARKING LOTS AND GARAGES,1.00
08/09/2022,10448,RESIDENTIAL - GRAVEL HILL,5691,MATALAN,MEN'S AND WOMEN'S CLOTHING STORES,-9.50
08/09/2022,10448,RESIDENTIAL - GRAVEL HILL,5411,ADSA STORES LTD 4231,"GROCERY STORES, SUPERMARKETS",-10.00
08/09/2022,10226,LORD MAYORS OFFICE,7523,WALSGRAVE CAR PARK,AUTOMOBILE PARKING LOTS AND GARAGES,3.20
08/09/2022,10342,EDUCATION PSYCHOLOGISTS,5999,AMZNBUSINESS H762K5135,MISCELLANEOUS AND SPECIALTY RETAIL STORES,43.32
08/09/2022,10300,INTERNAL FOSTERING TEAM,5999,AMZNMKTPLACE AMAZON.CO,MISCELLANEOUS AND SPECIALTY RETAIL STORES,37.90
08/09/2022,11507,CARE LEAVERS,5945,WWW.GAME.CO.UK,"GAME, TOY, AND HOBBY SHOPS",10.00
08/09/2022,11928,COMMUNITY SUPPORT GRANTS,5999,AMZNMKTPLACE,MISCELLANEOUS AND SPECIALTY RETAIL STORES,11.99
08/09/2022,11928,COMMUNITY SUPPORT GRANTS,5999,AMZNMKTPLACE,MISCELLANEOUS AND SPECIALTY RETAIL STORES,24.98
08/09/2022,11928,COMMUNITY SUPPORT GRANTS,5999,AMZNMKTPLACE,MISCELLANEOUS AND SPECIALTY RETAIL STORES,17.95
08/09/2022,11928,COMMUNITY SUPPORT GRANTS,5999,AMZNMKTPLACE AMAZON.CO,MISCELLANEOUS AND SPECIALTY RETAIL STORES,15.92
08/09/2022,11928,COMMUNITY SUPPORT GRANTS,5999,AMZNMKTPLACE AMAZON.CO,MISCELLANEOUS AND SPECIALTY RETAIL STORES,6.44
08/09/2022,11928,COMMUNITY SUPPORT GRANTS,5999,AMZNMKTPLACE AMAZON.CO,MISCELLANEOUS AND SPECIALTY RETAIL STORES,46.99
08/09/2022,11928,COMMUNITY SUPPORT GRANTS,5999,AMZNMKTPLACE AMAZON.CO,MISCELLANEOUS AND SPECIALTY RETAIL STORES,9.80
08/09/2022,11928,COMMUNITY SUPPORT GRANTS,5999,AMZNMKTPLACE AMAZON.CO,MISCELLANEOUS AND SPECIALTY RETAIL STORES,46.99
08/09/2022,11928,COMMUNITY SUPPORT GRANTS,5999,AMZNMKTPLACE AMAZON.CO,MISCELLANEOUS AND SPECIALTY RETAIL STORES,6.44
08/09/2022,11928,COMMUNITY SUPPORT GRANTS,5999,AMZNMKTPLACE AMAZON.CO,MISCELLANEOUS AND SPECIALTY RETAIL STORES,9.80
07/09/2022,10951,IPS HWC SHORT TERM TENANCIES,4900,E.ON NEXT,"UTLTS-ELCTRC, GAS, HEATING OIL, SANITARY, WATER",27.12
07/09/2022,10882,LEEDS FAMILY VALUED PROGRAMME,5947,PARTY BALLOONS OF COVE,"GIFT, CARD, NOVELTY AND SOUVENIR SHOPS",15.00
07/09/2022,11539,CENTRALISED PROMOTIONS BUDGET,7392,WWW.CJAM.CO.UK,"CONSULTING, MANAGEMENT, AND PUBLIC RELATIONS SVCS",300.00
07/09/2022,11456,GENERAL EVENTS,5651,NEXT DIRECTORY,FAMILY CLOTHING STORES,74.00
07/09/2022,10291,SECTION17 PAYMENTS CENTRAL,1520,BUDGET SKIP SERVICES L,GENERAL CONTRACTORS/RESIDENTIAL BUILDINGS,240.00
07/09/2022,10019,CUSTOMER SERVICES CENTRE,5462,LUXURY BAKERY,BAKERIES,38.00
07/09/2022,11197,WEST FAMILY HUB,5999,AMZNMKTPLACE,MISCELLANEOUS AND SPECIALTY RETAIL STORES,7.99
07/09/2022,11197,WEST FAMILY HUB,5999,AMZNMKTPLACE,MISCELLANEOUS AND SPECIALTY RETAIL STORES,13.94
07/09/2022,11197,WEST FAMILY HUB,5999,AMZNMKTPLACE,MISCELLANEOUS AND SPECIALTY RETAIL STORES,7.99
07/09/2022,11197,WEST FAMILY HUB,5411,TESCO STORES 2328,"GROCERY STORES, SUPERMARKETS",116.86
07/09/2022,11197,WEST FAMILY HUB,5411,TESCO STORES 2328,"GROCERY STORES, SUPERMARKETS",-14.35
07/09/2022,11403,IPS HWC COTTAGE FARM,5811,BRAKE BROS LTD,CATERERS,151.27
07/09/2022,11879,IPS LD MAURICE EDELMAN HOUSE,5811,BRAKES (STORED CARDS),CATERERS,294.84
07/09/2022,10448,RESIDENTIAL - GRAVEL HILL,5310,ARGOS CANLEY,DISCOUNT STORES,50.00
07/09/2022,11995,IPS HWC HARRY CAPLAN,5811,BRAKES (STORED CARDS),CATERERS,210.80
07/09/2022,11879,IPS LD MAURICE EDELMAN HOUSE,5199,JOHALDAIRIES.CO.UK,NONDURABLE GOODS (NOT ELSEWHERE CLASSIFIED),133.70
07/09/2022,11932,LAC THROUGHCARE TEAM,8299,SMART LEARNER LTD,SCHOOLS & EDUCATIONAL SVC-NOT ELSEWHERE CLASSIFIED,173.40
07/09/2022,10704,LEGAL SERVICES,9399,WP-WARWICKSHIRE CO,GOVERNMENT SERVICES-NOT ELSEWHERE CLASSIFIED,11.00
07/09/2022,11870,IPS LD WILFRED SPENCER CENTRE,5999,AMZNMKTPLACE,MISCELLANEOUS AND SPECIALTY RETAIL STORES,10.99
07/09/2022,11540,LIBRARIES - STOKE LIBRARY,5310,POUNDLAND LTD,DISCOUNT STORES,1.50
07/09/2022,10040,IPS HWC COPTHORNE,5199,JOHALDAIRIES.CO.UK,NONDURABLE GOODS (NOT ELSEWHERE CLASSIFIED),15.40
07/09/2022,11870,IPS LD WILFRED SPENCER CENTRE,5199,JOHALDAIRIES.CO.UK,NONDURABLE GOODS (NOT ELSEWHERE CLASSIFIED),36.25
07/09/2022,11870,IPS LD WILFRED SPENCER CENTRE,7278,COOLERAID LTD,"BUYING/SHOPPING CLUBS, SERVICES",33.00
07/09/2022,11870,IPS LD WILFRED SPENCER CENTRE,5999,AMZNMKTPLACE,MISCELLANEOUS AND SPECIALTY RETAIL STORES,23.59
07/09/2022,11687,RESIDENTIAL - BROAD PARK HOUSE,5999,AMZNMKTPLACE,MISCELLANEOUS AND SPECIALTY RETAIL STORES,36.98
07/09/2022,11687,RESIDENTIAL - BROAD PARK HOUSE,5399,B&M 526 - ANSTY ROAD,MISCELLANEOUS GENERAL MERCHANDISE,15.99
07/09/2022,11687,RESIDENTIAL - BROAD PARK HOUSE,5251,HOME BARGAINS,HARDWARE STORES,18.47
07/09/2022,11687,RESIDENTIAL - BROAD PARK HOUSE,5999,AMZNMKTPLACE,MISCELLANEOUS AND SPECIALTY RETAIL STORES,37.50
07/09/2022,10900,LOCAL WELFARE PROVISION COVID-19,7399,VOUCHER EXPRESS,BUSINESS SERVICES-NOT ELSEWHERE CLASSIFIED,250.00
07/09/2022,11248,IPS ERIC WILLIAMS HOUSE,5199,JOHALDAIRIES.CO.UK,NONDURABLE GOODS (NOT ELSEWHERE CLASSIFIED),312.02
07/09/2022,11248,IPS ERIC WILLIAMS HOUSE,5811,BRAKES (STORED CARDS),CATERERS,600.42
07/09/2022,10900,LOCAL WELFARE PROVISION COVID-19,7399,VOUCHER EXPRESS,BUSINESS SERVICES-NOT ELSEWHERE CLASSIFIED,250.00
07/09/2022,10900,LOCAL WELFARE PROVISION COVID-19,7399,VOUCHER EXPRESS,BUSINESS SERVICES-NOT ELSEWHERE CLASSIFIED,250.00
07/09/2022,10900,LOCAL WELFARE PROVISION COVID-19,7399,VOUCHER EXPRESS,BUSINESS SERVICES-NOT ELSEWHERE CLASSIFIED,250.00
07/09/2022,11307,IPS MH THE POD,5411,CO OP FOOD,"GROCERY STORES, SUPERMARKETS",7.18
07/09/2022,11307,IPS MH THE POD,4121,PP SSTAXISERVI,LIMOUSINES AND TAXICABS,8.30
07/09/2022,11307,IPS MH THE POD,5411,COSTCUTTER,"GROCERY STORES, SUPERMARKETS",3.38
07/09/2022,10687,WEST SOCIAL WORKER CASEHOLDING TEAM,7278,COOLERAID LTD,"BUYING/SHOPPING CLUBS, SERVICES",33.00
07/09/2022,11507,CARE LEAVERS,8220,WWW.COVENTRY.AC.UK,"COLLEGES, UNIV, PRO SCHOOLS, JUNIOR COLLEGES",300.00
07/09/2022,10040,IPS HWC COPTHORNE,5999,AMZNBUSINESS S086S8BM5,MISCELLANEOUS AND SPECIALTY RETAIL STORES,22.00
07/09/2022,10225,HOUSING - B&B ACCOMMODATION,4722,GAR HOTEL RES,TRAVEL AGENCIES AND TOUR OPERATORS,111.79
07/09/2022,11057,SFPC-FAMILY GROUP CONFERENCING,5411,ASDA STORES LTD 5865,"GROCERY STORES, SUPERMARKETS",4.85
07/09/2022,10416,LAC PERMANENCY,4112,THETRAINLINE.COM,PASSENGER RAILWAYS,8.35
07/09/2022,10416,LAC PERMANENCY,4112,TRAINLINE.COM,PASSENGER RAILWAYS,12.12
07/09/2022,10225,HOUSING - B&B ACCOMMODATION,7011,BRITANNIA,"LODGING-HOTELS,MOTELS,RESORTS-NOT CLASSIFIED",203.00
07/09/2022,11050,DEVELOPMENT MANAGEMENT,7392,RICARDO-AEA LIMITE,"CONSULTING, MANAGEMENT, AND PUBLIC RELATIONS SVCS",78.00
07/09/2022,11803,MEMBERS PICK AND MIX,5999,AMZNMKTPLACE AMAZON.CO,MISCELLANEOUS AND SPECIALTY RETAIL STORES,74.40
07/09/2022,10288,MEMBERS SERVICES,5999,AMZNMKTPLACE,MISCELLANEOUS AND SPECIALTY RETAIL STORES,29.99
07/09/2022,11803,MEMBERS PICK AND MIX,5999,AMZNMKTPLACE,MISCELLANEOUS AND SPECIALTY RETAIL STORES,45.99
07/09/2022,10288,MEMBERS SERVICES,5947,COVENTRY CATHEDRAL,"GIFT, CARD, NOVELTY AND SOUVENIR SHOPS",60.00
07/09/2022,10225,HOUSING - B&B ACCOMMODATION,5399,WILKO RETAIL LIMITED,MISCELLANEOUS GENERAL MERCHANDISE,16.00
07/09/2022,11636,WEST MIDLANDS TEACHING PARTNERSHIP,4112,THETRAINLINE.COM,PASSENGER RAILWAYS,17.41
07/09/2022,11636,WEST MIDLANDS TEACHING PARTNERSHIP,5969,AMAZON.CO.UK 271SC0BZ5,DIRECT MARKETING-OTHER DIRECT MARKETERS/NOT ELSEW.,121.00
07/09/2022,10225,HOUSING - B&B ACCOMMODATION,5999,TIMPSON LTD,MISCELLANEOUS AND SPECIALTY RETAIL STORES,12.00
07/09/2022,10096,SPORTS DEVELOPMENT,8220,CUE TECHNO CARPARK,"COLLEGES, UNIV, PRO SCHOOLS, JUNIOR COLLEGES",4.00
07/09/2022,10672,PUBLIC HEALTH - MIGRATION,3811,PREMIER INN,PREMIER INN,-640.50
07/09/2022,10019,CUSTOMER SERVICES CENTRE,7523,COVENTRY CITY COUNCIL,AUTOMOBILE PARKING LOTS AND GARAGES,8.00
07/09/2022,10019,CUSTOMER SERVICES CENTRE,5411,TESCO STORES 5168,"GROCERY STORES, SUPERMARKETS",154.74
07/09/2022,10480,"DIRECTOR � BUSINESS, INVESTMENT & CULTU",5499,YOYO COFFEE 1,"MISC FOOD STORE-CONVENIENCE,MRKT,SPLTY,VENDNG MACS",6.95
07/09/2022,10444,SOCIAL WORKER ACADEMY,5399,WILKO RETAIL LIMITED,MISCELLANEOUS GENERAL MERCHANDISE,2.50
07/09/2022,11107,CENTRAL FAMILY HUB,5999,AMZNMKTPLACE,MISCELLANEOUS AND SPECIALTY RETAIL STORES,4.94
07/09/2022,11107,CENTRAL FAMILY HUB,5712,JYSK LTD,"EQUIP, FURNITURE, HOME FURNSHNGS STRS (EXCPT APPL)",78.98
07/09/2022,10288,MEMBERS SERVICES,5999,AMZNMKTPLACE,MISCELLANEOUS AND SPECIALTY RETAIL STORES,4.88
07/09/2022,11157,IPS HWC ELSIE JONES,5811,BRAKES (STORED CARDS),CATERERS,369.57
07/09/2022,11513,PROFESSIONAL SUPPORT SERVICE,5399,RYMANBUSINESS.COM,MISCELLANEOUS GENERAL MERCHANDISE,111.95
07/09/2022,11955,IPS HWC COMMUNITY RESOURCES TEAM,5999,AMZNMKTPLACE,MISCELLANEOUS AND SPECIALTY RETAIL STORES,14.29
07/09/2022,11955,IPS HWC COMMUNITY RESOURCES TEAM,5999,AMZNMKTPLACE,MISCELLANEOUS AND SPECIALTY RETAIL STORES,10.40
07/09/2022,10951,IPS HWC SHORT TERM TENANCIES,5047,AGE CO IADVISORS,DENTAL/LAB/MED/OPHTHALMIC HOSP EQUIP & SUPPLIES,63.69
07/09/2022,11136,EAST FAMILY HUB,5651,CAT BALLOU ORIGINALS,FAMILY CLOTHING STORES,113.88
07/09/2022,11932,LAC THROUGHCARE TEAM,5399,MOONPIG,MISCELLANEOUS GENERAL MERCHANDISE,4.54
07/09/2022,11932,LAC THROUGHCARE TEAM,4112,THETRAINLINE.COM,PASSENGER RAILWAYS,46.05
07/09/2022,11704,COVENTRY MUSIC,5735,APPLE.COM/BILL,RECORD SHOPS,2.49
07/09/2022,11103,RESIDENTIAL - BROAD LANE,5999,AMZNBUSINESS 9W7HU7XB5,MISCELLANEOUS AND SPECIALTY RETAIL STORES,3.98
07/09/2022,11507,CARE LEAVERS,5814,MCDONALDS,FAST FOOD RESTAURANTS,7.40
07/09/2022,11879,IPS LD MAURICE EDELMAN HOUSE,5411,TESCO STORES 5168,"GROCERY STORES, SUPERMARKETS",133.59
07/09/2022,11746,RESIDENTIAL - GRAYSWOOD,5999,AMZNMKTPLACE AMAZON.CO,MISCELLANEOUS AND SPECIALTY RETAIL STORES,11.99
07/09/2022,11932,LAC THROUGHCARE TEAM,5411,WM MORRISONS STORE,"GROCERY STORES, SUPERMARKETS",6.00
07/09/2022,11932,LAC THROUGHCARE TEAM,5411,WM MORRISONS STORE,"GROCERY STORES, SUPERMARKETS",17.91
07/09/2022,10676,HOUSING AND HOMELESSNESS,5999,AMZ THE APPLIANCE STOR,MISCELLANEOUS AND SPECIALTY RETAIL STORES,-339.98
07/09/2022,10053,OPR0276 LONDON ROAD 259 WHITLEY DEPOT,7278,COOLERAID LTD,"BUYING/SHOPPING CLUBS, SERVICES",33.00
07/09/2022,10342,EDUCATION PSYCHOLOGISTS,7399,EB  ACCEPTANCE AMP COM,BUSINESS SERVICES-NOT ELSEWHERE CLASSIFIED,50.00
07/09/2022,11021,LAC & CARE LEAVERS,5411,MARKS&SPENCER PLC,"GROCERY STORES, SUPERMARKETS",10.40
07/09/2022,11687,RESIDENTIAL - BROAD PARK HOUSE,5411,TESCO STORES 2328,"GROCERY STORES, SUPERMARKETS",95.27
07/09/2022,11354,IPS DAY OPPS GILBERT RICHARDS CENTRE,5199,JOHALDAIRIES.CO.UK,NONDURABLE GOODS (NOT ELSEWHERE CLASSIFIED),10.80
07/09/2022,11282,POST AND FASTPRINT,7278,COOLERAID LTD,"BUYING/SHOPPING CLUBS, SERVICES",33.00
07/09/2022,10448,RESIDENTIAL - GRAVEL HILL,5411,SAINSBURYS S/MKTS,"GROCERY STORES, SUPERMARKETS",25.50
07/09/2022,10469,RESIDENTIAL - JOBS LANE,7523,COVENTRY CITY COUNCIL,AUTOMOBILE PARKING LOTS AND GARAGES,1.00
07/09/2022,10448,RESIDENTIAL - GRAVEL HILL,5411,FARMFOODS 641,"GROCERY STORES, SUPERMARKETS",144.57
07/09/2022,10145,IPS LD BRANDON WOOD FARM,5199,JOHALDAIRIES.CO.UK,NONDURABLE GOODS (NOT ELSEWHERE CLASSIFIED),8.40
07/09/2022,10145,IPS LD BRANDON WOOD FARM,5999,AMZNMKTPLACE,MISCELLANEOUS AND SPECIALTY RETAIL STORES,6.03
07/09/2022,11456,GENERAL EVENTS,5621,STRADIVARIUS.COM,WOMEN'S READY TO WEAR STORES,55.98
07/09/2022,11687,RESIDENTIAL - BROAD PARK HOUSE,7996,WEST MIDLAND SAFAI PAR,"AMUSEMENT PARKS,CARNIVALS,CIRCUS,FORTUNE TELLERS",3.10
07/09/2022,11687,RESIDENTIAL - BROAD PARK HOUSE,7996,WEST MIDLAND SAFAI PAR,"AMUSEMENT PARKS,CARNIVALS,CIRCUS,FORTUNE TELLERS",9.00
07/09/2022,11687,RESIDENTIAL - BROAD PARK HOUSE,5411,ONE STOP 2901,"GROCERY STORES, SUPERMARKETS",3.00
07/09/2022,10663,BUSINESS SUSTAIN EXTERNAL CONSULTANCY ,3811,PREMIER INN,PREMIER INN,110.99
07/09/2022,10475,CORPORATE PROPERTY MANAGEMENT,7278,COOLERAID LTD,"BUYING/SHOPPING CLUBS, SERVICES",33.00
07/09/2022,10475,CORPORATE PROPERTY MANAGEMENT,7278,COOLERAID LTD,"BUYING/SHOPPING CLUBS, SERVICES",232.06
07/09/2022,10475,CORPORATE PROPERTY MANAGEMENT,7278,COOLERAID LTD,"BUYING/SHOPPING CLUBS, SERVICES",17.78
07/09/2022,10475,CORPORATE PROPERTY MANAGEMENT,7278,COOLERAID LTD,"BUYING/SHOPPING CLUBS, SERVICES",132.00
07/09/2022,10475,CORPORATE PROPERTY MANAGEMENT,7278,COOLERAID LTD,"BUYING/SHOPPING CLUBS, SERVICES",66.00
07/09/2022,11507,CARE LEAVERS,5311,ONE4ALL,DEPARTMENT STORES,20.99
07/09/2022,10475,CORPORATE PROPERTY MANAGEMENT,7278,COOLERAID LTD,"BUYING/SHOPPING CLUBS, SERVICES",33.00
07/09/2022,10475,CORPORATE PROPERTY MANAGEMENT,7278,COOLERAID LTD,"BUYING/SHOPPING CLUBS, SERVICES",33.00
07/09/2022,11984,IPS MAYMORN RESOURCE CENTRE,5411,WM MORRISONS STORE,"GROCERY STORES, SUPERMARKETS",1.55
07/09/2022,11507,CARE LEAVERS,5311,ONE4ALL,DEPARTMENT STORES,10.99
07/09/2022,11507,CARE LEAVERS,5311,ONE4ALL,DEPARTMENT STORES,10.99
07/09/2022,11507,CARE LEAVERS,5311,ONE4ALL,DEPARTMENT STORES,20.99
07/09/2022,11507,CARE LEAVERS,5311,ONE4ALL,DEPARTMENT STORES,10.99
07/09/2022,11086,OUTDOOR EDUCATION CENTRE,5411,CO-OP GROUP 190390,"GROCERY STORES, SUPERMARKETS",29.40
07/09/2022,11928,COMMUNITY SUPPORT GRANTS,5999,AMZNMKTPLACE AMAZON.CO,MISCELLANEOUS AND SPECIALTY RETAIL STORES,10.99
07/09/2022,11928,COMMUNITY SUPPORT GRANTS,5999,AMZNMKTPLACE AMAZON.CO,MISCELLANEOUS AND SPECIALTY RETAIL STORES,6.98
07/09/2022,11928,COMMUNITY SUPPORT GRANTS,5999,AMZNMKTPLACE AMAZON.CO,MISCELLANEOUS AND SPECIALTY RETAIL STORES,6.98
07/09/2022,11928,COMMUNITY SUPPORT GRANTS,5999,AMZNMKTPLACE AMAZON.CO,MISCELLANEOUS AND SPECIALTY RETAIL STORES,79.99
07/09/2022,11928,COMMUNITY SUPPORT GRANTS,5999,AMZNMKTPLACE AMAZON.CO,MISCELLANEOUS AND SPECIALTY RETAIL STORES,14.75
07/09/2022,11928,COMMUNITY SUPPORT GRANTS,5999,AMZNMKTPLACE AMAZON.CO,MISCELLANEOUS AND SPECIALTY RETAIL STORES,18.98
07/09/2022,11928,COMMUNITY SUPPORT GRANTS,5999,AMZNMKTPLACE AMAZON.CO,MISCELLANEOUS AND SPECIALTY RETAIL STORES,10.94
07/09/2022,11928,COMMUNITY SUPPORT GRANTS,5999,AMZNMKTPLACE AMAZON.CO,MISCELLANEOUS AND SPECIALTY RETAIL STORES,10.94
07/09/2022,11928,COMMUNITY SUPPORT GRANTS,5999,AMZNMKTPLACE AMAZON.CO,MISCELLANEOUS AND SPECIALTY RETAIL STORES,138.98
07/09/2022,11928,COMMUNITY SUPPORT GRANTS,5999,AMZNMKTPLACE,MISCELLANEOUS AND SPECIALTY RETAIL STORES,256.16
07/09/2022,11928,COMMUNITY SUPPORT GRANTS,5999,AMZNMKTPLACE,MISCELLANEOUS AND SPECIALTY RETAIL STORES,13.96
07/09/2022,11928,COMMUNITY SUPPORT GRANTS,5999,AMZNMKTPLACE,MISCELLANEOUS AND SPECIALTY RETAIL STORES,79.99
07/09/2022,11928,COMMUNITY SUPPORT GRANTS,5999,AMZNMKTPLACE,MISCELLANEOUS AND SPECIALTY RETAIL STORES,32.82
07/09/2022,11928,COMMUNITY SUPPORT GRANTS,5999,AMZNMKTPLACE,MISCELLANEOUS AND SPECIALTY RETAIL STORES,6.98
07/09/2022,11928,COMMUNITY SUPPORT GRANTS,5999,AMZNMKTPLACE,MISCELLANEOUS AND SPECIALTY RETAIL STORES,10.99
07/09/2022,11928,COMMUNITY SUPPORT GRANTS,5999,AMZNMKTPLACE,MISCELLANEOUS AND SPECIALTY RETAIL STORES,10.94
07/09/2022,11928,COMMUNITY SUPPORT GRANTS,5999,AMZNMKTPLACE,MISCELLANEOUS AND SPECIALTY RETAIL STORES,6.44
07/09/2022,11928,COMMUNITY SUPPORT GRANTS,5999,AMZNMKTPLACE,MISCELLANEOUS AND SPECIALTY RETAIL STORES,26.30
07/09/2022,11928,COMMUNITY SUPPORT GRANTS,5999,AMZNMKTPLACE,MISCELLANEOUS AND SPECIALTY RETAIL STORES,46.99
07/09/2022,11928,COMMUNITY SUPPORT GRANTS,5999,AMZNMKTPLACE,MISCELLANEOUS AND SPECIALTY RETAIL STORES,140.97
07/09/2022,11928,COMMUNITY SUPPORT GRANTS,5999,AMZNMKTPLACE,MISCELLANEOUS AND SPECIALTY RETAIL STORES,9.71
07/09/2022,11197,WEST FAMILY HUB,5199,JOHALDAIRIES.CO.UK,NONDURABLE GOODS (NOT ELSEWHERE CLASSIFIED),8.05
07/09/2022,11755,SEN EARLY YEARS,8299,WWW.GL-EDUCATION.C,SCHOOLS & EDUCATIONAL SVC-NOT ELSEWHERE CLASSIFIED,166.74
06/09/2022,11107,CENTRAL FAMILY HUB,5999,AMZNMKTPLACE,MISCELLANEOUS AND SPECIALTY RETAIL STORES,12.08
06/09/2022,11107,CENTRAL FAMILY HUB,5411,W M MORRISON STORE,"GROCERY STORES, SUPERMARKETS",6.76
06/09/2022,11107,CENTRAL FAMILY HUB,5999,AMZNMKTPLACE,MISCELLANEOUS AND SPECIALTY RETAIL STORES,20.45
06/09/2022,11107,CENTRAL FAMILY HUB,5999,AMZNMKTPLACE,MISCELLANEOUS AND SPECIALTY RETAIL STORES,34.95
06/09/2022,11107,CENTRAL FAMILY HUB,5999,AMZNMKTPLACE,MISCELLANEOUS AND SPECIALTY RETAIL STORES,14.99
06/09/2022,11040,LIBRARIES - WILLENHALL LIBRARY,7523,COVENTRY CITY COUNCIL,AUTOMOBILE PARKING LOTS AND GARAGES,4.00
06/09/2022,10951,IPS HWC SHORT TERM TENANCIES,4900,E.ON NEXT,"UTLTS-ELCTRC, GAS, HEATING OIL, SANITARY, WATER",51.01
06/09/2022,10951,IPS HWC SHORT TERM TENANCIES,4900,E.ON NEXT,"UTLTS-ELCTRC, GAS, HEATING OIL, SANITARY, WATER",32.00
06/09/2022,11197,WEST FAMILY HUB,5999,AMZNMKTPLACE AMAZON.CO,MISCELLANEOUS AND SPECIALTY RETAIL STORES,84.78
06/09/2022,11197,WEST FAMILY HUB,5999,AMZNMKTPLACE AMAZON.CO,MISCELLANEOUS AND SPECIALTY RETAIL STORES,17.97
06/09/2022,10541,COVENTRY EXTENDED LEARNING CENTRE,5411,ONE STOP 2901,"GROCERY STORES, SUPERMARKETS",3.20
06/09/2022,10987,TAXI LICENSING,5969,AMAZON.CO.UK ZI90F5MV5,DIRECT MARKETING-OTHER DIRECT MARKETERS/NOT ELSEW.,266.00
06/09/2022,11932,LAC THROUGHCARE TEAM,4214,SAFESTORE LTD ONLINE R,"FREIGHT CARRIER,TRUCKING-LCL/LNG DIST, MVG/STORAGE",140.05
06/09/2022,11136,EAST FAMILY HUB,5999,AMZNMKTPLACE,MISCELLANEOUS AND SPECIALTY RETAIL STORES,7.99
06/09/2022,10469,RESIDENTIAL - JOBS LANE,5411,TESCO STORES 2325,"GROCERY STORES, SUPERMARKETS",36.00
06/09/2022,10469,RESIDENTIAL - JOBS LANE,5411,JARDINE CRESCENT LOCAL,"GROCERY STORES, SUPERMARKETS",15.00
06/09/2022,10469,RESIDENTIAL - JOBS LANE,5411,JARDINE CRESCENT LOCAL,"GROCERY STORES, SUPERMARKETS",10.00
06/09/2022,10469,RESIDENTIAL - JOBS LANE,5411,TESCO STORES 2325,"GROCERY STORES, SUPERMARKETS",-36.00
06/09/2022,10539,ADULT ED AOL 9/3 - VISUAL ARTS/FLORISTRY,5949,COVENTRY SEWING CENTRE,"FABRIC, NEEDLEWORK, PIECE GOODS, AND SEWING STORES",509.70
06/09/2022,11282,POST AND FASTPRINT,5999,AMZNBUSINESS KX37D8955,MISCELLANEOUS AND SPECIALTY RETAIL STORES,323.10
06/09/2022,11507,CARE LEAVERS,5411,ASDA STORES 4602,"GROCERY STORES, SUPERMARKETS",9.89
06/09/2022,11687,RESIDENTIAL - BROAD PARK HOUSE,5999,AMZNMKTPLACE AMAZON.CO,MISCELLANEOUS AND SPECIALTY RETAIL STORES,499.96
06/09/2022,10704,LEGAL SERVICES,4112,WWW.AVANTIWESTCOAST.CO,PASSENGER RAILWAYS,12.00
06/09/2022,10704,LEGAL SERVICES,4112,WWW.AVANTIWESTCOAST.CO,PASSENGER RAILWAYS,9.30
06/09/2022,11407,CHIEF EXECUTIVE,4121,SUMUP   EURO CABS,LIMOUSINES AND TAXICABS,25.00
06/09/2022,10291,SECTION17 PAYMENTS CENTRAL,9399,COUNCIL RENT PAYMENTS,GOVERNMENT SERVICES-NOT ELSEWHERE CLASSIFIED,"1,492.50"
06/09/2022,11197,WEST FAMILY HUB,5411,TESCO STORES 2328,"GROCERY STORES, SUPERMARKETS",117.36
06/09/2022,10090,LIBRARIES - OPERATIONS,5999,TIMPSON LTD,MISCELLANEOUS AND SPECIALTY RETAIL STORES,16.00
06/09/2022,10411,IPS HWC QUINTON LODGE,5811,BRAKES (STORED CARDS),CATERERS,249.12
06/09/2022,11001,BUSINESS INVESTMENT � INWARD INVESTME,4112,COV STATION TVM,PASSENGER RAILWAYS,8.50
06/09/2022,10411,IPS HWC QUINTON LODGE,5811,BRAKES (STORED CARDS),CATERERS,294.37
06/09/2022,10411,IPS HWC QUINTON LODGE,5811,BRAKES (STORED CARDS),CATERERS,356.64
06/09/2022,10411,IPS HWC QUINTON LODGE,5811,BRAKES (STORED CARDS),CATERERS,236.89
06/09/2022,10411,IPS HWC QUINTON LODGE,5811,BRAKES (STORED CARDS),CATERERS,-3.10
06/09/2022,10333,14-16 ALTERNATIVE CURRICULUM,5411,ASDA STORES 5757,"GROCERY STORES, SUPERMARKETS",11.80
06/09/2022,11932,LAC THROUGHCARE TEAM,4112,WWW.AVANTIWESTCOAST.CO,PASSENGER RAILWAYS,8.40
06/09/2022,11507,CARE LEAVERS,5732,CURRYS ONLINE,ELECTRONIC SALES,349.00
06/09/2022,11507,CARE LEAVERS,5732,CURRYS ONLINE,ELECTRONIC SALES,349.00
06/09/2022,11103,RESIDENTIAL - BROAD LANE,5411,TESCO STORES 2328,"GROCERY STORES, SUPERMARKETS",106.58
06/09/2022,11932,LAC THROUGHCARE TEAM,5999,AMZNMKTPLACE AMAZON.CO,MISCELLANEOUS AND SPECIALTY RETAIL STORES,124.99
06/09/2022,11255,ADULT ED ADMIN & MANAGEMENT,5399,REPLACEMENT KEYS LTD,MISCELLANEOUS GENERAL MERCHANDISE,5.90
06/09/2022,10360,JOB SHOP,5713,CARPET MILL,FLOOR COVERING STORES,"1,142.41"
06/09/2022,11103,RESIDENTIAL - BROAD LANE,5999,AMZNMKTPLACE,MISCELLANEOUS AND SPECIALTY RETAIL STORES,11.16
06/09/2022,11103,RESIDENTIAL - BROAD LANE,5999,AMZNMKTPLACE,MISCELLANEOUS AND SPECIALTY RETAIL STORES,4.45
06/09/2022,11932,LAC THROUGHCARE TEAM,5411,CHEYLESMORE WINES,"GROCERY STORES, SUPERMARKETS",3.09
06/09/2022,10040,IPS HWC COPTHORNE,5811,BRAKES (STORED CARDS),CATERERS,148.36
06/09/2022,11687,RESIDENTIAL - BROAD PARK HOUSE,5999,AMZNMKTPLACE,MISCELLANEOUS AND SPECIALTY RETAIL STORES,13.99
06/09/2022,11277,FLEET SERVICES,5999,AMZNMKTPLACE AMAZON.CO,MISCELLANEOUS AND SPECIALTY RETAIL STORES,84.95
06/09/2022,10900,LOCAL WELFARE PROVISION COVID-19,7999,COVENTRY CITY COUNCIL,RECREATION SERVICES (NOT ELSEWHERE CLASSIFIED),14.50
06/09/2022,10565,ROUGH SLEEPER AND RAPID HOUSING PATH,7011,ROYAL COURT HOTEL,"LODGING-HOTELS,MOTELS,RESORTS-NOT CLASSIFIED",50.00
06/09/2022,11507,CARE LEAVERS,6513,YUGO STUDENTS (UK) LTD,REAL ESTATE AGENTS AND MANAGERS-RENTALS,165.00
06/09/2022,10300,INTERNAL FOSTERING TEAM,4112,THETRAINLINE.COM,PASSENGER RAILWAYS,-286.00
06/09/2022,10211,MIGRATION PROJECT B,9399,DISCLOSURE AND BARRING,GOVERNMENT SERVICES-NOT ELSEWHERE CLASSIFIED,18.00
06/09/2022,11107,CENTRAL FAMILY HUB,5999,AMZNMKTPLACE AMAZON.CO,MISCELLANEOUS AND SPECIALTY RETAIL STORES,99.95
06/09/2022,11381,PUBLIC HEALTH,5411,TESCO STORES 5779,"GROCERY STORES, SUPERMARKETS",11.85
06/09/2022,10416,LAC PERMANENCY,4112,TRAINLINE.COM,PASSENGER RAILWAYS,40.04
06/09/2022,10416,LAC PERMANENCY,4112,THETRAINLINE.COM,PASSENGER RAILWAYS,110.65
06/09/2022,11507,CARE LEAVERS,7392,TVLICENSING.CO.UK,"CONSULTING, MANAGEMENT, AND PUBLIC RELATIONS SVCS",159.00
06/09/2022,10900,LOCAL WELFARE PROVISION COVID-19,5999,AMZNMKTPLACE,MISCELLANEOUS AND SPECIALTY RETAIL STORES,109.99
06/09/2022,11602,IPS LD GOSFORD COMMUNITY HUB,5300,GOMPELS HEALTHCARE,WHOLESALE CLUBS,68.83
06/09/2022,10541,COVENTRY EXTENDED LEARNING CENTRE,5411,ASDA GROCERIES ONLINE,"GROCERY STORES, SUPERMARKETS",102.04
06/09/2022,10541,COVENTRY EXTENDED LEARNING CENTRE,5411,ASDA GROCERIES ONLINE,"GROCERY STORES, SUPERMARKETS",-6.60
06/09/2022,10096,SPORTS DEVELOPMENT,7523,WWW.PARKINGCHARGEPAYME,AUTOMOBILE PARKING LOTS AND GARAGES,51.50
06/09/2022,10096,SPORTS DEVELOPMENT,7523,CSC PCN,AUTOMOBILE PARKING LOTS AND GARAGES,50.00
06/09/2022,11932,LAC THROUGHCARE TEAM,5399,B&M 027 - LOUGHBOROUGH,MISCELLANEOUS GENERAL MERCHANDISE,71.22
06/09/2022,10565,ROUGH SLEEPER AND RAPID HOUSING PATH,1520,SUMUP   BERNARD MICHA,GENERAL CONTRACTORS/RESIDENTIAL BUILDINGS,7.00
06/09/2022,11507,CARE LEAVERS,5812,JAM JAM BOOMERANG,"EATING PLACES, RESTAURANTS",11.40
06/09/2022,11932,LAC THROUGHCARE TEAM,4112,TRAINLINE,PASSENGER RAILWAYS,98.10
06/09/2022,11826,REPAIR & MAINTENANCE,5065,WWW.GDHA.COM,ELECTRICAL PARTS AND EQUIPMENT,22.39
06/09/2022,10627,GOVERNANCE SERVICES,5411,ASDA STORES 4454,"GROCERY STORES, SUPERMARKETS",14.94
06/09/2022,11932,LAC THROUGHCARE TEAM,9402,POST OFFICE COUNTER,POSTAL SERVICES-GOVERNMENT ONLY,20.55
06/09/2022,10672,PUBLIC HEALTH - MIGRATION,4112,TRAINLINE.COM,PASSENGER RAILWAYS,-179.90
06/09/2022,11746,RESIDENTIAL - GRAYSWOOD,5814,JUST EAT,FAST FOOD RESTAURANTS,14.15
06/09/2022,11746,RESIDENTIAL - GRAYSWOOD,5999,AMZNBUSINESS AMAZON.CO,MISCELLANEOUS AND SPECIALTY RETAIL STORES,-15.75
06/09/2022,11197,WEST FAMILY HUB,5999,AMZNMKTPLACE AMAZON.CO,MISCELLANEOUS AND SPECIALTY RETAIL STORES,13.99
06/09/2022,11197,WEST FAMILY HUB,5999,AMZNMKTPLACE AMAZON.CO,MISCELLANEOUS AND SPECIALTY RETAIL STORES,16.86
06/09/2022,11197,WEST FAMILY HUB,5999,AMZNMKTPLACE AMAZON.CO,MISCELLANEOUS AND SPECIALTY RETAIL STORES,13.76
06/09/2022,11197,WEST FAMILY HUB,5999,AMZNMKTPLACE AMAZON.CO,MISCELLANEOUS AND SPECIALTY RETAIL STORES,4.28
06/09/2022,11197,WEST FAMILY HUB,5999,AMZNMKTPLACE AMAZON.CO,MISCELLANEOUS AND SPECIALTY RETAIL STORES,7.17
06/09/2022,11197,WEST FAMILY HUB,5999,AMZNMKTPLACE AMAZON.CO,MISCELLANEOUS AND SPECIALTY RETAIL STORES,41.48
06/09/2022,10444,SOCIAL WORKER ACADEMY,5411,TESCO STORES 5779,"GROCERY STORES, SUPERMARKETS",4.92
06/09/2022,11687,RESIDENTIAL - BROAD PARK HOUSE,5411,ONE STOP 2901,"GROCERY STORES, SUPERMARKETS",5.50
06/09/2022,10541,COVENTRY EXTENDED LEARNING CENTRE,5065,PREMIER FARNELL,ELECTRICAL PARTS AND EQUIPMENT,118.00
06/09/2022,10541,COVENTRY EXTENDED LEARNING CENTRE,5999,AMZNMKTPLACE AMAZON.CO,MISCELLANEOUS AND SPECIALTY RETAIL STORES,15.99
06/09/2022,11894,ICT SYSTEMS,5734,WORKSHARE LIMITED,COMPUTER SOFTWARE STORES,198.00
06/09/2022,10541,COVENTRY EXTENDED LEARNING CENTRE,5999,AMZNMKTPLACE AMAZON.CO,MISCELLANEOUS AND SPECIALTY RETAIL STORES,127.56
05/09/2022,10900,LOCAL WELFARE PROVISION COVID-19,5999,AMZNMKTPLACE,MISCELLANEOUS AND SPECIALTY RETAIL STORES,154.98
05/09/2022,10900,LOCAL WELFARE PROVISION COVID-19,5999,AMZNMKTPLACE,MISCELLANEOUS AND SPECIALTY RETAIL STORES,119.98
05/09/2022,10900,LOCAL WELFARE PROVISION COVID-19,5999,AMZNMKTPLACE AMAZON.CO,MISCELLANEOUS AND SPECIALTY RETAIL STORES,46.99
05/09/2022,10096,SPORTS DEVELOPMENT,5552,GENIEPOINT,ELECTRIC VEHICLE CHARGING,8.00
05/09/2022,11687,RESIDENTIAL - BROAD PARK HOUSE,5999,AMZNMKTPLACE,MISCELLANEOUS AND SPECIALTY RETAIL STORES,33.41
05/09/2022,11687,RESIDENTIAL - BROAD PARK HOUSE,5399,WILKO RETAIL LIMITED,MISCELLANEOUS GENERAL MERCHANDISE,7.20
05/09/2022,11687,RESIDENTIAL - BROAD PARK HOUSE,5999,AMZNMKTPLACE,MISCELLANEOUS AND SPECIALTY RETAIL STORES,11.04
05/09/2022,11687,RESIDENTIAL - BROAD PARK HOUSE,5999,AMZNMKTPLACE,MISCELLANEOUS AND SPECIALTY RETAIL STORES,5.99
05/09/2022,11687,RESIDENTIAL - BROAD PARK HOUSE,7922,WEST MIDLAND SAFARI PA,"THEATRICAL PRODUCERS(EXCL MOTION PIX),TICKET AGNCY",-75.00
05/09/2022,11103,RESIDENTIAL - BROAD LANE,5411,MALCOLMS STORES LIMITE,"GROCERY STORES, SUPERMARKETS",10.75
05/09/2022,11307,IPS MH THE POD,5200,B & Q 1231,HOME SUPPLY WAREHOUSE STORES,469.30
05/09/2022,10882,LEEDS FAMILY VALUED PROGRAMME,5947,PARTY BALLOONS OF COVE,"GIFT, CARD, NOVELTY AND SOUVENIR SHOPS",186.94
05/09/2022,11197,WEST FAMILY HUB,5999,AMZNMKTPLACE AMAZON.CO,MISCELLANEOUS AND SPECIALTY RETAIL STORES,65.94
05/09/2022,11197,WEST FAMILY HUB,5999,AMZNMKTPLACE AMAZON.CO,MISCELLANEOUS AND SPECIALTY RETAIL STORES,7.99
05/09/2022,11197,WEST FAMILY HUB,5999,AMZNMKTPLACE AMAZON.CO,MISCELLANEOUS AND SPECIALTY RETAIL STORES,2.95
